{"text_format":"1","workbook":"xlsx","n_sheets":16,"sheets":["Instruktioner","0. Sekretesselever","1. Redovisning av elever","2. Kontroll personnr kurskod","3. Kontroll begränsning kurser","4. Anpassad utbildning","5. Övriga uppgifter","6. Sammanställning redovisning","Sammanställning ansökan","7. EU-medel","Kurslista","Dubblettkontroll","Kontrollog","Särskilda skäl","kurslista låst","parametrar"],"not_rendered":{"charts":0,"images":5,"macros":1,"external_links":1,"defined_names":28,"comments":0,"pivot_tables":0},"unopened":[],"bounds":{"document_bytes":16777216,"sheet_cells":100000,"rows_first":2000,"rows_last":500,"rows_between":2000,"halvings":0,"cell_chars":16384,"cell_head_chars":4096},"cells_cut":0,"cells_raw":0,"read":"whole","date_system":"1900"}

{"sheet":"Instruktioner","index":0,"n_rows":92,"n_cols":8,"rows_kept":92,"cut":false,"hidden":false,"merged":[[87,1,88,12],[91,1,92,12],[66,1,66,12],[68,0,68,13],[70,1,70,12],[71,1,71,12],[73,1,73,12],[75,0,75,13],[76,0,76,13],[77,0,78,13],[81,1,81,12],[83,1,85,12],[56,1,56,12],[58,0,58,13],[60,1,60,12],[62,0,62,13],[65,1,65,12],[64,1,64,12],[46,0,46,13],[48,1,48,12],[50,0,50,13],[52,1,52,12],[54,0,54,13],[34,4,34,12],[36,4,36,12],[38,4,38,12],[42,0,42,13],[44,1,44,12],[10,1,11,12],[20,0,21,13],[23,1,23,3],[23,4,23,12],[30,4,30,12],[0,0,1,13],[3,1,3,12],[5,7,5,11],[6,7,6,10],[8,1,8,12]]}
["Redovisning Lärlingsvux kombination 2023"]
[]
[]
[null,"Skicka in redovisningsblanketten i e-tjänsten senast 15 februari 2024. "]
[]
[null,"För frågor om Skolverkets e-tjänst, kontakta:",null,null,null,null,null,"https://www.skolverket.se/om-oss/kontakta-oss"]
[null,"För frågor om redovisningen eller blanketten, kontakta:",null,null,null,null,null,"statsbidragvux@skolverket.se "]
[]
[]
[]
[null,"Kom ihåg att klicka på \"Data\" och sedan \"Uppdatera alla\" i menyn högst upp (eller den röda knappen nedan) efter att ni har lagt in uppgifter i flik 0 Sekretesselever, flik 1 Redovisning av elever och flik 4 Särskild utbildning. "]
[]
[]
[]
[]
[]
[]
[]
[]
[]
["Innehåll"]
[]
[]
[null,"Redovisningens flikar",null,null,"Gör det här i flikarna"]
[]
[null,"Instruktioner\n",null,null,"Läs informationen om hur ni redovisar."]
[null,"0. Sekretesselever",null,null,"Fyll i poäng som lästs inom lärlingsvux kombination för elever med sekretessmarkerade uppgifter."]
[]
[null,"1. Redovisning av elever",null,null,"Fyll i uppgifter om de elever som studerat inom lärlingsvux kombination."]
[]
[null,"2. Kontroll personnummer kurskod",null,null,"Kontrollera felaktiga personnummer och kurskoder för elever inom lärlingsvux kombination. "]
[]
[null,"3. Kontroll begränsningar kurser",null,null,"Kontrollera antal poäng i orienteringskurser och kurser i vissa ämnen för elever inom lärlingsvux kombination."]
[]
[null,"4. Anpassad utbildning",null,null,"Fyll i poäng som lästs inom anpassad utbildning för vuxna."]
[]
[null,"5. Övriga uppgifter",null,null,"Fyll i redovisat belopp för ersättning till arbetsgivare respektive handledareutbildning, samt intyga att samtliga redovisade elever har läst en yrkesutbildning kombinerat med sfi/sva och stödjande insatser."]
[]
[null,"6. Sammanställning redovisning",null,null,"Ange huvudsökande kommun. Se sammanställning av redovisningen och vad ni ska återbetala."]
[]
[null,"7. EU-medel",null,null,"Ange namn på utbildningsanordnare och organisationsnummer."]
[]
["0. Sekretesselever"]
[]
[null,"Här ska ni fylla i antal lästa verksamhetspoäng för elever med skyddade personuppgifter som ni har genomfört inom ramen för statsbidraget under 2023. Poängen redovisas per kurs. Ni ska alltså fylla i summan av samtliga elevers lästa poäng i respektive kurs.\n\nI den blå rutan anger ni hur många elever som har sekretessbelagda uppgifter.\n\nÅrsstudieplatser för elever med sekretessbelagda uppgifter kommer summeras i flik 6 Sammanställning redovisning. "]
[]
["1. Redovisning av elever"]
[]
[null,"Här ska ni fylla i elevernas lästa verksamhetspoäng inom lärlingsvux kombination. Ni ska enbart redovisa statsbidragsfinansierad utbildning. Den utbildning ni har bekostat själva ska således inte redovisas i blanketten. Lärlingsvux redovisas i en separat blankett.  Det är viktigt att ni inte dubbelredovisar elever i lärlingsvux kombination och lärlingsvux. \n\nFyll i personnummer, kurskod och antal poäng per elev för bidragsåret 2023. Det går bra att kopiera in uppgifter från en annan fil och klistra in som värde i denna blankett. \n\nOBS: Personnummer får ibland ett konstigt format när man klistrar in från en annan fil. Det ser exempelvis ut såhär: 1,97507E+11. Detta beror på att excel ibland formaterar om personnumret. Blanketten kommer att kunna räkna ut redovisade poäng även om personnumren har detta format. \n\nNär ni har fyllt i alla personnummer, kurskoder och antal poäng måste ni trycka på \"Data\" och sedan \"Uppdatera alla\" i menyfältet högst upp. Då summeras poängen av kurserna, årsstudieplatserna och statsbidraget  i den grå tabellen till vänster. \n\nOm ni har angett ett felaktigt personnummer eller en felaktig kurskod kommer uppgifterna att dyka upp i flik 2 Kontroll personnummer kurskod. Dessa poäng kommer inte att inkluderas i er redovisning och ert återkrav blir därmed högre. Dubbelkolla och korrigera därför alla uppgifter som dyker upp i flik 2. Observera att samtliga korigeringarna görs i flik 1, och att du återigen måste trycka på \"Data\" och \"Uppdatera alla\" efter att du ändrat uppgifter. \n\n"]
[]
["2. Kontroll personnummer kurskod"]
[]
[null,"Här visas personnummer som inte är korrekta, och även kurskoder som är felaktiga alternativt inte godkända enligt kurslistan för statsbidragsberättigade kurser. I kontrollen fångas även upp om lästa verksamhetspoäng är angivna i fel format eller om värdet är tomt. Om personnumret, kurskoden och/eller verksamhetspoäng dyker upp som Nej i listan så har verksamhetspoängen inte summerats för eleven i fråga. Det felaktiga uppgifterna måste korrigeras i flik 1 Redovisning av elever, innan poängen räknas med. Efter att korrigering av felaktiga uppgifter gjorts i flik 1, gå till menyn och tryck på Data och sedan Uppdatera alla. När felet/felen är korrigerade så kommer eleven/eleverna att försvinna från flik 2.  "]
[]
["3. Kontroll begränsningar kurser"]
[]
[null,"Här visas de elever som ni har redovisat för många poäng för i orienteringskurser, eller redovisat för hög andel poäng i kurser i vissa ämnen för. Uppgifterna hämtas från flik 1 och totalt antal lästa poäng summeras för respektive personnummer. \n\nOrienteringskurserna ska vara på gymnasial nivå. En elev får läsa högst 400 poäng i orienteringskurser, varav maximalt 200 poäng får avse orienteringskurser som syftar till att ge modersmålsstöd/studiehandledning på modersmål och högst 200 poäng får avse andra orienteringskurser. Om ni redovisar mer än 200 poäng i orienteringskurser för modersmålsstöd/studiehandledning på modersmål och/eller mer än 200 poäng i andra orienteringskurser för en elev, kommer Skolverket att räkna bort poäng i handläggningen av er redovisning.\n\nKurser i vissa ämnen avser i denna blankett svenska, svenska som andraspråk, engelska, matematik och/eller samhällskunskap på gymnasial nivå. Maximalt 25 procent av en elevs utbildning kan utgöras av dessa kurser. Om en elev har läst mer än 25 procent i dessa kurser behöver ni ha ett giltigt skäl enligt nedan. Skolverket kommer skicka ut en komplettering för de elever som läst mer än 25 procent där ni får möjlighet att ange ett skäl. Om inget giltigt skäl anges kommer Skolverket räkna bort poäng i handläggningen av er redovisning.  \n\nGiltiga skäl att redovisa mer än 25 procent: \n1. En del av yrkeskurserna lästes 2022 eller tidigare år\n2. En del av yrkeskurserna ska läsas 2024.\n3. En del av yrkeskurserna är medfinansiering och redovisas därför inte"]
[]
["4. Anpassad utbildning"]
[]
[null,"Här ska ni fylla i lästa verksamhetspoäng inom kommunal yrkesinriktad vuxenutbildning som anpassad utbildning. Poängen redovisas per ämne. Ni ska således fylla i summan av samtliga elevers lästa verksamhetspoäng i respektive ämne. \n\nFyll i antal elever (som läst inom kommunal yrkesinriktad vuxenutbildning som anpassad utbildning) i den blå rutan.\n\nI den grå tabellen summeras redovisade verksamhetspoäng och årsstudieplatser inom kommunal yrkesinriktad vuxenutbildning som anpassad utbildning för orienteringskurser respektive yrkesämnen. Godkända orienteringskurser inom kommunal yrkesinriktad vuxenutbildning som anpassad utbildning finns längst ner i fliken Kurslista. "]
[]
["5. Övriga uppgifter"]
[]
[null,"Redovisning arbetsplats och handledare\nHär ska ni fylla i redovisat belopp för ersättning till arbetsgivare. Statsbidrag lämnas med högst 40 000 kronor per årsstudieplats för ersättning till arbetsplatsen. Ni ska även fylla i redovisat belopp för handledarutbildning. Statsbidrag lämnas med högst 3 500 kronor för varje handledare som fullföljt en handledarutbildning och tagit emot en elev på arbetsplatsen. Bidrag lämnas enbart för handledare som bidrag inte lämnats för tidigare."]
[null,"Kombinationsutbildning\nHär ska ni intyga att samtliga redovisade elever har läst en yrkesutbildning kombinerat med Sfi/sva och stödjande insatser. Enligt förordning (2016:937) är en kombinationsutbildning en yrkesutbildning som kombineras med utbildning i sfi och/eller sva, samt stödjande insatser som syftar till att ge eleverna ökade möjligheter att nå målen. För att en utbildning ska ses som en kombinationsutbildning ska utbildningen utformas så att yrkeskurser och sfi/sva läses samtidigt. Sfi/sva och yrkeskurser kan läsas parallellt eller integrerat. Att först erbjuda enbart språkutbildning och sedan erbjuda enbart yrkesutbildning är inte en kombinationsutbildning. Yrkesstudier och språkstudier ska kombineras med stödjande insatser på sådant sätt att det bidrar till att ge eleverna ökade möjligheter att nå målen för utbildningen. Stödjande insatser måste vara något utöver det som redan erbjuds. En orienteringskurs är inte en stödjande insats. Insatserna kan till exempel handla om att öka flexibiliteten, ge extra stöd eller andra anpassningar och även att utöka den pedagogiska personalen eller liknande. \n\nSkolverket kan komma att kontrollera:\n- Om eleven varit inskriven på sfi/sva samtidigt som eleven varit inskriven på yrkeskurser.\n- Huvudmannens motivering till att eleven läst en kombinationsutbildning \n- Vilka stödjande insatser eleven tagit del av \n- Huvudmannens beskrivning av på vilket sätt de stödjande insatserna har bidragit till att öka elevens måluppfyllnad"]
[]
[]
["6. Sammanställning redovisning"]
[]
[null,"Välj den kommun som varit huvudsökande för bidragsåret 2023. Samverkande kommuner finns på en separat flik, se Sammanställning ansökan. "]
[null,"Beviljat belopp och preliminärt redovisat belopp\nSe sammanställning över beviljat bidrag för 2023 samt preliminärt redovisat belopp och preliminärt belopp för återbetalning (innan kontroller och eventuella avdrag gjorts i handläggningen)."]
[]
[null,"Slutgiltigt redovisat belopp och belopp för återbetalning (obs! denna del kommer synas först när vi är klara med kontrollerna av er redovisning)\nSe uppgifter om kontroller som genomförts i handläggningen, samt borträknade poäng och statsbidrag till följd av kontrollerna. Se även sammanställning över slutgiltigt redovisat belopp efter handläggning och belopp som ska återbetalas längst ner i blanketten. \n\nNi kan välja att ange en fakturareferens som vi i sådana fall kommer ange på fakturan vid eventuellt återkrav. \n\nEventuella synpunkter till Skolverket\nHär kan ni lämna synpunkter på bidragsåret 2023 och statsbidrag för Regionalt yrkesvux generellt. Uppgifterna är inte obligatoriska."]
[]
["7. EU-medel"]
["För 2020-2023 har Skolverket tilldelats EU-medel som delfinansierar statsbidrag (2016:937) för regional yrkesinriktad vuxenutbildning. \n\nSkolverket samlar in uppgifter från er för att sedan rapportera vidare till Ekonomistyrningsverket och Europeiska kommissionen. Enligt 36 § tredje stycket i förordning (2016:937) ska ni lämna sådan ekonomisk och annan redovisning som Ekonomistyrningsverket och Europeiska kommissionen begär. Ni ska fylla i de utbildningsanordnare som ni, eller kommuner i er samverkansgrupp, har upphandlat utbildning från. Har ni upphandlat utbildning från en annan kommun så ska den kommunen fyllas i som utbildningsanordnare. I högra tabellen ska ni fylla i de kommuner/kommunalförbund i ert samverkansområde som bedrivit utbildning i egen regi."]
["Kontroller i handläggningen och kontaktuppgifter"]
[]
[]
[null,"Kontroller vi kommer göra i redovisningen:"]
[null,"Vi kommer ta bort poäng i orienteringskurser om någon elev har läst för många poäng, och ert redovisade belopp kommer då att minskas."]
[]
[null,"Om ni har redovisat elever som har läst mer än 25 procent i kurser i vissa ämnen så kommer vi att begära in en komplettering där ni får ange skäl. En elev kan enbart läsa mer än 25 procent i kurser i vissa ämnen om en del av utbildningen genomförts tidigare år, planeras att genomföras kommande år eller utgör medfinansiering. "]
[]
[]
[]
[null,"Vi kommer kontrollera dubbletter i redovisningen. Vi jämför personnummer, kurskoder och kurspoäng i samtliga bidrag och mellan samtliga kommungrupper. Hittar vi dubbletter kommer vi begära en komplettering av er redovisning."]
[]
[]
[null,"Kontroller vi kan komma att göra efter redovisningen:"]
[null,"Vi kan komma att jämföra er redovisning med den officiella komvux-statistiken för att se att ni uppfyllt kravet om medfinansiering. Om det verkar som att ni inte gjort det kommer vi att kontakta er efter redovisningen.  "]

{"sheet":"0. Sekretesselever","index":1,"n_rows":1018,"n_cols":14,"rows_kept":1018,"cut":false,"hidden":false,"merged":[[25,4,25,15],[26,4,32,15],[16,4,16,6],[16,7,16,9],[16,10,16,12],[16,13,16,15],[18,4,20,9],[18,10,20,15],[12,4,13,6],[12,7,13,9],[12,10,13,12],[12,13,13,15],[14,4,14,6],[14,7,14,9],[14,10,14,12],[14,13,14,15],[10,4,11,6],[10,7,11,9],[10,10,11,12],[10,13,11,15],[6,4,7,15],[8,4,9,6],[8,7,9,9],[8,10,9,12],[8,13,9,15]]}
["Kursnamn","Kurskod","Lästa verksamhetspoäng per kurskod"]
["Administration – specialisering","ADMADM00S"]
["Administration 1","ADMADM01"]
["Administration 2","ADMADM02"]
["Administration av nätverks- och serverutrustning","NAIADM0",null,null,"Summering av redovisat statsbidrag visas nedan när du tryckt på Uppdatera alla under Data i menyn ovan"]
["Administration av nätverks- och serverutrustning","NÄVADM0"]
["Aerodynamik","FLYAER0",null,null,"Summering sekretesselever"]
["Aerodynamik","YRKAER0"]
["Affärsjuridik","JURAFF0",null,null,"Typ av kurs (ersättningsnivå)",null,null,"Totalt lästa verksamhetspoäng",null,null,"Antal årsstudieplatser",null,null,"Statsbidrag"]
["Affärskommunikation","AFFAFÄ00S"]
["Affärsutveckling och ledarskap","HANAFR0",null,null,30000,null,null,{"$f":"SUM(Tabell12[Lästa verksamhetspoäng per kurskod])","v":0},null,null,{"$f":"H11/800","v":0},null,null,{"$f":"K11*30000","v":0}]
["Aktiviteter och upplevelser","AKTAKT0"]
["Aktiviteter och upplevelser","TURAKT0",null,null,110000,null,null,{"$f":"SUM(Tabell14[Lästa verksamhetspoäng per kurskod])","v":0},null,null,{"$f":"H13/800","v":0},null,null,{"$f":"K13*110000","v":0}]
["Aktivitetsledarskap","PEDAKI00S"]
["Akut omhändertagande","BEVAKU0",null,null,"Summa",null,null,{"$f":"SUM(H11:J14)","v":0},null,null,{"$f":"SUM(K11:M14)","v":0},null,null,{"$f":"SUM(N11:P14)","v":0}]
["Akutsjukvård","SJUAKU0"]
["Allmän automationsteknik","AUOALL0"]
["Allmän automationsteknik","AUTALL0"]
["Allmän järnvägsteknik","JÄNALM0",null,null,"Fyll i antal elever som har sekretessbelagda uppgifter"]
["Anatomi och fysiologi 1","ANOANA01"]
["Anatomi och fysiologi 2","ANOANA02"]
["Animation – specialisering","ANIANI00S"]
["Animation 1","ANIANI01"]
["Animation 2","ANIANI02"]
["Anläggning – gröna ytor","ANLANL0"]
["Anläggning – ledningsbyggnad","ANLANÄ0",null,null,"Instruktioner"]
["Anläggning – stensättning","ANLANG0",null,null,"Här fyller ni i antal lästa verksamhetspoäng för elever med skyddade personuppgifter som ni har genomfört inom ramen för statsbidraget under 2023. Ni anger det totala antalet poäng per kurs. Ni ska således fylla i summan av samtliga elevers lästa poäng i respektive kurs. Efter att ni har fyllt i uppgifterna gå till huvudmenyn och tryck på Data och sedan Uppdatera alla (eller den röda knappen nedan).\n\nI den blå rutan anger ni hur många elever som har sekretessbelagda uppgifter."]
["Anläggning – vägbyggnad","ANLANN0"]
["Anläggning 1","ANLANL01"]
["Anläggning 2","ANLANL02"]
["Anläggningsförare – process","ANAANL0"]
["Anläggningsförare 1","ANAANA01"]
["Anläggningsförare 2","ANAANA02"]
["Anläggningsförare 3","ANAANA03"]
["Anläggningsförare 4","ANAANA04"]
["Anläggningsprocessen","ANLANS0"]
["Anpassning och montering av utrustning","MASANP0"]
["Antenn- och kabel-TV-teknik","ELRANT0"]
["Arbete från servicebil","MASARB0"]
["Arkitektur – hus","ARKARK0"]
["Arkitektur – rum","ARKARI0"]
["Arrangemang","SERARR0"]
["ATV och motorcykel","ATOATV0"]
["Avhjälpande och förebyggande underhåll","AUOAVH0"]
["Avhjälpande och förebyggande underhåll","AUTAVH0"]
["Avhjälpande underhåll 1","DRIAVH01"]
["Avhjälpande underhåll 2","DRIAVH02"]
["Avverkningsmaskiner","NABAVV0"]
["Avverkningsmaskiner","SKMAVV0"]
["Bad- och friskvårdsanläggningar","FRIBAD0"]
["Bageri – specialisering","BAGBAG00S"]
["Bageri 1","BAGBAG01"]
["Bageri 2","BAGBAG02"]
["Bageri 3","BAGBAG03"]
["Bageri 4","BAGBAG04"]
["Bandschaktare","MOBBAN0"]
["Banskötsel för hästsport","BANBAN0"]
["Barberare 2*","HAVBAR02"]
["Barberare 3 *","HAVBAR03"]
["Barberare 4 *","HAVBAR04"]
["Barberare 5 *","HAVBAR05"]
["Barberare 6a *","HAVBAR06a"]
["Barberare 6b *","HAVBAR06b"]
["Barn- och ungdomshälsa","BAOBAR0"]
["Barn- och ungdomssjukvård","BAOBAN0"]
["Barn- och ungdomssjukvård","SJUBAR0"]
["Barnhälsovård","HAABAR0"]
["Barns lärande och växande","PEDBAS0"]
["Barteknik","DRYBAT0"]
["Baskurs i lackering","LACBAK0"]
["Belysningsnät","ELDBEY0"]
["Belysningsteknik","INSBES0"]
["Beläggning","BELBEL0"]
["Beläggningsarbeten","BELBEÄ0"]
["Beläggningsmaskiner","BELBEG0"]
["Bergarbeten","BERBER0"]
["Bergborrning","BERBEB0"]
["Bergmaskiner","BERBEM0"]
["Bergsprängning","BERBEP0"]
["Beskärning och trädvård","SKÖBEK0"]
["Besöksnäringen","AKTBEO0"]
["Besöksnäringen","TURBEÖ0"]
["Betong 1 – lågform och platta på mark","BETBET01"]
["Betong 2 – väggar och pelare","BETBET02"]
["Betong 3 – bärlag","BETBET03"]
["Betong 4 – golv","BETBET04"]
["Bevakning och säkerhet","BEVBEV0"]
["Bevarandebiologi","BIGBEA0"]
["Bild- och ljudanläggningar","ELOBID0"]
["Bild- och ljudanläggningar","ELTBID0"]
["Biodling","BINBIO0"]
["Biologi – naturbruk – specialisering","BIGBIG00S"]
["Biologi i vattenmiljöer 1","BIIVAT01"]
["Biologi i vattenmiljöer 2","BIIVAT02"]
["Biologi i vattenmiljöer 3","BIIVAT03"]
["Brand- och ljudisolering","TEIBRA0"]
["Brand och räddning","BEVBRA0"]
["Brandlarmssystem","LARBRN0"]
["Branschkunskap inom handel och administration","HANBRS0"]
["Branschkunskap inom handel*","HANBRA0"]
["Branschkunskap inom restaurang och livsmedel","MÅTBRC0"]
["Bromsar, kaross och chassi","PERBRO0"]
["Bussteknik","BUSBUS0"]
["Bygg och anläggning 1","BYGBYG01"]
["Bygg och anläggning 2","BYGBYG02"]
["Bygga i trä","TRÄBYG0"]
["Byggnadsplåtslageri 1","PLTBYG01"]
["Byggnadsplåtslageri 2","PLTBYG02"]
["Byggnadsplåtslageri 3","PLTBYG03"]
["Byggnadsplåtslageri 4","PLTBYG04"]
["Byggnadsunderhåll","NARBYA0"]
["Båtel 1","MAIBAT01"]
["Båtel 2","MAIBAT02"]
["Båthantering och underhåll","FRDBAT0"]
["Båtsystem","FRDBAS0"]
["Cad 1","CADCAD01"]
["Cad 2","CADCAD02"]
["Cad 3","CADCAD03"]
["Cad/cam","DARCAD0"]
["CCTV-system","LARCCT0"]
["Charkuteri – specialisering","CHACHA00S"]
["Charkuteri – specialisering","STYCHA00S"]
["Charkuteri 1","CHACHA01"]
["Charkuteri 1","STYCHA01"]
["Charkuteri 2","CHACHA02"]
["Charkuteri 2","STYCHA02"]
["Charkuteri 3","CHACHA03"]
["Charkuteri 3","STYCHA03"]
["Charkuteri 4","CHACHA04"]
["Charkuteri 4","STYCHA04"]
["Choklad och konfektyr","BAGCHO0"]
["Data- och medianät","ELRDAA0"]
["Dator- och nätverksteknik","DAODAC0"]
["Datoriserad mönsterhantering 1","DAIMON01"]
["Datoriserad mönsterhantering 1","MÖNDAT01"]
["Datoriserad mönsterhantering 2","DAIMON02"]
["Datoriserad mönsterhantering 2","MÖNDAT02"]
["Datorsamordning och support","DAODAT0"]
["Datorstyrd produktion 1","DARDAT01S"]
["Datorstyrd produktion 2","DARDAT02"]
["Datorstyrd produktion 3","DARDAT03"]
["Datorstyrd produktion 4","DARDAT04"]
["Datorstyrd produktion 5","DARDAT05"]
["Datorstyrd produktion 6","DARDAT06"]
["Datorteknik 1a","DAODAT01a"]
["Datorteknik 1b","DAODAT01b"]
["Den unga hästens utveckling 1a","HÄTDEN01a"]
["Den unga hästens utveckling 1b","HÄTDEN01b"]
["Den unga hästens utveckling 2","HÄTDEN02"]
["Design 1","DESDES01"]
["Design 2","DESDES02"]
["Designmodeller","DESDES0"]
["Diagnos och reparation","MANDIA0"]
["Digital kommunikationsteknik","DAODIG0"]
["Digitalt skapande 1","DIGDIG01"]
["Digitalt skapande 2","DIGDIG02"]
["Digitalteknik och flyginstrument","ELADIG0"]
["Digitalteknik och flyginstrument","FLYDII0"]
["Digitalteknik och programmering","SPFDIG0"]
["Distribuerade styrsystem","MÄTDIS0"]
["Djur – specialisering","DJUDJU00S"]
["Djur för forskningsändamål","DJFDJU0"]
["Djur i zoohandel","DJUDJI0"]
["Djuren i naturbruket","DJUDJR0"]
["Djurens biologi","BIGDJE0"]
["Djurhållning","DJUDJH0"]
["Djurparksdjur 1","DJPDJU01"]
["Djurparksdjur 2","DJPDJU02"]
["Djurvård inom djurens hälso- och sjukvård 1","DJRDJU01"]
["Djurvård inom djurens hälso- och sjukvård 2","DJRDJU02"]
["Dramapedagogik","PEGDRA0"]
["Dricksvatten","VATDRI0"]
["Drift och underhåll av fritidsanläggningar","FRIDRF0"]
["Drift, underhåll, säkerhet och miljö","VAEDRT0"]
["Drivsystem och bromsar","SPFDRI0"]
["Drycker","DRYDRY0"]
["Drycker – specialisering","DRYDRY00S"]
["Drycker och ansvarsfull alkoholservering","DRYDRC0"]
["Däckstjänst 1","DACDAC01"]
["Däckstjänst 2","DACDAC02"]
["El- och hybridfordon 1","ELCELO01"]
["El- och hybridfordon 2","ELCELO02"]
["El- och verkstadsteknik","VERVER0"]
["Elektromedicinsk teknik","MEIELE0"]
["Elektromekanik","ELRELK0"]
["Elektronik – flyg","FLYELT0"]
["Elektronik – spårfordon","ELNELE0"]
["Elektronik och mikrodatorteknik","ELEELR0"]
["Elektronikproduktionsteknik","ELKELO0"]
["Elementmontering","ELMELM0"]
["Elinstallationer","INSELI0"]
["Elkraft och traktion – spårfordon","ELFELK0"]
["Elkraftteknik","ELRELF0"]
["Ellära – flyg","ELAELL0"]
["Ellära – flyg","FLYELL0"]
["Ellära – spårfordon 1","LLAELL01"]
["Ellära – spårfordon 2","LLAELL02"]
["Ellära 1","ELLELL01"]
["Ellära 2","ELLELL02"]
["Elmotordrivsystem","AUTELD0"]
["Elmotordrivsystem","ELIELD0"]
["Elmotorstyrning","INSELS0"]
["Elmätteknik 1","ELÄELM01"]
["Elmätteknik 2","ELÄELM02"]
["Elteknik","JÄNELN0"]
["Energiteknik 1","ENEENE01"]
["Energiteknik 2","ENEENE02"]
["Entreprenadteknik","VVIENT0"]
["Entreprenadteknik","VVSENT0"]
["Entreprenörskap","ENTENR0"]
["Entreprenörskap och företagande","FÖRENT0"]
["Ergonomi","HALERG0"]
["Estetisk kommunikation 1","ESTEST01"]
["Estetisk kommunikation 2","ESTEST02"]
["Estetisk kommunikation 3","ESTEST03"]
["Etik och människans livsvillkor","MÄNETI0"]
["Etnicitet och kulturmöten","SOIETN0"]
["Evenemang","KONEVE0"]
["Eventteknik","EVEEVN0"]
["Fackteckning och design","FOMFAC0"]
["Fartygsbefäl","DACFAR0"]
["Fastighetsautomation 1","AUTFAS01"]
["Fastighetsautomation 1","FAIFAS01"]
["Fastighetsautomation 2","AUTFAS02"]
["Fastighetsautomation 2","FAIFAS02"]
["Fastighetsförvaltning","FAFFAS0"]
["Fastighetskommunikation","FAFFAT0"]
["Fastighetsservice – byggnader","FASFAS0"]
["Fastighetsservice – elarbeten","FASFAH0"]
["Fastighetsservice – VVS","FASFAE0"]
["Fastighetsservice – ytor","FASFAV0"]
["Felsökning och diagnos 1","SPFFEL01"]
["Felsökning och diagnos 2","SPFFEL02"]
["Film- och interaktiv ljudproduktion","LJUFIL0"]
["Film- och tv-produktion 1","FILFIL01"]
["Film- och tv-produktion 2","FILFIL02"]
["Filmproduktion","FILFIL0"]
["Finsnickeri 1","HAVFIN01"]
["Finsnickeri 2","HAVFIN02"]
["Finsnickeri 3","HAVFIN03"]
["Finsnickeri 4","HAVFIN04"]
["Finsnickeri 4 – specialisering","HAVFIN04S"]
["Finsnickeri 5","HAVFIN05"]
["Finsnickeri 5 – specialisering","HAVFIN05S"]
["Finsnickeri 6a","HAVFIN06a"]
["Finsnickeri 6b","HAVFIN06b"]
["Finstyckning","STCFIN0"]
["Finstyckning","STYFIN0"]
["Fiske 1","FISFIS01"]
["Fiske 2","FISFIS02"]
["Fiske 3","FISFIS03"]
["Fiske och vattenvård 1","SKOFIS01"]
["Fiske och vattenvård 2","SKOFIS02"]
["Fiskevård 1","FIKFIS01"]
["Fiskevård 2","FIKFIS02"]
["Fiskevård 3","FIKFIS03"]
["Fiskodling 1","VANFIS01"]
["Fiskodling 2","VANFIS02"]
["Flerbränslefordon","FLEFLR0"]
["Florist 1","HAVFLO01"]
["Florist 2","HAVFLO02"]
["Florist 3","HAVFLO03"]
["Florist 4","HAVFLO04"]
["Florist 4 – specialisering","HAVFLO04S"]
["Florist 5","HAVFLO05"]
["Florist 5 – specialisering","HAVFLO05S"]
["Florist 6a","HAVFLO06a"]
["Florist 6b","HAVFLO06b"]
["Flyglagstiftning","FLYFLY0"]
["Flyglagstiftning","YRKFLY0"]
["Flygplanslära","FLYFLG0"]
["Flygplansteknik","FLPFLY0"]
["Flygplatsen","FLGFLY0"]
["Flygunderhåll","UNDFLY0"]
["Fordon och redskap","FOHFOR0"]
["Fordon och redskap","NABFOR0"]
["Fordons- och transportbranschens villkor och arbetsområden","FORFOD0"]
["Fordonskombinationer – godstransporter","TRAFOR0"]
["Fordonskombinationer – persontransporter","TRAFOD0"]
["Fordonsteknik – introduktion","FODFOO0"]
["Fordonstestteknik","FOOFOR0"]
["Formgivning 1","FOMFOR01S"]
["Formgivning 2","FOMFOR02S"]
["Formgivning 3","FOMFOR03S"]
["Friskvård och hälsa","HAAFRI0"]
["Frisör 1","HAVFRI01"]
["Frisör 2","HAVFRI02"]
["Frisör 3","HAVFRI03"]
["Frisör 4","HAVFRI04"]
["Frisör 4 – specialisering","HAVFRI04S"]
["Frisör 5","HAVFRI05"]
["Frisör 5 – specialisering","HAVFRI05S"]
["Frisör 6a","HAVFRI06a"]
["Frisör 6b","HAVFRI06b"]
["Fritids- och friskvårdsverksamheter","FRIFRT0"]
["Fritids- och idrottskunskap","FRTFRD0"]
["Fritidsmiljöer och arenor","FRIFRS0"]
["Frukost och bufféservering","HOTFRU0"]
["Frukost och bufféservering","SERFRU0"]
["Funktionsförmåga och funktionsnedsättning 1","FUTFUN01"]
["Funktionsförmåga och funktionsnedsättning 2","FUTFUN02"]
["Fälthållning","FLGFAL0"]
["Färg och dekorationslackering","LACFÄR0"]
["Företagsekonomi - specialisering","FÖRFÖR00S"]
["Företagsekonomi 1","FÖRFÖR01"]
["Företagsekonomi 2","FÖRFÖR02"]
["Förnybar energi","ENEFÖR0"]
["Gas- och vätsketeknik","MEIGAS0"]
["Gasturbinmotorer","FLYGAT0"]
["Gasturbinmotorer","GASGAS0"]
["Generatorer och transformatorer","VAEGEN0"]
["Gerontologi och geriatrik","GERGER0"]
["Godshantering – vux","GODGOD1"]
["Godstrafik","GOSGOD0"]
["Godstransporter – specialisering","GOSGOD00S"]
["Golvläggning 1","GOLGOL01"]
["Golvläggning 2 – våtrum","GOLGOL02"]
["Golvläggning 3 – trä och laminat","GOLGOL03"]
["Grafisk illustration","GRAGRI0"]
["Grafisk illustration i pixelgrafik","GRAGRP0"]
["Grafisk illustration i vektorgrafik","GRAGRV0"]
["Grafisk kommunikation 1","GRAGRA01"]
["Grafisk kommunikation 2","GRAGRA02"]
["Grafisk produktion 1","GRFGRF01"]
["Grafisk produktion 2","GRFGRF02"]
["Grafisk produktion 3","GRFGRF03"]
["Grafisk produktion 4","GRFGRF04"]
["Grafiska arbetsflöden och analysmodeller","GRAGRA0"]
["Grundläggande säkerhet","SJOGRN0"]
["Grundläggande vård och omsorg","GRUGRD0"]
["Gränssnitt 3D","GRÄGRN0"]
["Gränssnittsdesign","GRÄGRÄ0"]
["Grävmaskiner","MOBGRV0"]
["Grönyte- och småmaskinsteknik","GROGRO0"]
["Guide och reseledare","AKTGUI0"]
["Guide och reseledare","TURGUI0"]
["Guidning i naturbruksmiljöer","NAGGUD0"]
["Handel – specialisering","HANHAN00S"]
["Handel och hållbar utveckling","HANHAN0"]
["Hantering av varor och gods","GODHAT0"]
["Hantverk – introduktion","HAVHAV0"]
["Hantverksteknik 1","HAVHNT01"]
["Hantverksteknik 2","HAVHNT02"]
["Hantverksteknik 3","HAVHNT03"]
["Hantverksteknik 4","HAVHNT04"]
["Hantverksteknik 4 – specialisering","HAVHNT04S"]
["Hantverksteknik 5","HAVHNT05"]
["Hantverksteknik 5 – specialisering","HAVHNT05S"]
["Hantverksteknik 6a","HAVHNT06a"]
["Hantverksteknik 6b","HAVHNT06b"]
["Helikopterlära","FLYHEL0"]
["Helikopterteknik","HELHEL0"]
["Hemsjukvård","SJUHEM0"]
["Hjullastare","MOBHJU0"]
["Hjulutrustning","HJUHJU0"]
["Hjulutrustning – specialisering","HJUHJT00S"]
["Hotelladministration","HOTHOT0"]
["Hundkunskap 1","HUNHUN01"]
["Hundkunskap 2","HUNHUN02"]
["Hundkunskap 3","HUNHUN03"]
["Husbyggnad 1","HUSHUS01"]
["Husbyggnad 2","HUSHUS02"]
["Husbyggnad 3 – ombyggnad","HUSHUS03"]
["Husbyggnadsprocessen","HUSHUB0"]
["Husvagnar och husbilar","HUVHUS0"]
["Hydraulik, kraftstationshydraulik och turbiner","VAEHYD0"]
["Hygien","HYGHYG0"]
["Hållbar turism","RESHAL0"]
["Hållbar turism","TURHÅL0"]
["Hållbart samhällsbyggande","HÅLHÅB0"]
["Hår- och makeupstylist 2 *","HAVHAR02"]
["Hår- och makeupstylist 3 *","HAVHAR03"]
["Hår- och makeupstylist 4 *","HAVHAR04"]
["Hår- och makeupstylist 5 *","HAVHAR05"]
["Hälso- och sjukvård 1","HAOHAL01"]
["Hälso- och sjukvård 2","HAOHAL02"]
["Hälsopedagogik","HALHAL0"]
["Hälsopedagogik","HALHAL0 "]
["Hästkunskap 1","HÄTHÄS01"]
["Hästkunskap 2","HÄTHÄS02"]
["Hästkunskap 3","HÄTHÄS03"]
["Hästsportanläggningars skötsel och drift 1","NARHAS01"]
["Hästsportanläggningars skötsel och drift 2","NARHAS02"]
["Högspänningsnät","ELDHÖG0"]
["Inbrottslarmssystem","LARINB0"]
["Industriautomation","AUTIND0"]
["Industriautomation","INRIND0"]
["Industriell informationsteknik","DAOINU0"]
["Industriell lackering","LACINS0"]
["Industriell mätteknik – fördjupning","PRUINU0"]
["Industriell mätteknik – grund","PRUIND0"]
["Industriisolering","TEIINT0"]
["Industrirörteknik 1","INDIND01"]
["Industrirörteknik 2","INDIND02"]
["Industrirörteknik 3","INDIND03"]
["Industriteknisk fördjupning 1","PRFPRF01"]
["Industriteknisk fördjupning 2","PRFPRF02"]
["Industritekniska processer 1","INUINU01"]
["Industritekniska processer 2","INUINU02"]
["Industritekniska processer 3","INUINU03"]
["Industritekniska processer 4","INUINU04"]
["Information och kommunikation 1","INFINF01"]
["Information och kommunikation 2","INFINF02"]
["Informationsteknik i fastighetsförvaltning","FAFINF0"]
["Injusteringsteknik","SYSINJ0"]
["Inköp 1","INKINK01"]
["Inköp 2","INKINK02"]
["Inredning och komfort 1","SPFINR01"]
["Inredning och komfort 2","SPFINR02"]
["Installationer","ELPINS0"]
["Intern och extern kommunikation","INFINE0"]
["Interna transporter","PRUINE00S"]
["Internationellt arbete ","MÄNINA0"]
["Intervallservice","MANINT0"]
["It i vård och omsorg","ITIITI0"]
["Jakt och viltvård – specialisering","SKOJAK00S"]
["Jakt och viltvård 1","SKOJAK01"]
["Jakt och viltvård 2","SKOJAK02"]
["Journalistik, reklam och information 1","MEEJOU01"]
["Journalistik, reklam och information 2","MEEJOU02"]
["Järnvägsbyggnad 1","JÄRJÄR01"]
["Järnvägsbyggnad 2","JÄRJÄR02"]
["Järnvägsbyggnad 3","JÄRJÄR03"]
["Karosserikonstruktioner och inredning","KARKAR0"]
["Kolvmotor","FLYKOL0"]
["Kolvmotorer","KOLKOL0"]
["Komfort- och säkerhetssystem 1a","PERKOM01a"]
["Komfort- och säkerhetssystem 1b","PERKOM01b"]
["Komfortsystem","MASKOM0"]
["Kommunikation","PEDKOU0"]
["Kommunikationsnät 1","INSKOM01"]
["Kommunikationsnät 2","INSKOM02"]
["Kommunikationsnät 3","INSKOM03"]
["Kommunikationssystem","SPFKOM0"]
["Komplementärmedicin","HAAKOM0"]
["Kondensisolering","TEIKOD0"]
["Konditori – specialisering","BAGKON00S"]
["Konditori 1","BAGKON01"]
["Konditori 2","BAGKON02"]
["Konditori 3","BAGKON03"]
["Konditori 4","BAGKON04"]
["Konferens 1","KONKOF01"]
["Konferens 2","KONKON02"]
["Konferens 3","KONKON03"]
["Konferens och evenemang","KONKOF0"]
["Konsthantverk 1","KOHHAN01"]
["Konsthantverk 2","KOHHAN02"]
["Konsthantverk 3","KOHHAN03"]
["Konsthantverk 4","KOHHAN04"]
["Konsthantverk 5","KOHHAN05"]
["Konstruktion 1","KOTKOS01"]
["Konstruktion 2","KOTKOS02"]
["Konstruktion 3","KOTKOS03"]
["Konstruktion och reparation 1","FRDKON01"]
["Konstruktion och reparation 2","FRDKON02"]
["Kontorstekniksystem","ELOKOT0"]
["Kontorstekniksystem","ELTKOT0"]
["Kontrollanläggningar","VAEKOR0"]
["Korg och boggi","SPFKOR0"]
["Kost och hälsa","HALKOC0"]
["Kost, måltid och munhälsa","HAAKOS0"]
["Kraft- och värmeteknik 1","KRAKRA01"]
["Kraft- och värmeteknik 2","KRAKRA02"]
["Kulturplåtslageri","PLTKUU0"]
["Kundmottagning och reservdelshantering","SUPKUN0"]
["Kustnavigation och säkerhet","BATKUS0"]
["Kyl- och värmepumpsteknik – energieffektivisering","KYLKYL0"]
["Kyl- och värmepumpsteknik – grund","KYLKYO0"]
["Kyl- och värmepumpsteknik – installation","KYLKYC0"]
["Kyl- och värmepumpsteknik – miljö och säkerhet","KYLKYH0"]
["Kyl- och värmepumpsteknik – service","KYLKYV0"]
["Kälsvets 1","SAAKÄL01S"]
["Kälsvets 2","SAAKÄL02S"]
["Körning 1","RIDKÖR01"]
["Körning 1","RINKOR01"]
["Körning 2","RIDKÖR02"]
["Körning 2","RINKOR02"]
["Laboratorieteknik","INULAB0"]
["Lackeringssystem","LACLAC0"]
["Lackeringsteknik – applicering","LACLAK0"]
["Lackeringsteknik – introduktion","LACLAE0"]
["Lackeringsteknik för tunga fordon","LACLAR0"]
["Lageradministration och terminallogistik","LAGLAG0"]
["Lagerprocesser","LAGLAP0"]
["Lantbruksdjur – specialisering","LANLAN00S"]
["Lantbruksdjur 1","LANLAN01"]
["Lantbruksdjur 2","LANLAN02"]
["Lantbruksmaskiner 1","LAULAT01"]
["Lantbruksmaskiner 1","NABLAT01"]
["Lantbruksmaskiner 2","LAULAT02"]
["Lantbruksmaskiner 2","NABLAT02"]
["Lantbruksmaskinsteknik","LAKLAN0"]
["Larm-, övervaknings- och säkerhetssystem","LARLAM0"]
["Lastbilar – chassi och bromsar","LAPLAC0"]
["Lastbilar – kraftöverföring","LAPLAS0"]
["Lastbilar – system och diagnosteknik 1","LAPLAS01"]
["Lastbilar – system och diagnosteknik 2","LAPLAS02"]
["Lastbilar och mobila maskiner – basteknik","LAALAT0"]
["Lastbilar och mobila maskiner – förbränningsmotorer","LAILAT0"]
["Lastbilar och mobila maskiner – service och underhåll 1","LAALAS01"]
["Lastbilar och mobila maskiner – service och underhåll 2","LAALAS02"]
["Lastbilar och mobila maskiner – verkstad och elteknik","LAALAS0"]
["Lastbilar och utrustning","MASLAT0"]
["Lastbilsmonterad hydraulik och pneumatik","MASLAI0"]
["Lastbilsmonterad kran","GOSLAL0"]
["Lastbilspåbyggnad – specialisering","LALLAS00S"]
["Lastbärare","GODLAS0"]
["Lasthantering och passagerarsäkerhet","FARLAS0"]
["Lastmaskiner och truckar","LASLAA0"]
["Lastmaskiner och truckar","NABLAA0"]
["Ledarskap och organisation","LEDLED0"]
["Livsmedels- och näringskunskap 1","LIVLIV01"]
["Livsmedels- och näringskunskap 2","LIVLIV02"]
["Ljudproduktion 1","LJULJU01"]
["Ljudproduktion 2","LJULJU02"]
["Ljudproduktionsteknik","EVELJD0"]
["Ljus- och bildproduktionsteknik","EVELJS0"]
["Logi","HOTLOG0"]
["Logi","RECLOG0"]
["Logistik 1","INKLOG01"]
["Logistik 2","INKLOG02"]
["Luftbehandling","VETLUF0"]
["Luftbehandlingsanläggningar","VETLUT0"]
["Luftbehandlingssystem","VETLUB0"]
["Luftbehandlingssystem","VETLUE0"]
["Luftströmning","VETLUS0"]
["Låg- och högfrekvenskretsar","ELELÅG0"]
["Lågspänningsnät","ELDLÅS0"]
["Låsinstallation","LAOLAS0"]
["Låsteknik","LAOLAT0"]
["Lärande och utveckling","PEDLÄR0"]
["Lättbyggnadsteknik","PLTLÄT0"]
["Manus för film och tv","FILMAN0"]
["Marina elektroniksystem","ELTMAR0"]
["Marina elektroniksystem","MAYMAR0"]
["Marinelektronik 1","MAIMAR01"]
["Marinelektronik 2","MAIMAR02"]
["Marinelektronik 3","MAIMAR03"]
["Marinmotor – introduktion","MANMAR0"]
["Marken och växternas biologi","BIGMAN0"]
["Marknadsföring","FÖRMAD0"]
["Marknadsföring och försäljning","RESMAS0"]
["Marknadsföring och försäljning","TURMAS0"]
["Maskin- och lastbilsteknik – introduktion","MASMAI0"]
["Maskinbefäl","MAKMAS0"]
["Maskinell godshantering","GODMAL0"]
["Maskintjänst 1","MAKMAS01"]
["Maskintjänst 2","MAKMAS02"]
["Massage 1","MAAMAA01"]
["Massage 2","MAAMAA02"]
["Mat och butik – specialisering","MAOMAT00S"]
["Mat och butik 1","MAOMAT01"]
["Mat och butik 2","MAOMAT02"]
["Mat och dryck i kombination","MACMAT0"]
["Material","HVKMAT0"]
["Material och miljö","HVKMAE0"]
["Materialkunskap 1","MAEMAT01"]
["Materialkunskap 2","MAEMAT02"]
["Materiallära – flyg","FLYMAA0"]
["Materiallära – flyg","UNDMAT0"]
["Matlagning – specialisering","MALMAL00S"]
["Matlagning 1","MALMAL01"]
["Matlagning 2","MALMAL02"]
["Matlagning 3","MALMAL03"]
["Matlagning 4","MALMAL04"]
["Matsalshantverk","SERMAF0"]
["Medicin 1","MEDMED01"]
["Medicin 2","MEDMED02"]
["Medier, samhälle och kommunikation 1","MERMEE01"]
["Medier, samhälle och kommunikation 2","MERMEE02"]
["Mekatronik 1","MEKMEK01"]
["Mekatronik 2","MEKMEK02"]
["Mental träning","HALMEN0"]
["Mikrodatortillämpningar","ELEMIK0"]
["Miljö","HVKMIL0"]
["Miljö- och energikunskap","HÅLMIJ0"]
["Miljöer och utrustning för fordonstest","FOOMIL0"]
["Mobil hydraulik 1","MASMOB01"]
["Mobil hydraulik 2","MASMOB02"]
["Mobila applikationer","WEBMOB0"]
["Mobila maskiner – hydraulsystem","MOLMOI0"]
["Mobila maskiner – kraftöverföring","MOLMOB0"]
["Mobila maskiner – system- och diagnosteknik 1","MOLMOB01"]
["Mobila maskiner – system- och diagnosteknik 2","MOLMOB02"]
["Mobila maskiner och utrustning","MASMOB0"]
["Motor och kraftöverföring","PERMOT0"]
["Motor- och röjmotorsåg 1","MOTMOT01"]
["Motor- och röjmotorsåg 2","MOTMOT02"]
["Motorelektronik 1","MAIMOT01"]
["Motorelektronik 2","MAIMOT02"]
["Multimediasystem","DAOMUL0"]
["Mur- och putsverk 1 – grundmurar","MURMUR01"]
["Mur- och putsverk 2 – murverk","MURMUR02"]
["Mur- och putsverk 3 – puts","MURMUR03"]
["Måleri – dekorationstekniker","MARMAE0"]
["Måleri – äldre måleritekniker","MARMAR0"]
["Måleri 1","MARMAL01"]
["Måleri 2","MARMAL02"]
["Måleri 3","MARMAL03"]
["Måleri 4","MARMAL04"]
["Måleri 5","MARMAL05"]
["Måleriprocessen","MARMAL0"]
["Mångbruk av skog","SKOMÅN0"]
["Människan i industrin 1","MÄIMÄN01"]
["Människan i industrin 2","MÄIMÄN02"]
["Människans säkerhet","MÄSMÄN0"]
["Människors miljöer","PEDMÄI0"]
["Mänskliga faktorer","FLYMAS0"]
["Mänskliga faktorer","YRKMAN0"]
["Mät- och reglerteknik","MÄTMÄT0"]
["Mät- och styrteknik","MÄTMÄO0"]
["Mönsterkonstruktion 1","MNUMON01"]
["Mönsterkonstruktion 1","MÖNMÖN01"]
["Mönsterkonstruktion 2","MNUMON02"]
["Mönsterkonstruktion 2","MÖNMÖN02"]
["Natur- och landskapsvård","NATNAT0"]
["Naturbruk","NAUNAU0"]
["Naturguidning 1","NAGNAT01"]
["Naturguidning 2","NAGNAT02"]
["Naturturism 1","NAMNAT01"]
["Naturturism 2","NAMNAT02"]
["Naturturism 3","NAMNAT03"]
["Nyinstallation","MANNYI0"]
["Nät- och transformatorstationer","ELDNÄT0"]
["Näthandel 1","NÄTNÄT01"]
["Näthandel 2","NÄTNÄT02"]
["Nätunderhållsarbete i stadsnät","ELDNÄU0"]
["Nätunderhållsarbete i vindkraftnät","ELDNÄN0"]
["Nätunderhållsarbete på luftledningsnät 0,4–24kV","ELDNÄD0"]
["Nätverksadministration","NAINAV0"]
["Nätverksadministration","NÄVNÄV0"]
["Nätverkssäkerhet","NAINAE0"]
["Nätverkssäkerhet","NÄVNÄE0"]
["Nätverksteknik","NAINAR0"]
["Nätverksteknik","NÄVNÄR0"]
["Nätverksteknologier","NAINAK0"]
["Nätverksteknologier","NÄVNÄK0"]
["Odling – specialisering","ODLODL00S"]
["Odling av djurfoder","ODLODL0"]
["Odling av djurfoder","VAOODL0"]
["Odling i växthus – specialisering","ODIODI00S"]
["Odling i växthus 1","ODIODL01"]
["Odling i växthus 2","ODIODL02"]
["Omvårdnad 1","OMVOMV01"]
["Omvårdnad 2","OMVOMV02"]
["Original, reproduktion och prepress","GRAGRR0"]
["Palliativ vård","SJULIN0"]
["Passersystem","LARPAS0"]
["Pedagogiska teorier och praktiker","PEDPED0"]
["Pedagogiskt arbete","PEGPEA0"]
["Pedagogiskt ledarskap","PEDPEG0"]
["Personaladministration","ADMPER0"]
["Personbilar – basteknik ","SEOPEB0"]
["Personbilar - chassi och bromsar","REPPEO0"]
["Personbilar – förbränningsmotorer","REPPER0"]
["Personbilar – kraftöverföring","REPPES0"]
["Personbilar – service och underhåll 1","SEOPER01"]
["Personbilar – service och underhåll 2","SEOPER02"]
["Personbilar – system och diagnosteknik 1","REPPER01"]
["Personbilar – system och diagnosteknik 2","REPPER02"]
["Personbilar – verkstad och elteknik","SEOPER0"]
["Personbilsteknik – introduktion","PERPES0"]
["Personlig försäljning 1","FÖSPER01"]
["Personlig försäljning 2","FÖSPER02"]
["Personlig försäljning 3","FÖSPER03"]
["Persontrafik – vux","PESPER1"]
["Persontrafik 1a","PESPER01a"]
["Persontrafik 1b","PESPER01b"]
["Persontransporter – specialisering","PESPER00S"]
["Pistmaskiner och utrustning","SNOPIM0"]
["Pistmaskinkörning","SNOPIS0"]
["Plast- och lamineringsteknik","FRDPLA0"]
["Plocklagerhantering","LAGPLO0"]
["Plåtslageri – grunder","PLÅPLÅ0"]
["Plåtslageri – svetstekniker","PLTPLT0"]
["Plåtslageriprocessen","PLÅPLS0"]
["Politik och hållbar utveckling","HÅLPOL0"]
["Praktisk ellära","ELLPRA0"]
["Praktisk marknadsföring 1","HANPRA01"]
["Praktisk marknadsföring 2","HANPRA02"]
["Praktisk marknadsföring 3","HANPRA03"]
["Processdatorsystem","PROPRO0"]
["Processmätteknik 1","PROPRC01"]
["Processmätteknik 2","PROPRC02"]
["Processreglering","PROPRE0"]
["Produktionsflöden","LACPRD0"]
["Produktionskunskap 1","PRDPRO01"]
["Produktionskunskap 2","PRDPRO02"]
["Produktionsutrustning 1","PRUPRD01S"]
["Produktionsutrustning 2","PRUPRD02S"]
["Produktionsutrustning 3","PRUPRD03S"]
["Produktionsutrustning 4","PRUPRD04"]
["Produktutveckling 1","PRKPRK01"]
["Produktutveckling 2","PRKPRK02"]
["Programhantering","INFPRG0"]
["Programmerbara datorsystem – spårfordon","DAYPRO0"]
["Programmerbara styrsystem","MÄTPRR0"]
["Programmering 1","PRRPRR01"]
["Programmering 2","PRRPRR02"]
["Projektering","ELPPRO0"]
["Provning och kontrollarbete","ELKPRV0"]
["Psykiatri 1","PSYPSY01"]
["Psykiatri 2","PSYPSK02"]
["Psykiatri 2","PSYPSY02"]
["Psykologi 1","PSKPSY01"]
["Psykologi 2a","PSKPSY02a"]
["Psykologi 2b","PSKPSY02b"]
["Radiokommunikation till sjöss","DACRAD0"]
["Radiologiska utrustningar","MEIRAD0"]
["Radioproduktion","LJURAD0"]
["Reception 1","HOTREC01"]
["Reception 1","RECREC01"]
["Reception 2","HOTREC02"]
["Reception 2","RECREC02"]
["Reception 3","HOTREC03"]
["Reception 3","RECREC03"]
["Receptions- och konferensservice","ADMREC0"]
["Redovisning 1","FÖRRED01"]
["Redovisning 2","FÖRRED02"]
["Renen och dess naturmiljö 1","RENREN01"]
["Renen och dess naturmiljö 2","RENREN02"]
["Renen och rennäringen 1","RENREE01"]
["Renen och rennäringen 2","RENREE02"]
["Rening av förorenat vatten","VATREN0"]
["Reparation av lastbilar och mobila maskiner","MASREP0"]
["Reparation av motorcyklar och ATV","ATVREP0"]
["Reparation av personbilar och lätta transportfordon","PERREA0"]
["Reparation av snöfordon","SNOREP0"]
["Reparation av snöskoter","SNOREE0"]
["Reseproduktion och försäljning","RESRES0"]
["Reseproduktion och försäljning","TURRES0"]
["Reservkraft","KRARER0"]
["Resmål och resvägar","RESREM0"]
["Resmål och resvägar","TURREM0"]
["Ridning 1","RIDRID01"]
["Ridning 1","RINRID01"]
["Ridning 2","RIDRID02"]
["Ridning 2","RINRID02"]
["Ridning för ridlärare","RINRIN0"]
["Ridning och körning","RIDRID0"]
["Ridning och körning","RINRID0"]
["Riktbänkssystem","KARRIK0"]
["Riktningsteknik – introduktion","KARRIT0"]
["Robotteknik","AUTROB0"]
["Robotteknik","INRROB0"]
["Rums- och konferensbokning","KONRUM0"]
["Räddningsmedicin","HAORAD0"]
["Räddningsmedicin","SJURÄD0"]
["Rättspsykiatri","PSYRÄS0"]
["Rättspsykiatri ","RATRAT0"]
["Rörsvets 1","SAARÖR01S"]
["Rörsvets 2","SAARÖR02S"]
["Samhällsbaserad psykiatri","PSYSAM0"]
["Samisk hantverkskultur","SAISAM0"]
["Samisk mat och matkultur","SASSAM0"]
["Samiskt hantverk 1","SAISAM01S"]
["Samiskt hantverk 2","SAISAM02S"]
["Samiskt hantverk 3","SAISAM03S"]
["Samiskt hantverk 4","SAISAM04"]
["Samiskt hantverk 5","SAISAM05"]
["Sammanfogning","SAASAA0"]
["Sanitet och tappvatten","INTSAN0"]
["Sanitetsteknik 1","VVISAN01"]
["Sanitetsteknik 1","VVSSAN01"]
["Sanitetsteknik 2","VVISAN02"]
["Sanitetsteknik 2","VVSSAN02"]
["Servering – specialisering","SERSER00S"]
["Servering 1","SERSER01"]
["Servering 2","SERSER02"]
["Service och bemötande 1","SEVSEV01"]
["Service och bemötande 2","SEVSEV02"]
["Service och reparationsarbete","SUPSER0"]
["Servicekunskap","FÖSSEV0"]
["Servicekunskap 1*","FÖSSEV01"]
["Servicekunskap 2*","FÖSSER02"]
["Serviceteknik – naturbruk – specialisering","SEISER00S"]
["Serviceteknik – naturbruk 1","SEISEI01"]
["Serviceteknik – naturbruk 2","SEISEI02"]
["Signalteknik","JÄNSIG0"]
["Skadebesiktning och produktionsflöde","KARSKA0"]
["Skapande verksamhet","PEGSKP0"]
["Skarvnings- och sammanfogningsteknik","KARSKR0"]
["Skeppsteknik","FARSKE0"]
["Skogsbruksmaskinsteknik","SKBSKO0"]
["Skogsmaskiner – specialisering","NABSKO00S"]
["Skogsmaskiner – specialisering","SKMSKO00S"]
["Skogsskötsel – specialisering","SKGSKG00S"]
["Skogsskötsel 1","SKGSKO01"]
["Skogsskötsel 2","SKGSKO02"]
["Skärgårdsnavigation","BATSKA0"]
["Skötsel av utemiljöer","SKÖSKÖ0"]
["Skötsel av utemiljöer – specialisering","SKÖSKÖ00S"]
["Småreparationer – karosseri","KARSMA0"]
["Småreparationer – lackering","LACSMA0"]
["Småskalig skogsteknik","NABSMÅ0"]
["Småskalig skogsteknik","SKMSMA0"]
["Snöfordon – introduktion","SNOSNO0"]
["Social omsorg 1","SOASOC01"]
["Social omsorg 2","SOASOC02"]
["Socialpedagogik","PEASOC0"]
["Socialpedagogik","SOASOC0"]
["Socialt arbete","SOCSOC01"]
["Socialt arbete 1","SOCSOC01"]
["Socialt arbete 2","SOCSOC02"]
["Sociologi","SOISOO0"]
["Specialkoster","MALSPE0"]
["Specialpedagogik 1 ","SPCSPE01"]
["Specialpedagogik 2 ","SPCSPE02"]
["Specialyrken 1","HUBSPC01S"]
["Specialyrken 2","HUBSPC02S"]
["Specialyrken 3","HUBSPC03S"]
["Sprinklerteknik 1","SPNSPR01"]
["Sprinklerteknik 2","SPNSPR02"]
["Spårbundna fordon – introduktion","SPFSPA0"]
["Spårfordon – grund","SPOSPA0"]
["Stumsvets 1","SAASTU01S"]
["Stumsvets 2","SAASTU02S"]
["Styckning – specialisering","STCSTY00S"]
["Styckning – specialisering","STYSTY00S"]
["Styckning 1","STCSTY01"]
["Styckning 1","STYSTY01"]
["Styckning 2","STCSTY02"]
["Styckning 2","STYSTY02"]
["Styckning 3","STCSTY03"]
["Styckning 3","STYSTY03"]
["Styckning 4","STCSTY04"]
["Styckning 4","STYSTY04"]
["Styr- och säkerhetssystem","SPFSTY0"]
["Styr- och övervakningssystem","MASSTY0"]
["Städservice","REGSTA0"]
["Support och hemservice","SUPSUP0"]
["Svets grund","SAASVT0"]
["Systemteknik – spårfordon","SYTSYS0"]
["Systemuppbyggnad","SYSSYT0"]
["Säkerhet och miljö","SJOSAE0"]
["Sällskapsdjur 1","DJUSÄL01"]
["Sällskapsdjur 2","DJUSÄL02"]
["Taxitrafik","PESTAX0"]
["Teknik i vård och omsorg","TENTEK0"]
["Telefon- och internetservice","FÖSTEL0"]
["Teleskoplastare","MOBTEL0"]
["Terrängtransporter","NABTER0"]
["Terrängtransporter","SKMTER0"]
["Textil design 1","HAVTEX01"]
["Textil design 2","HAVTEX02"]
["Textil design 3","HAVTEX03"]
["Textil design 4","HAVTEX04"]
["Textil design 4 – specialisering","HAVTEX04S"]
["Textil design 5","HAVTEX05"]
["Textil design 5 – specialisering","HAVTEX05S"]
["Textil design 6a","HAVTEX06a"]
["Textil design 6b","HAVTEX06b"]
["Textil färg och form","FOMTEX0"]
["Textkommunikation","MEETET0"]
["Tillverkningsunderlag 1","TILTIL01"]
["Tillverkningsunderlag 2","TILTIL02"]
["Tillämpad programmering","TIATIL00S"]
["Tillämpad programmering","TIPTIL0"]
["Timring","TRÄTIM0"]
["Tradition och utveckling","HVKTRA0"]
["Trafikövervakning och signalsystem – spårfordon","TRFTRA0"]
["Transport och spedition","INKTRP0"]
["Trav 1","RIDTRA01"]
["Trav 1","TRVTRA01"]
["Trav 2","RIDTRA02"]
["Trav 2","TRVTRA02"]
["Truckteknik","TRCTRU0"]
["Trådlösa radiosystem","ELOTRL0"]
["Trådlösa radiosystem","ELTTRL0"]
["Trä 1 – stommar","TRÄTRK01"]
["Trä 2 – beklädnad","TRÄTRK02"]
["Trä 3 – montage","TRÄTRK03"]
["Trädgårdsanläggning – specialisering","TRDTRÄ00S"]
["Trädgårdsanläggning 1","TRDTRÄ01"]
["Trädgårdsanläggning 2","TRDTRÄ02"]
["Trädgårdsmaskiner","NABTRG0"]
["Trädgårdsmaskiner","TRSTRG0"]
["Trädgårdsodling","ODLTRÅ0"]
["Trädgårdsodling","TRRTRA0"]
["Trädgårdsodling – grönsaker, frukt och bär","ODLTRR0"]
["Trädgårdsodling – grönsaker, frukt och bär","TRRTRD0"]
["Trädgårdsodling – plantskoleväxter","ODLTRS0"]
["Trädgårdsodling – plantskoleväxter","TRRTRG0"]
["Trädgårdsodling – specialisering","TRRTRA00S"]
["Träning av hund","HUNTRN0"]
["Träningslära 1","TRNTRN01"]
["Träningslära 2","TRNTRN02"]
["Tunga arbetsmaskiner","GODTUN0"]
["Turistbyråservice","AKTTUR0"]
["Turistbyråservice","TURTUR0"]
["Tv-produktion","FILTVP0"]
["Tätskikt våtrum","TÄTTÄT0"]
["Underhåll – driftsäkerhet","DRIUND0"]
["Underhåll – elteknik","DRIUNE0"]
["Underhåll – hydraulik","DRIUNR0"]
["Underhåll – hydraulik och pneumatik","DRIUNH0"]
["Underhåll – lager och smörjteknik","DRIUNÅ0"]
["Underhåll – mekatronik","DRIUNL0"]
["Underhåll – pneumatik","DRIUNP0"]
["Underhåll – produktionsmekanik","DRIUNO0"]
["Underhåll – pumpteknik","DRIUNU0"]
["Underhåll – transmissioner och uppriktning","DRIUNT0"]
["Underhåll – vibrationsteknik","DRIUNV0"]
["Underhållsteknik – flyg","FLYUNS0"]
["Ungdomskulturer","SOIUNG0"]
["Utställningsdesign 1","UTSUTS01"]
["Utställningsdesign 2","UTSUTS02"]
["Utställningsdesign 3","UTSUTS03S"]
["Vardagsolyckor","BEVVAR0"]
["Vatten- och miljöteknik","VATVAT0"]
["Vatten- och processkemi","ENEVAE0"]
["Vattenbruk – grunder","VANVAT0"]
["Vattenbruk – specialisering","VANVAE00S"]
["Vattenkraftstationer","VAEVAN0"]
["Vattenreningens mikrobiologi","VATVAR0"]
["Ventilation och komfortkyla","INTVET0"]
["Ventilationsisolering","VEIVEN0"]
["Ventilationsisolering","VENVET0"]
["Ventilationsmontering 1","VEIVEN01"]
["Ventilationsmontering 1","VENVEN01"]
["Ventilationsmontering 2","VEIVEN02"]
["Ventilationsmontering 2","VENVEN02"]
["Ventilationsplåtslageri 1","VELVEN01"]
["Ventilationsplåtslageri 1","VENVET01"]
["Ventilationsplåtslageri 2","VELVET02"]
["Ventilationsplåtslageri 2","VENVET02"]
["Ventilationsservice","VEIVET0"]
["Ventilationsservice","VENVEI0"]
["Ventilationsteknik – injustering","VETVEL0"]
["Verkstad – spårfordon","VEAVER0"]
["Verktygs- och materialhantering","VEKVEK0"]
["Verktygskunskap","PRUVEY0"]
["Virkeslära","SKGVIR0"]
["Virkesmätning","SKGVIK0"]
["Virkestransport med skotare","NABVIE0"]
["Virkestransport med skotare","SKMVIE0"]
["Visuell kommunikation","VISVIS0"]
["VVS gassvetsning rör","VVIVVG0"]
["VVS gassvetsning rör","VVSVVG0"]
["VVS MMA-svetsning rör","INVVVS0"]
["VVS svets industrirör","INVVVV0"]
["VVS svets industrirör","VVSVVV0"]
["VVS svets och lödning rör","VVIVVS0"]
["VVS svets och lödning rör","VVSVVS0"]
["VVS TIG-svetsning rör","INVVVI0"]
["VVS TIG-svetsning rör","VVSVVI0"]
["VVS-isolering","TEIVVS0"]
["VVS-teknik","VVIVVT0"]
["VVS-teknik","VVSVVT0"]
["Våningsservice 1","HOTVÅN01"]
["Våningsservice 1","VAIVAI01"]
["Våningsservice 2","HOTVÅN02"]
["Våningsservice 2","VAIVAI02"]
["Våningsservice 3","HOTVÅN03"]
["Våningsservice 3","VAIVAI03"]
["Vård och omsorg – specialisering","VADVAR00S"]
["Vård och omsorg specialisering","VADVAD00S"]
["Vård och omsorg vid demenssjukdom","GERVÅR0"]
["Vård- och omsorgsarbete 1","VÅRVÅR01"]
["Vård- och omsorgsarbete 2","VÅRVÅR02"]
["Vårdpedagogik och handledning","PEAVÅD0"]
["Väghyvel","MOBVAG0"]
["Värdskap på resmålet","AKTVAR0"]
["Värdskap på resmålet","TURVÄR0"]
["Värme- och kylsystem","INTVÄR0"]
["Värmelära","SYSVÄM0"]
["Värmeteknik 1","VVIVAR01"]
["Värmeteknik 1","VVSVÄR01"]
["Värmeteknik 2","VVIVAR02"]
["Värmeteknik 2","VVSVÄR02"]
["Växtkunskap – fastighetsskötsel","VÄXVÄK0"]
["Växtkunskap 1","VÄXVÄX01"]
["Växtkunskap 2","VÄXVÄX02"]
["Växtodling – specialisering","VAOVAT00S"]
["Växtodling 1","ODLVÄT01"]
["Växtodling 1","VAOVAT01"]
["Växtodling 2","ODLVÄT02"]
["Växtodling 2","VAOVAT02"]
["Webbserverprogrammering 1","WEBWEB01"]
["Webbserverprogrammering 1","WESWEB01"]
["Webbserverprogrammering 2","WEBWEB02"]
["Webbserverprogrammering 2","WESWEB02"]
["Webbutveckling 1","WEBWEU01"]
["Webbutveckling 1","WEUWEB01"]
["Webbutveckling 2","WEBWEU02"]
["Webbutveckling 2","WEUWEB02"]
["Yrkestrafik – vux","TRAYRK1"]
["Yrkestrafik 1a","TRAYRK01a"]
["Yrkestrafik 1b","TRAYRK01b"]
["Ytbeklädnad – grund","TEIYTB0"]
["Yttre miljö – anläggningar","YTTYTT0"]
["Yttre miljö – maskiner och verktyg","YTTYTR0"]
["Äldres hälsa och livskvalitet","GERÄLD0"]
[]
["Kursnamn","Kurskod","Lästa verksamhetspoäng per kurskod"]
["Svenska","SVESVE01"]
["Svenska","SVESVE02"]
["Svenska","SVESVE03"]
["Svenska som andraspråk","SVASVA01"]
["Svenska som andraspråk","SVASVA02"]
["Svenska som andraspråk","SVASVA03"]
["Engelska","ENGENG05"]
["Engelska","ENGENG06"]
["Engelska","ENGENG07"]
["Matematik","MATMAT01"]
["Matematik","MATMAT02"]
["Matematik","MATMAT03"]
["Samhällskunskap","SAMSAM01"]
["Samhällskunskap","SAMSAM02"]
["Samhällskunskap","SAMSAM03"]
["Orienteringskurser","KGYORI11A"]
["Orienteringskurser","KGYORI11B"]
["Orienteringskurser","KGYORI11C"]
["Orienteringskurser","KGYORI11D"]
["Orienteringskurser","KGYORI11E"]
["Orienteringskurser","KGYORI11F"]
["Orienteringskurser","KGYORI11G"]
["Orienteringskurser","KGYORI11H"]

{"sheet":"1. Redovisning av elever","index":2,"n_rows":30,"n_cols":10,"rows_kept":30,"cut":false,"hidden":false,"merged":[[28,6,28,9],[29,6,34,9],[2,6,3,9],[9,6,9,9],[10,6,13,9],[14,6,21,9],[22,6,27,9]]}
["Kommun (valfri)","Personnummer","Kurskod","Lästa verksamhetspoäng"]
[]
[null,null,null,null,null,null,"Summering av redovisat statsbidrag visas nedan när du tryckt på Uppdatera alla under Data i menyn ovan"]
[]
[]
[null,null,null,null,null,null,"Typ av kurs (ersättningsnivå)","Summa verksamhetspoäng","Antal årsstudieplatser","Summa statsbidrag"]
[]
[null,null,null,null,null,null,"Summa",{"$f":"SUBTOTAL(109,sammanfattning[Summa verksamhetspoäng])","v":0},{"$f":"SUBTOTAL(109,sammanfattning[Antal årsstudieplatser])","v":0},{"$f":"SUBTOTAL(109,sammanfattning[Summa statsbidrag])","v":0}]
[]
[null,null,null,null,null,null,"Instruktioner"]
[null,null,null,null,null,null,"Kommun (valfri)\t \t \t \nNågra kommuner har efterfrågat en möjlighet att notera i blanketten vilken kommun som lämnat uppgifter om en elev. Denna uppgift är inte obligatorisk och ni avgör själva om ni vill skriva in kommuner i kolumn A.\n\n\n"]
[]
[]
[]
[null,null,null,null,null,null,"Personnummer\t \t \t \nI tabellen summeras bara korrekta personnummer. Personnummer som inte är korrekta dyker upp i flik 2 Kontroll personnummer kurskoder. Elever med tillfälliga personnummer rapporteras med födelsedatum och sedan TF20 för kvinna och TF10 för man, exempel: 19920427TF20. Det är även möjligt att rapportera andra TF-nummer.  Det viktiga är att siffran närmast F:et är udda om det är en man och jämn om det är en kvinna. Observera att elever med skyddade personuppgifter rapporteras i separat flik 0 Sekretesselever. \n\n\n\n\n"]
[]
[]
[]
[]
[]
[]
[]
[null,null,null,null,null,null,"Kurskod\t \t \t \nKurskoden ska anges på varje kurs som helt eller delvis finansierats av statsbidraget. Kurskoden ska rapporteras enligt den standard som ni rapporterar till SCB. I tabellen summeras bara godkända kurser. Kurser som inte är godkända dyker upp i flik 2 Kontroll personnummer kurskoder. Har ni frågor om specifika kurser är ni välkomna att höra av er till statsbidragvux@skolverket.se\n\n\n\n"]
[]
[]
[]
[]
[]
[null,null,null,null,null,null,"Lästa verksamhetspoäng"]
[null,null,null,null,null,null,"Här fyller ni i hur många verksamhetspoäng som eleven har genomfört på varje kurs under 2023. Om kursen började 2022 eller avslutas 2024 behöver ni dra av de poäng som inte genomfördes under 2023. Om en elev avbryter en kurs ska ni ange de poäng som eleven har genomfört fram tills avbrottet. \n\nEfter att ni har fyllt i uppgifterna gå till menyn och tryck på Data och sedan Uppdatera alla (eller den röda knappen nedan)."]

{"sheet":"2. Kontroll personnr kurskod","index":3,"n_rows":6,"n_cols":10,"rows_kept":6,"cut":false,"hidden":false,"merged":[[3,9,3,11],[4,9,4,11],[5,9,12,11]]}
["Kommun (valfri)","Radnummer","Personnnummer","Kurskod","Korrekt personnummer","Korrekt kurskod","Korrekt angivna verksamhetspoäng","Avdragna poäng"]
[]
["Summa",null,null,null,null,null,null,{"$f":"SUBTOTAL(109,Fel[Avdragna poäng])","v":0}]
[null,null,null,null,null,null,null,null,null,"Instruktioner"]
[null,null,null,null,null,null,null,null,null,"Kontroll personnummer och kurskod"]
[null,null,null,null,null,null,null,null,null,"I tabellen visas personnummer som inte är korrekta, och även kurskoder som är felaktiga alternativt inte godkända enligt kurslistan för statsbidragsberättigade kurser. I kontrollen fångas det även upp om lästa verksamhetspoäng är angivna i fel format eller om värdet är tomt. Om personnumret, kurskoden och/eller verksamhetspoäng dyker upp som Nej i listan så har verksamhetspoängen inte summerats för eleven i fråga. Det felaktiga uppgifterna måste korrigeras i flik 1 Redovisning av elever innan poängen räknas med. Efter att korrigering av felaktiga uppgifter gjorts i flik 1, gå till menyn och tryck på Data och sedan Uppdatera alla (eller den röda knappen nedan). När felet/felen är korrigerade så kommer eleven att försvinna från flik 2.  "]

{"sheet":"3. Kontroll begränsning kurser","index":4,"n_rows":5,"n_cols":13,"rows_kept":5,"cut":false,"hidden":false,"merged":[[2,12,2,14],[3,12,3,14],[4,12,38,14]]}
["Personnummer","Summa lästa verksamhetspoäng","summa_poäng_orientering_modersmål","summa_poäng_orientering_övriga","Avdrag_poäng_orienteringskurser_modersmål","Avdrag_poäng_orienteringskurser_övriga","Poäng_orienteringskurser_avdrag_totalt","Summa vissa kurser","Vissa kurser andel av lästa poäng","Avdrag vissa kurser","Särskilda skäl tillämpat"]
[]
["Summa",null,null,null,{"$f":"SUBTOTAL(109,Elevblad[Avdrag_poäng_orienteringskurser_modersmål])","v":0},{"$f":"SUBTOTAL(109,Elevblad[Avdrag_poäng_orienteringskurser_övriga])","v":0},{"$f":"SUBTOTAL(109,Elevblad[Poäng_orienteringskurser_avdrag_totalt])","v":0},null,null,{"$f":"SUBTOTAL(109,Elevblad[Avdrag vissa kurser])","v":0},null,null,"Instruktioner"]
[null,null,null,null,null,null,null,null,null,null,null,null,"Kontroll begränsningar kurser"]
[null,null,null,null,null,null,null,null,null,null,null,null,"I tabellen visas elever som har läst för många poäng i orienteringskurser respektive kurser i vissa ämnen. I tabellen visas även hur många poäng som kommer dras av ert redovisade belopp om uppgifterna inte korrigeras i flik 1 Redovisning av elever. Efter att korrigering av orienteringskurser och/eller kurser i vissa ämnen gjorts i flik 1, gå till menyn och tryck på Data och sedan Uppdatera alla (eller den röda knappen nedan). Om ni korrigerar uppgifterna så kommer eleven att försvinna från flik 3.  Se villkor för orienteringskurser respektive kurser i vissa ämnen nedan. \n\nOrienteringskurser\t \t \t \t \nEn orienteringskurs ska motsvara behov som inte finns i en nationell kurs. Kurskoder för orienteringskurserna finns längst ner i kurslistan.\n\nEn elev får läsa högst 400 poäng i orienteringskurser, varav maximalt 200 poäng får avse orienteringskurser som syftar till att ge modersmålsstöd/studiehandledning på modersmål och högst 200 poäng får avse andra orienteringskurser\n\nSumman av lästa orienteringskurser per elev visas i kolumn C respektive kolumn D. Har ni redovisat över 200 poäng i orienteringskurser för modersmålsstöd/studiehandledning på modersmål och/eller mer än 200 poäng i andra orienteringskurser för en elev, kommer Skolverket att räkna bort poäng i handläggningen av er redovisning (se kolumn E och F).\n\t\nKurser i vissa ämnen\t \t \t \t\nKurser i vissa ämnen avser i denna blankett kurser i svenska, svenska som andraspråk, engelska, matematik och samhällskunskap. Dessa kurser ska vara på gymnasial nivå.\n\nKurser i vissa ämnen får högst bestå av 25 procent av en elevs utbildning.\n\nAndel vissa kurser visas i kolumn I. Är siffran högre än 25 procent kan Skolverket komma att räkna bort poäng i er redovisning (se kolumn J) om det inte finns giltiga skäl. Vi kommer skicka ut en komplettering för de elever som läst mer än 25 procent där ni får möjlighet att ange varför eleven läst mer än den tillåtna maxgränsen i vissa ämnen."]

{"sheet":"4. Anpassad utbildning","index":5,"n_rows":58,"n_cols":14,"rows_kept":58,"cut":false,"hidden":false,"merged":[[22,4,22,15],[23,4,29,15],[16,4,18,9],[16,10,18,14],[10,4,11,6],[10,7,11,9],[10,10,11,12],[10,13,11,15],[12,4,12,6],[12,7,12,9],[12,10,12,12],[12,13,12,15],[8,4,9,6],[8,7,9,9],[8,10,9,12],[8,13,9,15],[4,4,5,15],[6,4,7,6],[6,7,7,9],[6,10,7,12],[6,13,7,15]]}
["Ämne","Ämneskod","Lästa verksamhetspoäng per ämne"]
["Administration","ADI",null,null,null,"Summering av redovisat statsbidrag visas nedan när du tryckt på Uppdatera alla under Data i menyn ovan"]
["Bageri- och konditorikunskap","BAE"]
["Barnet i förskolan","BAR"]
["Biologi – naturbruk","BIA",null,null,"Summering anpassad utbildning"]
["Bygg och anläggning","BYO"]
["Digital skapande","DII",null,null,"Ersättningsnivå",null,null,"Totalt lästa verksamhetspoäng",null,null,"Antal årsstudieplatser",null,null,"Statsbidrag"]
["Entreprenörskap","ENR"]
["Estetisk kommunikation","ESI",null,null,"Orienteringskurser (30 000)",null,null,{"$f":"SUM(Tabell5[Kolumn3])","v":0},null,null,{"$f":"H9/800","v":0},null,null,{"$f":"K9*30000","v":0}]
["Fastighetsskötsel","FAT"]
["Fordonsbranschen","FOB",null,null,"Yrkesämne (110 000)",null,null,{"$f":"SUM(Tabell10[Lästa verksamhetspoäng per ämne])","v":0},null,null,{"$f":"H11/800","v":0},null,null,{"$f":"K11*110000","v":0}]
["Fordonsteknik","FON"]
["Fordonsvård","FOS",null,null,"Summa",null,null,{"$f":"SUM(H9:J12)","v":0},null,null,{"$f":"SUM(K9:M12)","v":0},null,null,{"$f":"SUM(N9:P12)","v":0}]
["Form och design","FOC"]
["Fotografisk bild","FOA"]
["Fritid och friskvård","FRO"]
["Godshantering","GOH",null,null,"Fyll i antal elever som har läst kommunal vuxenutbildning som anpassad utbildning"]
["Handel","HAD"]
["Hantverk och produktion","HAK"]
["Hantverkstekniker","HAE"]
["Hjulutrustningsteknik","HJL"]
["Hotell","HOE"]
["Hälsa","HAS",null,null,"Instruktioner"]
["Hästkunskap","HAU",null,null,"Här fyller ni i antal lästa verksamhetspoäng för de ämnen inom kommunal vuxenutbildning som anpassad utbildning som ni har genomfört inom ramen för statsbidraget under 2023. Ni anger det totala antalet poäng per ämne. Ni ska således fylla i summan av samtliga elevers lästa poäng i respektive ämne.\n\nI den blå rutan anger ni hur många elever som läst inom kommunal vuxenutbildning som anpassad utbildning. Efter att ni har fyllt i uppgifterna gå till menyn och tryck på Data och sedan Uppdatera alla (eller den röda knappen nedan).\n"]
["Industriell produktion","INE"]
["Information och kommunikation","INM"]
["Inköp och logistik","INP"]
["Lager och terminal","LAE"]
["Lantbruksdjur","LAB"]
["Livsmedels- och näringskunskap","LIS"]
["Lokalvård","LOK"]
["Material och verktyg","MAV"]
["Matlagningskunskap","MAG"]
["Matupplevelser","MAU"]
["Medieproduktion","MEO"]
["Motor- och röjmotorsåg","MOO"]
["Måleri","MAF"]
["Måltids- och branschkunskap","MAD"]
["Människan","MNN"]
["Människokroppen","MAP"]
["Naturbruk","NAA"]
["Naturbruksteknik","NAS"]
["Serveringskunskap","SEE"]
["Service och bemötande","SEC"]
["Skogsbruk","SKS"]
["Skötsel av utemiljöer","SKE"]
["Sällskapsdjur","SAK"]
["Trädgårdsanläggning","TRG"]
["Trädgårdsodling","TRO"]
["Verkstadsteknik","VES"]
["Vård och omsorg","VAR"]
["Växtkunskap","VAX"]
["Växtodling","VAL"]
[]
[]
[]
[]
["Kolumn1","Kolumn2","Kolumn3"]

{"sheet":"5. Övriga uppgifter","index":6,"n_rows":44,"n_cols":23,"rows_kept":44,"cut":false,"hidden":false,"merged":[[16,0,17,13],[42,1,43,12],[19,1,40,12],[0,0,1,13],[3,1,4,12],[5,1,6,3],[5,4,6,6],[8,1,10,12],[12,1,13,3],[12,4,13,6]]}
["Redovisning arbetsplats och handledare"]
[null,null,null,null,null,null,null,null,null,null,null,null,null,null,null,null,null,null,"Årsstudieplatser","Sekretesselever","Särskild utbildning","Totalt","Maxbelopp arbetsgivare"]
[null,null,null,null,null,null,null,null,null,null,null,null,null,null,null,null,null,null,{"$f":"sammanfattning[[#Totals],[Antal årsstudieplatser]]","v":0},{"$f":"'0. Sekretesselever'!K15","v":0},{"$f":"'4. Anpassad utbildning'!K13","v":0},{"$f":"SUM(S3:U3)","v":0},{"$f":"ROUNDDOWN(V3*40000,0)","v":0}]
[null,"Statsbidrag lämnas med högst 40 000 kronor per årsstudieplats för ersättning till arbetsplatsen. "]
[]
[null,"Fyll i redovisat belopp för ersättning till arbetsplatsen"]
[]
[]
[null,"Statsbidrag lämnas med högst 3 500 kronor för varje handledare som fullföljt en handledarutbildning och tagit emot en elev på arbetsplatsen. Bidrag lämnas enbart för handledare som bidrag itne lämnats för tidigare."]
[]
[]
[]
[null,"Fyll i redovisat belopp för handledarutbildning",null,null,0]
[]
[]
[]
["Kombinationsutbildning"]
[]
[]
[null,"Enligt förordning (2016:937) är en kombinationsutbildning en yrkesutbildning som kombineras med utbildning i sfi och/eller sva, samt stödjande insatser som syftar till att ge eleverna ökade möjligheter att nå målen.\n\nFör att en utbildning ska ses som en kombinationsutbildning ska utbildningen utformas så att yrkeskurser och sfi/sva läses samtidigt. Sfi/sva och yrkeskurser kan läsas parallellt eller integrerat. Att först erbjuda enbart språkutbildning och sedan erbjuda enbart yrkesutbildning är inte en kombinationsutbildning.\n\nYrkesstudier och språkstudier ska kombineras med stödjande insatser på sådant sätt att det bidrar till att ge eleverna ökade möjligheter att nå målen för utbildningen. Stödjande insatser måste vara något utöver det som redan erbjuds. En orienteringskurs är inte en stödjande insats. Insatserna kan till exempel handla om att öka flexibiliteten, ge extra stöd eller andra anpassningar och även att utöka den pedagogiska personalen eller liknande. \n\nSkolverket kan komma att kontrollera:\n- Om eleven varit inskriven på sfi/sva samtidigt som eleven varit inskriven på yrkeskurser.\n- Huvudmannens motivering till att eleven läst en kombinationsutbildning \n- Vilka stödjande insatser eleven tagit del av \n- Huvudmannens beskrivning av på vilket sätt de stödjande insatserna har bidragit till att öka elevens måluppfyllnad"]
[]
[]
[]
[]
[]
[]
[]
[]
[]
[]
[]
[]
[]
[]
[]
[]
[]
[]
[]
[]
[]
[]
[null,"(Välj)",null,null,null,null,null,null,null,null,null,null,null,null,null,null,null,null,null,null,"(Välj)"]
[null,null,null,null,null,null,null,null,null,null,null,null,null,null,null,null,null,null,null,null,"Ja, vi intygar att samtliga redovisade elever har läst en lärlingsutbildning kombinerat med sfi/sva och stödjande insatser"]

{"sheet":"6. Sammanställning redovisning","index":7,"n_rows":100,"n_cols":8,"rows_kept":100,"cut":false,"hidden":false,"merged":[[66,1,66,4],[66,6,66,9],[100,1,107,9],[67,1,68,9],[71,0,72,10],[74,1,77,9],[80,1,87,9],[90,1,97,9],[99,1,99,9],[58,1,59,3],[58,4,59,6],[58,7,59,9],[60,1,61,3],[60,4,61,6],[60,7,61,9],[56,1,57,3],[56,4,57,6],[56,7,57,9],[28,1,29,4],[28,6,29,9],[31,1,32,4],[31,6,32,9],[37,1,38,9],[40,1,42,9],[44,0,44,10],[46,1,49,9],[54,1,55,3],[54,4,55,6],[54,7,55,9],[51,1,52,4],[51,6,52,9],[16,1,17,4],[16,6,17,9],[20,1,21,4],[20,6,21,9],[24,1,25,4],[24,6,25,9],[12,1,13,4],[12,6,13,9],[0,0,1,10],[4,1,5,4],[4,6,5,9],[8,1,9,4],[8,6,9,9]]}
["Summering av er redovisning"]
[]
[]
[]
[null,"Ange huvudsökande kommun",null,null,null,null,"Huvudsökande"]
[]
[]
[]
[null,"Beviljat belopp",null,null,null,null,{"$f":"VLOOKUP(G5,'Sammanställning ansökan'!A:B,2,FALSE)","v":"Beviljat belopp"}]
[]
[]
[]
[null,"Redovisat belopp i fliken\n1. Redovisning av elever",null,null,null,null,{"$f":"IFERROR(sammanfattning[[#Totals],[Summa statsbidrag]],\"\")","v":0}]
[]
[]
[]
[null,"Redovisat belopp i fliken\n4. Anpassad utbildning",null,null,null,null,{"$f":"IFERROR('4. Anpassad utbildning'!N13,\"\")","v":0}]
[]
[]
[]
[null,"Redovisat belopp i fliken\n0. Sekretesselever",null,null,null,null,{"$f":"IFERROR('0. Sekretesselever'!N15,\"\")","v":0}]
[]
[]
[]
[null,"Redovisat belopp i fliken\n5. Övriga uppgifter",null,null,null,null,{"$f":"IFERROR('5. Övriga uppgifter'!E6+'5. Övriga uppgifter'!E13,\"\")","v":0}]
[]
[]
[]
[null,"Redovisat belopp innan handläggning",null,null,null,null,{"$f":"IFERROR(G13+G17+G21+G25+H61,\"\")","v":0}]
[]
[]
[null,"Belopp som ska återbetalas",null,null,null,null,{"$f":"IFERROR(IF(G29>G9,0,G9-G29),\"\")","v":""}]
[]
[]
[null,"Kontrollera att ni intygat villkor om kombinationsutbildningar i flik 5. Övriga uppgifter"]
[null,"Kontrollera att ni lämnat uppgifter om utbildningsanordnare i flik 5. Övriga uppgifter"]
[]
[null,"Har ni angett felaktiga personnummer eller kurskoder har dessa poäng inte räknats med i er redovisning. Kontrollera uppgifterna i flik 2. Kontroll personnummer kurskod. "]
[]
[]
[null,"I handläggningen kommer vi begära komplettering gällande dubbletter och för högt redovisade poäng i vissa teoretiska kurser. Ert redovisade belopp kan komma att ändras efter handläggningen av er redovisning."]
[]
[]
[]
["Bearbetade uppgifter i handläggningen"]
[]
[null,"Nedan summeras ytterligare poäng som vi räknat bort i handläggningen. Kontrollera orienteringskurser och vissa teoretiska kurser i flik 3. Kontroll begränsning kurser. Dubbletter har vi kontrollerat i komplettering. Se kompletteringsformulär för eleverna som räknats bort."]
[]
[]
[]
[]
[null,"Redovisat belopp efter handläggning",null,null,null,null,{"$f":"H57-H59-H61","v":0}]
[]
[]
[null,"Uppgift som har kontrollerats",null,null,"Borträknade poäng",null,null,"Motsvarar i statsbidrag"]
[]
[null,"Orienteringskurser",null,null,{"$f":"Elevblad[[#Totals],[Poäng_orienteringskurser_avdrag_totalt]]","v":0},null,null,{"$f":"IFERROR(E57*37.5,\"\")","v":0}]
[]
[null,"Vissa teoretiska kurser",null,null,{"$f":"SUMIFS(Elevblad[Avdrag vissa kurser],Elevblad[Särskilda skäl tillämpat],\"<>JA\")","v":0},null,null,{"$f":"IFERROR(E59*37.5,\"\")","v":0}]
[]
[null,"Dubbletter",null,null,{"$f":"Dubblettkontroll!K3","v":0},null,null,{"$f":"IFERROR(E61*37.5,\"\")","v":0}]
[]
[]
[]
[]
[]
[null,"Ange fakturareferens:"]
[null,"Ange fakturareferens ni vill ha på fakturan för Lärlingsvux vid eventuellt återkrav av bidraget. Uppgiften är inte obligatorisk. Ni kan ange max 25 tecken."]
[]
[]
[]
["Eventuellt medskick"]
[]
[]
[null,"Vi jobbar för att förbättra vårt arbete med statsbidragen inom regionalt yrkesvux. Vi har även en löpande dialog med Utbildningsdepartementet kring statsbidragen. Det skulle vara värdefullt för oss att ta del av era synpunkter. Uppgifterna är frivilliga och kommer enbart användas för vårt interna arbete."]
[]
[]
[]
[]
[null,"Hur har bidragsåret 2023 upplevts? (ansökningsfasen, löpande ansökan, redovisning)"]
[]
[]
[]
[]
[]
[]
[]
[]
[]
[null,"Hur skulle Skolverket kunna förbättra sitt arbete med statsbidragen för att underlätta för er?"]
[]
[]
[]
[]
[]
[]
[]
[]
[]
[null,"Vad vill ni att Skolverket lyfter i kommunikationen med Utbildningsdepartementet?\n(vi kommer sammanställa samtliga svar och inte lämna vidare enskilda svar)"]

{"sheet":"Sammanställning ansökan","index":8,"n_rows":41,"n_cols":19,"rows_kept":41,"cut":false,"hidden":false,"merged":[]}
["Huvudsökande","Beviljat belopp","Antal samverkande kommuner","Kommun 1","Kommun 2","Kommun 3","Kommun 4","Kommun 5","Kommun 6","Kommun 7","Kommun 8","Kommun 9","Kommun 10","Kommun 11","Kommun 12","Kommun 13","Kommun 14","Kommun 15","Kommun 16"]
["ALVESTA KOMMUN",10789763,7,"ALVESTA KOMMUN","LJUNGBY KOMMUN","MARKARYDS KOMMUN","ÄLMHULTS KOMMUN","VÄXJÖ KOMMUN","LESSEBO KOMMUN","UPPVIDINGE KOMMUN"]
["BORLÄNGE KOMMUN",13483000,15,"BORLÄNGE KOMMUN","AVESTA KOMMUN","FALU KOMMUN","GAGNEFS KOMMUN","HEDEMORA KOMMUN","LEKSANDS KOMMUN","LUDVIKA KOMMUN","MALUNG-SÄLENS KOMMUN","MORA KOMMUN","ORSA KOMMUN","RÄTTVIKS KOMMUN","SMEDJEBACKENS KOMMUN","SÄTERS KOMMUN","VANSBRO KOMMUN","ÄLVDALENS KOMMUN"]
["BORÅS KOMMUN",5375000,8,"BORÅS KOMMUN","BOLLEBYGDS KOMMUN","HERRLJUNGA KOMMUN","MARKS KOMMUN","SVENLJUNGA KOMMUN","TRANEMO KOMMUN","VÅRGÅRDA KOMMUN","ULRICEHAMNS KOMMUN"]
["ESKILSTUNA KOMMUN",1767500,6,"ESKILSTUNA KOMMUN","FLENS KOMMUN","GNESTA KOMMUN","KATRINEHOLMS KOMMUN","STRÄNGNÄS KOMMUN","VINGÅKERS KOMMUN"]
["ESLÖVS KOMMUN",7023000,12,"ESLÖVS KOMMUN","BURLÖVS KOMMUN","HÖRBY KOMMUN","HÖÖRS KOMMUN","KÄVLINGE KOMMUN","LOMMA KOMMUN","LUNDS KOMMUN","MALMÖ KOMMUN","STAFFANSTORPS KOMMUN","SVEDALA KOMMUN","TRELLEBORGS KOMMUN","VELLINGE KOMMUN"]
["FAGERSTA KOMMUN",1815000,3,"FAGERSTA KOMMUN","NORBERGS KOMMUN","SKINNSKATTEBERGS KOMMUN"]
["GISLAVEDS KOMMUN",5594666,4,"GISLAVEDS KOMMUN","GNOSJÖ KOMMUN","VÄRNAMO KOMMUN","VAGGERYDS KOMMUN"]
["GÄVLE KOMMUN",6890000,5,"GÄVLE KOMMUN","OCKELBO KOMMUN","ÄLVKARLEBY KOMMUN","HOFORS KOMMUN","SANDVIKENS KOMMUN"]
["GÖTEBORGS KOMMUN",28664250,13,"GÖTEBORGS KOMMUN","ALE KOMMUN","HÄRRYDA KOMMUN","KUNGSBACKA KOMMUN","KUNGÄLVS KOMMUN","LILLA EDETS KOMMUN","LERUMS KOMMUN","MÖLNDALS KOMMUN","PARTILLE KOMMUN","STENUNGSUNDS KOMMUN","TJÖRNS KOMMUN","ÖCKERÖ KOMMUN","ALINGSÅS KOMMUN"]
["HALMSTADS KOMMUN",7252000,5,"HALMSTADS KOMMUN","LAHOLMS KOMMUN","HYLTE KOMMUN","FALKENBERGS KOMMUN","VARBERGS KOMMUN"]
["HELSINGBORGS KOMMUN",5070000,11,"HELSINGBORGS KOMMUN","BJUVS KOMMUN","BÅSTADS KOMMUN","HÖGANÄS KOMMUN","KLIPPANS KOMMUN","LANDSKRONA KOMMUN","PERSTORPS KOMMUN","SVALÖVS KOMMUN","ÄNGELHOLMS KOMMUN","ÅSTORPS KOMMUN","ÖRKELLJUNGA KOMMUN"]
["HUDIKSVALLS KOMMUN",3715756,3,"HUDIKSVALLS KOMMUN","LJUSDALS KOMMUN","OVANÅKERS KOMMUN"]
["HULTSFREDS KOMMUN",4081204,3,"HULTSFREDS KOMMUN","VÄSTERVIKS KOMMUN","VIMMERBY KOMMUN"]
["Hälsinglands Utbildningsförbund",4324000,3,"NORDANSTIGS KOMMUN","SÖDERHAMNS KOMMUN","BOLLNÄS KOMMUN"]
["KALMAR KOMMUN",2620500,6,"KALMAR KOMMUN","BORGHOLMS KOMMUN","EMMABODA KOMMUN","MÖRBYLÅNGA KOMMUN","NYBRO KOMMUN","TORSÅS KOMMUN"]
["KARLSHAMNS KOMMUN",14396663,6,"KARLSHAMNS KOMMUN","KARLSKRONA KOMMUN","RONNEBY KOMMUN","SÖLVESBORGS KOMMUN","OLOFSTRÖMS KOMMUN","TINGSRYDS KOMMUN"]
["KARLSTADS KOMMUN",17902986,16,"KARLSTADS KOMMUN","ARVIKA KOMMUN","EDA KOMMUN","FILIPSTADS KOMMUN","FORSHAGA KOMMUN","GRUMS KOMMUN","HAGFORS KOMMUN","HAMMARÖ KOMMUN","KILS KOMMUN","KRISTINEHAMNS KOMMUN","MUNKFORS KOMMUN","STORFORS KOMMUN","SUNNE KOMMUN","SÄFFLE KOMMUN","TORSBY KOMMUN","ÅRJÄNGS KOMMUN"]
["KRISTIANSTADS KOMMUN",1454000,5,"KRISTIANSTADS KOMMUN","BROMÖLLA KOMMUN","HÄSSLEHOLMS KOMMUN","ÖSTRA GÖINGE KOMMUN","OSBY KOMMUN"]
["KUNGSÖRS KOMMUN",1120500,3,"KUNGSÖRS KOMMUN","ARBOGA KOMMUN","KÖPINGS KOMMUN"]
["Kunskapsförbundet Väst",1877000,4,"ÅMÅLS KOMMUN","MELLERUDS KOMMUN","TROLLHÄTTANS KOMMUN","VÄNERSBORGS KOMMUN"]
["LIDINGÖ KOMMUN",4707000,5,"LIDINGÖ KOMMUN","SIGTUNA KOMMUN","SOLLENTUNA KOMMUN","SOLNA KOMMUN","UPPLANDS VÄSBY KOMMUN"]
["LULEÅ KOMMUN",9624123,7,"LULEÅ KOMMUN","ARJEPLOGS KOMMUN","ARVIDSJAURS KOMMUN","BODENS KOMMUN","KALIX KOMMUN","PITEÅ KOMMUN","ÄLVSBYNS KOMMUN"]
["MUNKEDALS KOMMUN",2965500,5,"MUNKEDALS KOMMUN","LYSEKILS KOMMUN","SOTENÄS KOMMUN","STRÖMSTADS KOMMUN","TANUMS KOMMUN"]
["NORRKÖPINGS KOMMUN",9702500,13,"NORRKÖPINGS KOMMUN","LINKÖPINGS KOMMUN","MOTALA KOMMUN","ÖDESHÖGS KOMMUN","BOXHOLMS KOMMUN","FINSPÅNGS KOMMUN","SÖDERKÖPINGS KOMMUN","VALDEMARSVIKS KOMMUN","KINDA KOMMUN","YDRE KOMMUN","ÅTVIDABERGS KOMMUN","VADSTENA KOMMUN","MJÖLBY KOMMUN"]
["NORRTÄLJE KOMMUN",10020729,5,"NORRTÄLJE KOMMUN","SUNDBYBERGS KOMMUN","EKERÖ KOMMUN","JÄRFÄLLA KOMMUN","UPPLANDS-BRO KOMMUN"]
["NYNÄSHAMNS KOMMUN",7972918,3,"NYNÄSHAMNS KOMMUN","HANINGE KOMMUN","TYRESÖ KOMMUN"]
["REGION GOTLAND",2573706,2,"REGION GOTLAND","GOTLANDS KOMMUN"]
["SJÖBO KOMMUN",4583726,5,"SJÖBO KOMMUN","YSTAD KOMMUN","TOMELILLA KOMMUN","SIMRISHAMNS KOMMUN","SKURUPS KOMMUN"]
["SKÖVDE KOMMUN",8305000,15,"SKÖVDE KOMMUN","ESSUNGA KOMMUN","FALKÖPINGS KOMMUN","GRÄSTORPS KOMMUN","GULLSPÅNGS KOMMUN","GÖTENE KOMMUN","HJO KOMMUN","KARLSBORGS KOMMUN","LIDKÖPINGS KOMMUN","MARIESTADS KOMMUN","SKARA KOMMUN","TIBRO KOMMUN","TIDAHOLMS KOMMUN","TÖREBODA KOMMUN","VARA KOMMUN"]
["SOLLEFTEÅ KOMMUN",5265449,4,"SOLLEFTEÅ KOMMUN","KRAMFORS KOMMUN","HÄRNÖSANDS KOMMUN","ÖRNSKÖLDSVIKS KOMMUN"]
["STOCKHOLMS KOMMUN",6471000,3,"STOCKHOLMS KOMMUN","NACKA KOMMUN","VÄRMDÖ KOMMUN"]
["TÄBY KOMMUN",827497,5,"TÄBY KOMMUN","DANDERYDS KOMMUN","VALLENTUNA KOMMUN","VAXHOLMS KOMMUN","ÖSTERÅKERS KOMMUN"]
["UDDEVALLA KOMMUN",3998751,3,"UDDEVALLA KOMMUN","FÄRGELANDA KOMMUN","ORUST KOMMUN"]
["UMEÅ KOMMUN",9960000,15,"UMEÅ KOMMUN","BJURHOLMS KOMMUN","DOROTEA KOMMUN","LYCKSELE KOMMUN","MALÅ KOMMUN","NORDMALINGS KOMMUN","NORSJÖ KOMMUN","ROBERTSFORS KOMMUN","SKELLEFTEÅ KOMMUN","SORSELE KOMMUN","STORUMANS KOMMUN","VILHELMINA KOMMUN","VINDELNS KOMMUN","VÄNNÄS KOMMUN","ÅSELE KOMMUN"]
["UPPSALA KOMMUN",3372500,7,"UPPSALA KOMMUN","ENKÖPINGS KOMMUN","HEBY KOMMUN","HÅBO KOMMUN","KNIVSTA KOMMUN","TIERPS KOMMUN","ÖSTHAMMARS KOMMUN"]
["VÄSTERÅS KOMMUN",7643946,4,"VÄSTERÅS KOMMUN","HALLSTAHAMMARS KOMMUN","SALA KOMMUN","SURAHAMMARS KOMMUN"]
["ÖREBRO KOMMUN",10675000,12,"ÖREBRO KOMMUN","KARLSKOGA KOMMUN","DEGERFORS KOMMUN","KUMLA KOMMUN","HALLSBERGS KOMMUN","LEKEBERGS KOMMUN","LINDESBERGS KOMMUN","NORA KOMMUN","HÄLLEFORS KOMMUN","LJUSNARSBERGS KOMMUN","LAXÅ KOMMUN","ASKERSUNDS KOMMUN"]
["ÖSTERSUNDS KOMMUN",1240500,8,"ÖSTERSUNDS KOMMUN","BERGS KOMMUN","BRÄCKE KOMMUN","HÄRJEDALENS KOMMUN","KROKOMS KOMMUN","RAGUNDA KOMMUN","STRÖMSUNDS KOMMUN","ÅRE KOMMUN"]
[]
["Totalt",{"$f":"SUM(B2:B40)","v":255126633},{"$f":"SUM(Tabell35[Antal samverkande kommuner])","v":259}]

{"sheet":"7. EU-medel","index":9,"n_rows":15,"n_cols":6,"rows_kept":15,"cut":false,"hidden":false,"merged":[[12,1,13,2],[12,4,13,5],[0,2,0,5],[1,0,1,6],[4,1,4,4],[6,1,6,4],[8,1,8,4],[10,1,10,4]]}
[null,null,"Statsbidrag för regional yrkesinriktad vuxenutbildning delfinansierades av EU-medel under bidragsåret 2023. "]
["Insamling av samtliga aktörer som bedrivit utbildning finansierad av Lärlingsvux kombination under år 2023"]
[]
[]
[null,"För 2020-2023 har Skolverket tilldelats EU-medel som delfinansierar statsbidrag (2016:937) för regional yrkesinriktad vuxenutbildning. \n\nSkolverket samlar in uppgifter från er för att sedan rapportera vidare till Ekonomistyrningsverket och Europeiska kommissionen. Enligt 36 § tredje stycket i förordning (2016:937) ska ni lämna sådan ekonomisk och annan redovisning som Ekonomistyrningsverket och Europeiska kommissionen begär."]
[]
[null,"Skolverket behöver rapporter in samltiga aktörer som bedrivit utbildning inom regionalt yrkesvux under 2023. I den här fliken ska ni fylla i information om upphandlad utbildning samt information om kommuner/kommunalförbund som bedrivit utbildning i egen regi."]
[]
[null,"Vänstra tabellen\nI vänstra tabellen ska du fylla i de utbildningsanordnare som ni, eller kommuner i er samverkansgrupp, har upphandlat utbildning från. Har ni upphandlat utbildning från en annan kommun så ska den kommunen fyllas i som utbildningsanordnare."]
[]
[null,"Högra tabellen\nI högra tabellen ska ni fylla i de kommuner/kommunalförbund i ert samverkansområde som bedrivit utbildning i egen regi."]
[]
[null,"Fyll i samtliga utbildningsanordnare från vilka ni, eller kommuner i er samverkansgrupp, \nhar upphandlat utbildning från. \nUtbildningen ska ha bekostats av statsbidraget för Lärlingsvux kombination.",null,null,"Fyll i samtliga kommuner/kommunalförbund i er samverkansgrupp som bedrivit \nutbildning i egen regi. \nUtbildningen ska ha bekostats av statsbidraget för Lärlingsvux kombination."]
[]
[null,"Namn på utbildningsanordnare","Organisationsnummer för utbildningsanordnare",null,"Namn på kommun/kommunalförbund som bedrivit utbildning i egen regi","Organisationsnummer för kommunen/kommunalförbundet"]

{"sheet":"Kurslista","index":10,"n_rows":1030,"n_cols":6,"rows_kept":1030,"cut":false,"hidden":false,"merged":[[1005,1,1005,5]]}
[]
[]
[]
[null,"Kurslista - Statsbidrag för regional yrkesinriktad vuxenutbildning",null,null,null,"Uppdaterad 2023-12-20"]
[]
[null,"Kurser inom kommunal vuxenutbildning som berättigar till statsbidrag för regional yrkesinriktad vuxenutbildning"]
[]
[null,"Kursnamn","Kurskod","Poäng","Ämne","Statsbidrag per årsstudieplats"]
[null,"Administration – specialisering","ADMADM00S",100,"Administration",110000]
[null,"Administration 1","ADMADM01",100,"Administration",110000]
[null,"Administration 2","ADMADM02",100,"Administration",110000]
[null,"Personaladministration","ADMPER0",100,"Administration",110000]
[null,"Receptions- och konferensservice","ADMREC0",100,"Administration",110000]
[null,"Affärskommunikation","AFFAFÄ00S",100,"Affärskommunikation",110000]
[null,"Aktiviteter och upplevelser","AKTAKT0",100,"Aktiviteter och värdskap",110000]
[null,"Besöksnäringen","AKTBEO0",100,"Aktiviteter och värdskap",110000]
[null,"Guide och reseledare","AKTGUI0",100,"Aktiviteter och värdskap",110000]
[null,"Turistbyråservice","AKTTUR0",100,"Aktiviteter och värdskap",110000]
[null,"Värdskap på resmålet","AKTVAR0",100,"Aktiviteter och värdskap",110000]
[null,"Anatomi och fysiologi 1","ANOANA01",50,"Anatomi och fysiologi 1",110000]
[null,"Anatomi och fysiologi 2","ANOANA02",50,"Anatomi och fysiologi 2",110000]
[null,"Animation – specialisering","ANIANI00S",100,"Animation",110000]
[null,"Animation 1","ANIANI01",100,"Animation",110000]
[null,"Animation 2","ANIANI02",100,"Animation",110000]
[null,"Anläggning – stensättning","ANLANG0",100,"Anläggning",110000]
[null,"Anläggning – gröna ytor","ANLANL0",200,"Anläggning",110000]
[null,"Anläggning 1","ANLANL01",100,"Anläggning",110000]
[null,"Anläggning 2","ANLANL02",200,"Anläggning",110000]
[null,"Anläggning – vägbyggnad","ANLANN0",100,"Anläggning",110000]
[null,"Anläggningsprocessen","ANLANS0",200,"Anläggning",110000]
[null,"Anläggning – ledningsbyggnad","ANLANÄ0",200,"Anläggning",110000]
[null,"Anläggningsförare 1","ANAANA01",200,"Anläggningsförare",110000]
[null,"Anläggningsförare 2","ANAANA02",200,"Anläggningsförare",110000]
[null,"Anläggningsförare 3","ANAANA03",200,"Anläggningsförare",110000]
[null,"Anläggningsförare 4","ANAANA04",200,"Anläggningsförare",110000]
[null,"Anläggningsförare – process","ANAANL0",100,"Anläggningsförare",110000]
[null,"Arkitektur – rum","ARKARI0",100,"Arkitektur",110000]
[null,"Arkitektur – hus","ARKARK0",100,"Arkitektur",110000]
[null,"Reparation av motorcyklar och ATV","ATVREP0",200,"ATV- och MC-teknik",110000]
[null,"ATV och motorcykel","ATOATV0","200","ATV- och motorcykelteknik",110000]
[null,"Allmän automationsteknik","AUTALL0",100,"Automationsteknik",110000]
[null,"Avhjälpande och förebyggande underhåll","AUTAVH0",100,"Automationsteknik",110000]
[null,"Elmotordrivsystem","AUTELD0",100,"Automationsteknik",110000]
[null,"Fastighetsautomation 1","AUTFAS01",100,"Automationsteknik",110000]
[null,"Fastighetsautomation 2","AUTFAS02",100,"Automationsteknik",110000]
[null,"Industriautomation","AUTIND0",100,"Automationsteknik",110000]
[null,"Robotteknik","AUTROB0",100,"Automationsteknik",110000]
[null,"Allmän automationsteknik","AUOALL0",100,"Automatiserade system",110000]
[null,"Avhjälpande och förebyggande underhåll","AUOAVH0",100,"Automatiserade system",110000]
[null,"Bageri – specialisering","BAGBAG00S",100,"Bageri- och konditorikunskap",110000]
[null,"Bageri 1","BAGBAG01",100,"Bageri- och konditorikunskap",110000]
[null,"Bageri 2","BAGBAG02",200,"Bageri- och konditorikunskap",110000]
[null,"Bageri 3","BAGBAG03",100,"Bageri- och konditorikunskap",110000]
[null,"Bageri 4","BAGBAG04",100,"Bageri- och konditorikunskap",110000]
[null,"Choklad och konfektyr","BAGCHO0",100,"Bageri- och konditorikunskap",110000]
[null,"Konditori – specialisering","BAGKON00S",100,"Bageri- och konditorikunskap",110000]
[null,"Konditori 1","BAGKON01",100,"Bageri- och konditorikunskap",110000]
[null,"Konditori 2","BAGKON02",200,"Bageri- och konditorikunskap",110000]
[null,"Konditori 3","BAGKON03",100,"Bageri- och konditorikunskap",110000]
[null,"Konditori 4","BAGKON04",100,"Bageri- och konditorikunskap",110000]
[null,"Barn- och ungdomssjukvård","BAOBAN0",200,"Barn- och ungdomsvård",110000]
[null,"Barn- och ungdomshälsa","BAOBAR0",100,"Barn- och ungdomsvård",110000]
[null,"Banskötsel för hästsport","BANBAN0",100,"Barnskötsel för hästsport",110000]
[null,"Beläggningsmaskiner","BELBEG0",100,"Beläggning",110000]
[null,"Beläggning","BELBEL0",200,"Beläggning",110000]
[null,"Beläggningsarbeten","BELBEÄ0",100,"Beläggning",110000]
[null,"Bergborrning","BERBEB0",200,"Berghantering",110000]
[null,"Bergmaskiner","BERBEM0",100,"Berghantering",110000]
[null,"Bergsprängning","BERBEP0",200,"Berghantering",110000]
[null,"Bergarbeten","BERBER0",200,"Berghantering",110000]
[null,"Betong 1 – lågform och platta på mark","BETBET01",100,"Betong",110000]
[null,"Betong 2 – väggar och pelare","BETBET02",100,"Betong",110000]
[null,"Betong 3 – bärlag","BETBET03",100,"Betong",110000]
[null,"Betong 4 – golv","BETBET04",100,"Betong",110000]
[null,"Biodling","BINBIO0",100,"Biodling",110000]
[null,"Bevarandebiologi","BIGBEA0",100,"Biologi – naturbruk",110000]
[null,"Biologi – naturbruk – specialisering","BIGBIG00S",100,"Biologi – naturbruk",110000]
[null,"Djurens biologi","BIGDJE0",100,"Biologi – naturbruk",110000]
[null,"Marken och växternas biologi","BIGMAN0",100,"Biologi – naturbruk",110000]
[null,"Biologi i vattenmiljöer 1","BIIVAT01",100,"Biologi i vattenmiljöer",110000]
[null,"Biologi i vattenmiljöer 2","BIIVAT02",100,"Biologi i vattenmiljöer",110000]
[null,"Biologi i vattenmiljöer 3","BIIVAT03",100,"Biologi i vattenmiljöer",110000]
[null,"Akut omhändertagande","BEVAKU0",100,"Brand, bevakning och säkerhet",110000]
[null,"Bevakning och säkerhet","BEVBEV0",300,"Brand, bevakning och säkerhet",110000]
[null,"Brand och räddning","BEVBRA0",200,"Brand, bevakning och säkerhet",110000]
[null,"Vardagsolyckor","BEVVAR0",100,"Brand, bevakning och säkerhet",110000]
[null,"Bussteknik","BUSBUS0",100,"Bussteknik",110000]
[null,"Bygg och anläggning 1","BYGBYG01",200,"Bygg och anläggning",110000]
[null,"Bygg och anläggning 2","BYGBYG02",200,"Bygg och anläggning",110000]
[null,"Kustnavigation och säkerhet","BATKUS0",100,"Båtkunskap",110000]
[null,"Skärgårdsnavigation","BATSKA0",100,"Båtkunskap",110000]
[null,"Cad 1","CADCAD01",50,"Cad (computer aided design) ",110000]
[null,"Cad 2","CADCAD02",50,"Cad (computer aided design) ",110000]
[null,"Cad 3","CADCAD03",50,"Cad (computer aided design) ",110000]
[null,"Charkuteri – specialisering","CHACHA00S",100,"Charkuterikunskap",110000]
[null,"Charkuteri 1","CHACHA01",100,"Charkuterikunskap",110000]
[null,"Charkuteri 2","CHACHA02",100,"Charkuterikunskap",110000]
[null,"Charkuteri 3","CHACHA03",200,"Charkuterikunskap",110000]
[null,"Charkuteri 4","CHACHA04",100,"Charkuterikunskap",110000]
[null,"Dator- och nätverksteknik","DAODAC0",100,"Dator- och kommunikationsteknik",110000]
[null,"Datorsamordning och support","DAODAT0",100,"Dator- och kommunikationsteknik",110000]
[null,"Datorteknik 1a","DAODAT01a",100,"Dator- och kommunikationsteknik",110000]
[null,"Datorteknik 1b","DAODAT01b",100,"Dator- och kommunikationsteknik",110000]
[null,"Digital kommunikationsteknik","DAODIG0",100,"Dator- och kommunikationsteknik",110000]
[null,"Industriell informationsteknik","DAOINU0",100,"Dator- och kommunikationsteknik",110000]
[null,"Multimediasystem","DAOMUL0",100,"Dator- och kommunikationsteknik",110000]
[null,"Datoriserad mönsterhantering 1","DAIMON01",100,"Datoriserad mönsterhantering",110000]
[null,"Datoriserad mönsterhantering 2","DAIMON02",100,"Datoriserad mönsterhantering",110000]
[null,"Cad/cam","DARCAD0",100,"Datorstyrd produktion",110000]
[null,"Datorstyrd produktion 1","DARDAT01S",100,"Datorstyrd produktion",110000]
[null,"Datorstyrd produktion 2","DARDAT02",100,"Datorstyrd produktion",110000]
[null,"Datorstyrd produktion 3","DARDAT03",100,"Datorstyrd produktion",110000]
[null,"Datorstyrd produktion 4","DARDAT04",100,"Datorstyrd produktion",110000]
[null,"Datorstyrd produktion 5","DARDAT05",100,"Datorstyrd produktion",110000]
[null,"Datorstyrd produktion 6","DARDAT06",100,"Datorstyrd produktion",110000]
[null,"Programmerbara datorsystem – spårfordon","DAYPRO0",200,"Datorsystem – spårfordon",110000]
[null,"Designmodeller","DESDES0",100,"Design",110000]
[null,"Design 1","DESDES01",100,"Design",110000]
[null,"Design 2","DESDES02",100,"Design",110000]
[null,"Digitalt skapande 1","DIGDIG01",100,"Digitalt skapande",110000]
[null,"Digitalt skapande 2","DIGDIG02",100,"Digitalt skapande",110000]
[null,"Djurhållning","DJUDJH0",100,"Djur",110000]
[null,"Djur i zoohandel","DJUDJI0",200,"Djur",110000]
[null,"Djuren i naturbruket","DJUDJR0",100,"Djur",110000]
[null,"Djur – specialisering","DJUDJU00S",100,"Djur",110000]
[null,"Sällskapsdjur 1","DJUSÄL01",100,"Djur",110000]
[null,"Sällskapsdjur 2","DJUSÄL02",100,"Djur",110000]
[null,"Djur för forskningsändamål","DJFDJU0",200,"Djur för forskningsändamål",110000]
[null,"Djurparksdjur 1","DJPDJU01",100,"Djurparksdjur",110000]
[null,"Djurparksdjur 2","DJPDJU02",100,"Djurparksdjur",110000]
[null,"Djurvård inom djurens hälso- och sjukvård 1","DJRDJU01",100,"Djurvård inom djurens hälso- och sjukvård",110000]
[null,"Djurvård inom djurens hälso- och sjukvård 2","DJRDJU02",200,"Djurvård inom djurens hälso- och sjukvård",110000]
[null,"Avhjälpande underhåll 1","DRIAVH01",100,"Driftsäkerhet och underhåll",110000]
[null,"Avhjälpande underhåll 2","DRIAVH02",100,"Driftsäkerhet och underhåll",110000]
[null,"Underhåll – driftsäkerhet","DRIUND0",100,"Driftsäkerhet och underhåll",110000]
[null,"Underhåll – elteknik","DRIUNE0",100,"Driftsäkerhet och underhåll",110000]
[null,"Underhåll – hydraulik och pneumatik","DRIUNH0",100,"Driftsäkerhet och underhåll",110000]
[null,"Underhåll – mekatronik","DRIUNL0",100,"Driftsäkerhet och underhåll",110000]
[null,"Underhåll – produktionsmekanik","DRIUNO0",100,"Driftsäkerhet och underhåll",110000]
[null,"Underhåll – pneumatik","DRIUNP0",100,"Driftsäkerhet och underhåll",110000]
[null,"Underhåll – hydraulik","DRIUNR0",100,"Driftsäkerhet och underhåll",110000]
[null,"Underhåll – transmissioner och uppriktning","DRIUNT0",100,"Driftsäkerhet och underhåll",110000]
[null,"Underhåll – pumpteknik","DRIUNU0",100,"Driftsäkerhet och underhåll",110000]
[null,"Underhåll – vibrationsteknik","DRIUNV0",100,"Driftsäkerhet och underhåll",110000]
[null,"Underhåll – lager och smörjteknik","DRIUNÅ0",100,"Driftsäkerhet och underhåll",110000]
[null,"Barteknik","DRYBAT0",100,"Dryckeskunskap",110000]
[null,"Drycker och ansvarsfull alkoholservering","DRYDRC0",100,"Dryckeskunskap",110000]
[null,"Drycker","DRYDRY0",100,"Dryckeskunskap",110000]
[null,"Drycker – specialisering","DRYDRY00S",100,"Dryckeskunskap",110000]
[null,"Däckstjänst 1","DACDAC01",300,"Däckstjänst",110000]
[null,"Däckstjänst 2","DACDAC02",300,"Däckstjänst",110000]
[null,"Fartygsbefäl","DACFAR0",100,"Däckstjänst",110000]
[null,"Radiokommunikation till sjöss","DACRAD0",50,"Däckstjänst",110000]
[null,"El- och hybridfordon 1","ELCELO01",100,"El- och hybridfordonsteknik",110000]
[null,"El- och hybridfordon 2","ELCELO02",100,"El- och hybridfordonsteknik",110000]
[null,"El- och verkstadsteknik","VERVER0",100,"El- och verkstadsteknik",110000]
[null,"Belysningsnät","ELDBEY0",100,"Eldistributionsteknik",110000]
[null,"Högspänningsnät","ELDHÖG0",100,"Eldistributionsteknik",110000]
[null,"Lågspänningsnät","ELDLÅS0",100,"Eldistributionsteknik",110000]
[null,"Nätunderhållsarbete på luftledningsnät 0,4–24kV","ELDNÄD0",100,"Eldistributionsteknik",110000]
[null,"Nätunderhållsarbete i vindkraftnät","ELDNÄN0",100,"Eldistributionsteknik",110000]
[null,"Nät- och transformatorstationer","ELDNÄT0",100,"Eldistributionsteknik",110000]
[null,"Nätunderhållsarbete i stadsnät","ELDNÄU0",100,"Eldistributionsteknik",110000]
[null,"Elektronik och mikrodatorteknik","ELEELR0",100,"Elektronik",110000]
[null,"Låg- och högfrekvenskretsar","ELELÅG0",100,"Elektronik",110000]
[null,"Mikrodatortillämpningar","ELEMIK0",100,"Elektronik",110000]
[null,"Elektronik – spårfordon","ELNELE0",100,"Elektronik – spårfordon",110000]
[null,"Elektronikproduktionsteknik","ELKELO0",100,"Elektronikproduktion",110000]
[null,"Provning och kontrollarbete","ELKPRV0",100,"Elektronikproduktion",110000]
[null,"Bild- och ljudanläggningar","ELTBID0",100,"Elektroniksystem",110000]
[null,"Kontorstekniksystem","ELTKOT0",100,"Elektroniksystem",110000]
[null,"Marina elektroniksystem","ELTMAR0",100,"Elektroniksystem",110000]
[null,"Trådlösa radiosystem","ELTTRL0",100,"Elektroniksystem",110000]
[null,"Bild- och ljudanläggningar","ELOBID0",100,"Elektroniksystem – installation och underhåll",110000]
[null,"Kontorstekniksystem","ELOKOT0",100,"Elektroniksystem – installation och underhåll",110000]
[null,"Trådlösa radiosystem","ELOTRL0",100,"Elektroniksystem – installation och underhåll",110000]
[null,"Antenn- och kabel-TV-teknik","ELRANT0",100,"Elektroteknik",110000]
[null,"Data- och medianät","ELRDAA0",100,"Elektroteknik",110000]
[null,"Elkraftteknik","ELRELF0",100,"Elektroteknik",110000]
[null,"Elektromekanik","ELRELK0",100,"Elektroteknik",110000]
[null,"Elementmontering","ELMELM0",100,"Elementmontering",110000]
[null,"Elkraft och traktion – spårfordon","ELFELK0",150,"Elkraft och traktion – spårfordon",110000]
[null,"Ellära 1","ELLELL01",100,"Ellära",110000]
[null,"Ellära 2","ELLELL02",100,"Ellära",110000]
[null,"Praktisk ellära","ELLPRA0",100,"Ellära",110000]
[null,"Ellära – spårfordon 1","LLAELL01",100,"Ellära – spårfordon",110000]
[null,"Ellära – spårfordon 2","LLAELL02",100,"Ellära – spårfordon",110000]
[null,"Digitalteknik och flyginstrument","ELADIG0",100,"Ellära och digitalteknik – flyg",110000]
[null,"Ellära – flyg","ELAELL0",100,"Ellära och digitalteknik – flyg",110000]
[null,"Elmotordrivsystem","ELIELD0",100,"Elmotordrivsystem",110000]
[null,"Elmätteknik 1","ELÄELM01",100,"Elmätteknik",110000]
[null,"Elmätteknik 2","ELÄELM02",100,"Elmätteknik",110000]
[null,"Installationer","ELPINS0",100,"Elprojektering",110000]
[null,"Projektering","ELPPRO0",200,"Elprojektering",110000]
[null,"Energiteknik 1","ENEENE01",100,"Energiteknik",110000]
[null,"Energiteknik 2","ENEENE02",100,"Energiteknik",110000]
[null,"Förnybar energi","ENEFÖR0",100,"Energiteknik",110000]
[null,"Vatten- och processkemi","ENEVAE0",100,"Energiteknik",110000]
[null,"Entreprenörskap","ENTENR0",100,"Entreprenörskap",110000]
[null,"Estetisk kommunikation 1","ESTEST01",100,"Estetisk kommunikation",110000]
[null,"Estetisk kommunikation 2","ESTEST02",100,"Estetisk kommunikation",110000]
[null,"Estetisk kommunikation 3","ESTEST03",100,"Estetisk kommunikation",110000]
[null,"Eventteknik","EVEEVN0",100,"Eventteknik",110000]
[null,"Ljudproduktionsteknik","EVELJD0",100,"Eventteknik",110000]
[null,"Ljus- och bildproduktionsteknik","EVELJS0",100,"Eventteknik",110000]
[null,"Lasthantering och passagerarsäkerhet","FARLAS0",100,"Fartygsteknik",110000]
[null,"Skeppsteknik","FARSKE0",50,"Fartygsteknik",110000]
[null,"Fastighetsautomation 1","FAIFAS01",100,"Fastighetsautomation",110000]
[null,"Fastighetsautomation 2","FAIFAS02",100,"Fastighetsautomation",110000]
[null,"Fastighetsförvaltning","FAFFAS0",100,"Fastighetsförvaltning",110000]
[null,"Fastighetskommunikation","FAFFAT0",100,"Fastighetsförvaltning",110000]
[null,"Informationsteknik i fastighetsförvaltning","FAFINF0",100,"Fastighetsförvaltning",110000]
[null,"Fastighetsservice – VVS","FASFAE0",100,"Fastighetsservice",110000]
[null,"Fastighetsservice – elarbeten","FASFAH0",100,"Fastighetsservice",110000]
[null,"Fastighetsservice – byggnader","FASFAS0",100,"Fastighetsservice",110000]
[null,"Fastighetsservice – ytor","FASFAV0",100,"Fastighetsservice",110000]
[null,"Filmproduktion","FILFIL0",100,"Film- och tv-produktion",110000]
[null,"Film- och tv-produktion 1","FILFIL01",100,"Film- och tv-produktion",110000]
[null,"Film- och tv-produktion 2","FILFIL02",100,"Film- och tv-produktion",110000]
[null,"Manus för film och tv","FILMAN0",100,"Film- och tv-produktion",110000]
[null,"Tv-produktion","FILTVP0",100,"Film- och tv-produktion",110000]
[null,"Fiske 1","FISFIS01",100,"Fiske ",110000]
[null,"Fiske 2","FISFIS02",200,"Fiske ",110000]
[null,"Fiske 3","FISFIS03",100,"Fiske ",110000]
[null,"Fiskevård 1","FIKFIS01",100,"Fiskevård",110000]
[null,"Fiskevård 2","FIKFIS02",200,"Fiskevård",110000]
[null,"Fiskevård 3","FIKFIS03",100,"Fiskevård",110000]
[null,"Flerbränslefordon","FLEFLR0",100,"Flerbränslefordonsteknik",110000]
[null,"Flygplansteknik","FLPFLY0",200,"Flygplansteknik",110000]
[null,"Fälthållning","FLGFAL0",200,"Flygplatsteknik",110000]
[null,"Flygplatsen","FLGFLY0",200,"Flygplatsteknik",110000]
[null,"Aerodynamik","FLYAER0",100,"Flygyrkesteknik",110000]
[null,"Digitalteknik och flyginstrument","FLYDII0",100,"Flygyrkesteknik",110000]
[null,"Ellära – flyg","FLYELL0",100,"Flygyrkesteknik",110000]
[null,"Elektronik – flyg","FLYELT0",100,"Flygyrkesteknik",110000]
[null,"Flygplanslära","FLYFLG0",200,"Flygyrkesteknik",110000]
[null,"Flyglagstiftning","FLYFLY0",50,"Flygyrkesteknik",110000]
[null,"Gasturbinmotorer","FLYGAT0",200,"Flygyrkesteknik",110000]
[null,"Helikopterlära","FLYHEL0",200,"Flygyrkesteknik",110000]
[null,"Kolvmotor","FLYKOL0",200,"Flygyrkesteknik",110000]
[null,"Materiallära – flyg","FLYMAA0",100,"Flygyrkesteknik",110000]
[null,"Mänskliga faktorer","FLYMAS0",100,"Flygyrkesteknik",110000]
[null,"Underhållsteknik – flyg","FLYUNS0",200,"Flygyrkesteknik",110000]
[null,"Fordon och redskap","FOHFOR0",100,"Fordon och redskap inom naturbruk",110000]
[null,"Fordons- och transportbranschens villkor och arbetsområden","FORFOD0",200,"Fordons- och transportbranschen",110000]
[null,"Fordonsteknik – introduktion","FODFOO0",200,"Fordonsteknik",110000]
[null,"Fordonstestteknik","FOOFOR0",200,"Fordonstestteknik",110000]
[null,"Miljöer och utrustning för fordonstest","FOOMIL0",200,"Fordonstestteknik",110000]
[null,"Fackteckning och design","FOMFAC0",100,"Formgivning",110000]
[null,"Formgivning 1","FOMFOR01S",100,"Formgivning",110000]
[null,"Formgivning 2","FOMFOR02S",100,"Formgivning",110000]
[null,"Formgivning 3","FOMFOR03S",100,"Formgivning",110000]
[null,"Textil färg och form","FOMTEX0",100,"Formgivning",110000]
[null,"Bad- och friskvårdsanläggningar","FRIBAD0",100,"Fritids- och friskvårdsverksamheter",110000]
[null,"Drift och underhåll av fritidsanläggningar","FRIDRF0",100,"Fritids- och friskvårdsverksamheter",110000]
[null,"Fritidsmiljöer och arenor","FRIFRS0",100,"Fritids- och friskvårdsverksamheter",110000]
[null,"Fritids- och friskvårdsverksamheter","FRIFRT0",200,"Fritids- och friskvårdsverksamheter",110000]
[null,"Fritids- och idrottskunskap","FRTFRD0",100,"Fritids- och idrottskunskap",110000]
[null,"Båtsystem","FRDBAS0",200,"Fritidsbåtteknik",110000]
[null,"Båthantering och underhåll","FRDBAT0",100,"Fritidsbåtteknik",110000]
[null,"Konstruktion och reparation 1","FRDKON01",200,"Fritidsbåtteknik",110000]
[null,"Konstruktion och reparation 2","FRDKON02",200,"Fritidsbåtteknik",110000]
[null,"Plast- och lamineringsteknik","FRDPLA0",100,"Fritidsbåtteknik",110000]
[null,"Funktionsförmåga och funktionsnedsättning 1","FUTFUN01",100,"Funktionsförmåga och funktionsnedsättning",110000]
[null,"Funktionsförmåga och funktionsnedsättning 2","FUTFUN02",100,"Funktionsförmåga och funktionsnedsättning",110000]
[null,"Entreprenörskap och företagande","FÖRENT0",100,"Företagsekonomi",110000]
[null,"Företagsekonomi - specialisering","FÖRFÖR00S",100,"Företagsekonomi",110000]
[null,"Företagsekonomi 1","FÖRFÖR01",100,"Företagsekonomi",110000]
[null,"Företagsekonomi 2","FÖRFÖR02",100,"Företagsekonomi",110000]
[null,"Marknadsföring","FÖRMAD0",100,"Företagsekonomi",110000]
[null,"Redovisning 1","FÖRRED01",100,"Företagsekonomi",110000]
[null,"Redovisning 2","FÖRRED02",100,"Företagsekonomi",110000]
[null,"Servicekunskap 1*","FÖSSEV01",100,"Försäljning och kundservice",110000]
[null,"Servicekunskap 2*","FÖSSER02",100,"Försäljning och kundservice",110000]
[null,"Personlig försäljning 1","FÖSPER01",100,"Försäljning och kundservice",110000]
[null,"Personlig försäljning 2","FÖSPER02",100,"Försäljning och kundservice",110000]
[null,"Personlig försäljning 3","FÖSPER03",100,"Försäljning och kundservice",110000]
[null,"Servicekunskap","FÖSSEV0",100,"Försäljning och kundservice",110000]
[null,"Telefon- och internetservice","FÖSTEL0",100,"Försäljning och kundservice",110000]
[null,"Gasturbinmotorer","GASGAS0",200,"Gasturbinmotorer – flyg",110000]
[null,"Gerontologi och geriatrik","GERGER0",100,"Gerontologi och geriatrik",110000]
[null,"Godshantering – vux","GODGOD1",100,"Godshantering",110000]
[null,"Hantering av varor och gods","GODHAT0",200,"Godshantering",110000]
[null,"Lastbärare","GODLAS0",200,"Godshantering",110000]
[null,"Maskinell godshantering","GODMAL0",200,"Godshantering",110000]
[null,"Tunga arbetsmaskiner","GODTUN0",200,"Godshantering",110000]
[null,"Godstrafik","GOSGOD0",200,"Godstransporter",110000]
[null,"Godstransporter – specialisering","GOSGOD00S",100,"Godstransporter",110000]
[null,"Lastbilsmonterad kran","GOSLAL0",100,"Godstransporter",110000]
[null,"Golvläggning 1","GOLGOL01",100,"Golvläggning",110000]
[null,"Golvläggning 2 – våtrum","GOLGOL02",100,"Golvläggning",110000]
[null,"Golvläggning 3 – trä och laminat","GOLGOL03",200,"Golvläggning",110000]
[null,"Grafiska arbetsflöden och analysmodeller","GRAGRA0",100,"Grafisk kommunikation",110000]
[null,"Grafisk kommunikation 1","GRAGRA01",100,"Grafisk kommunikation",110000]
[null,"Grafisk kommunikation 2","GRAGRA02",100,"Grafisk kommunikation",110000]
[null,"Grafisk illustration","GRAGRI0",100,"Grafisk kommunikation",110000]
[null,"Grafisk illustration i pixelgrafik","GRAGRP0",100,"Grafisk kommunikation",110000]
[null,"Original, reproduktion och prepress","GRAGRR0",100,"Grafisk kommunikation",110000]
[null,"Grafisk illustration i vektorgrafik","GRAGRV0",100,"Grafisk kommunikation",110000]
[null,"Grafisk produktion 1","GRFGRF01",100,"Grafisk produktion",110000]
[null,"Grafisk produktion 2","GRFGRF02",100,"Grafisk produktion",110000]
[null,"Grafisk produktion 3","GRFGRF03",100,"Grafisk produktion",110000]
[null,"Grafisk produktion 4","GRFGRF04",100,"Grafisk produktion",110000]
[null,"Grundläggande vård och omsorg","GRUGRD0",100,"Grundläggande vård och omsorg",110000]
[null,"Gränssnitt 3D","GRÄGRN0",100,"Gränssnittsdesign",110000]
[null,"Gränssnittsdesign","GRÄGRÄ0",100,"Gränssnittsdesign",110000]
[null,"Grönyte- och småmaskinsteknik","GROGRO0",100,"Grönyte- och småmaskinsteknik",110000]
[null,"Branschkunskap inom handel*","HANBRA0",100,"Handel",110000]
[null,"Handel och hållbar utveckling","HANHAN0",100,"Handel",110000]
[null,"Affärsutveckling och ledarskap","HANAFR0",100,"Handel",110000]
[null,"Branschkunskap inom handel och administration","HANBRS0",100,"Handel",110000]
[null,"Handel – specialisering","HANHAN00S",100,"Handel",110000]
[null,"Praktisk marknadsföring 1","HANPRA01",100,"Handel",110000]
[null,"Praktisk marknadsföring 2","HANPRA02",100,"Handel",110000]
[null,"Praktisk marknadsföring 3","HANPRA03",100,"Handel",110000]
[null,"Barberare 2*","HAVBAR02",200,"Hantverk",110000]
[null,"Barberare 3 *","HAVBAR03",200,"Hantverk",110000]
[null,"Barberare 4 *","HAVBAR04",200,"Hantverk",110000]
[null,"Barberare 5 *","HAVBAR05",100,"Hantverk",110000]
[null,"Barberare 6a *","HAVBAR06a",100,"Hantverk",110000]
[null,"Barberare 6b *","HAVBAR06b",50,"Hantverk",110000]
[null,"Finsnickeri 1","HAVFIN01",200,"Hantverk",110000]
[null,"Finsnickeri 2","HAVFIN02",200,"Hantverk",110000]
[null,"Finsnickeri 3","HAVFIN03",200,"Hantverk",110000]
[null,"Finsnickeri 4","HAVFIN04",200,"Hantverk",110000]
[null,"Finsnickeri 4 – specialisering","HAVFIN04S",50,"Hantverk",110000]
[null,"Finsnickeri 5","HAVFIN05",200,"Hantverk",110000]
[null,"Finsnickeri 5 – specialisering","HAVFIN05S",50,"Hantverk",110000]
[null,"Finsnickeri 6a","HAVFIN06a",100,"Hantverk",110000]
[null,"Finsnickeri 6b","HAVFIN06b",50,"Hantverk",110000]
[null,"Florist 1","HAVFLO01",200,"Hantverk",110000]
[null,"Florist 2","HAVFLO02",200,"Hantverk",110000]
[null,"Florist 3","HAVFLO03",200,"Hantverk",110000]
[null,"Florist 4","HAVFLO04",200,"Hantverk",110000]
[null,"Florist 4 – specialisering","HAVFLO04S",50,"Hantverk",110000]
[null,"Florist 5","HAVFLO05",200,"Hantverk",110000]
[null,"Florist 5 – specialisering","HAVFLO05S",50,"Hantverk",110000]
[null,"Florist 6a","HAVFLO06a",100,"Hantverk",110000]
[null,"Florist 6b","HAVFLO06b",50,"Hantverk",110000]
[null,"Frisör 1","HAVFRI01",200,"Hantverk",110000]
[null,"Frisör 2","HAVFRI02",200,"Hantverk",110000]
[null,"Frisör 3","HAVFRI03",200,"Hantverk",110000]
[null,"Frisör 4","HAVFRI04",200,"Hantverk",110000]
[null,"Frisör 4 – specialisering","HAVFRI04S",50,"Hantverk",110000]
[null,"Frisör 5","HAVFRI05",200,"Hantverk",110000]
[null,"Frisör 5 – specialisering","HAVFRI05S",50,"Hantverk",110000]
[null,"Frisör 6a","HAVFRI06a",100,"Hantverk",110000]
[null,"Frisör 6b","HAVFRI06b",50,"Hantverk",110000]
[null,"Hår- och makeupstylist 2 *","HAVHAR02",200,"Hantverk",110000]
[null,"Hår- och makeupstylist 3 *","HAVHAR03",200,"Hantverk",110000]
[null,"Hår- och makeupstylist 4 *","HAVHAR04",200,"Hantverk",110000]
[null,"Hår- och makeupstylist 5 *","HAVHAR05",200,"Hantverk",110000]
[null,"Hantverk – introduktion","HAVHAV0",200,"Hantverk",110000]
[null,"Hantverksteknik 1","HAVHNT01",200,"Hantverk",110000]
[null,"Hantverksteknik 2","HAVHNT02",200,"Hantverk",110000]
[null,"Hantverksteknik 3","HAVHNT03",200,"Hantverk",110000]
[null,"Hantverksteknik 4","HAVHNT04",200,"Hantverk",110000]
[null,"Hantverksteknik 4 – specialisering","HAVHNT04S",50,"Hantverk",110000]
[null,"Hantverksteknik 5","HAVHNT05",200,"Hantverk",110000]
[null,"Hantverksteknik 5 – specialisering","HAVHNT05S",50,"Hantverk",110000]
[null,"Hantverksteknik 6a","HAVHNT06a",100,"Hantverk",110000]
[null,"Hantverksteknik 6b","HAVHNT06b",50,"Hantverk",110000]
[null,"Textil design 1","HAVTEX01",200,"Hantverk",110000]
[null,"Textil design 2","HAVTEX02",200,"Hantverk",110000]
[null,"Textil design 3","HAVTEX03",200,"Hantverk",110000]
[null,"Textil design 4","HAVTEX04",200,"Hantverk",110000]
[null,"Textil design 4 – specialisering","HAVTEX04S",50,"Hantverk",110000]
[null,"Textil design 5","HAVTEX05",200,"Hantverk",110000]
[null,"Textil design 5 – specialisering","HAVTEX05S",50,"Hantverk",110000]
[null,"Textil design 6a","HAVTEX06a",100,"Hantverk",110000]
[null,"Textil design 6b","HAVTEX06b",50,"Hantverk",110000]
[null,"Material och miljö","HVKMAE0",100,"Hantverkskunskap",110000]
[null,"Material","HVKMAT0",50,"Hantverkskunskap",110000]
[null,"Miljö","HVKMIL0",50,"Hantverkskunskap",110000]
[null,"Tradition och utveckling","HVKTRA0",100,"Hantverkskunskap",110000]
[null,"Helikopterteknik","HELHEL0",200,"Helikopterteknik",110000]
[null,"Hippologi – etologi","HIOHIL0",100,"Hippologi",110000]
[null,"Hippologi – anatomi och fysiologi","HIOHIP0",100,"Hippologi",110000]
[null,"Hippologi – avel och hästens hälsa","HIOHIO0",100,"Hippologi",110000]
[null,"Hjulutrustning – specialisering","HJUHJT00S",100,"Hjulutrustningsteknik",110000]
[null,"Hjulutrustning","HJUHJU0",200,"Hjulutrustningsteknik",110000]
[null,"Frukost och bufféservering","HOTFRU0",100,"Hotell",110000]
[null,"Hotelladministration","HOTHOT0",100,"Hotell",110000]
[null,"Logi","HOTLOG0",100,"Hotell",110000]
[null,"Reception 1","HOTREC01",100,"Hotell",110000]
[null,"Reception 2","HOTREC02",100,"Hotell",110000]
[null,"Reception 3","HOTREC03",100,"Hotell",110000]
[null,"Våningsservice 1","HOTVÅN01",100,"Hotell",110000]
[null,"Våningsservice 2","HOTVÅN02",100,"Hotell",110000]
[null,"Våningsservice 3","HOTVÅN03",100,"Hotell",110000]
[null,"Hundkunskap 1","HUNHUN01",100,"Hundkunskap",110000]
[null,"Hundkunskap 2","HUNHUN02",100,"Hundkunskap",110000]
[null,"Hundkunskap 3","HUNHUN03",100,"Hundkunskap",110000]
[null,"Träning av hund","HUNTRN0",100,"Hundkunskap",110000]
[null,"Husbyggnadsprocessen","HUSHUB0",200,"Husbyggnad",110000]
[null,"Husbyggnad 1","HUSHUS01",100,"Husbyggnad",110000]
[null,"Husbyggnad 2","HUSHUS02",200,"Husbyggnad",110000]
[null,"Husbyggnad 3 – ombyggnad","HUSHUS03",200,"Husbyggnad",110000]
[null,"Specialyrken 1","HUBSPC01S",100,"Husbyggnad – specialyrken",110000]
[null,"Specialyrken 2","HUBSPC02S",200,"Husbyggnad – specialyrken",110000]
[null,"Specialyrken 3","HUBSPC03S",200,"Husbyggnad – specialyrken",110000]
[null,"Husvagnar och husbilar","HUVHUS0",300,"Husvagns- och husbilsteknik",110000]
[null,"Hygien","HYGHYG0",100,"Hygienkunskap",110000]
[null,"Hållbart samhällsbyggande","HÅLHÅB0",100,"Hållbart samhälle",110000]
[null,"Miljö- och energikunskap","HÅLMIJ0",100,"Hållbart samhälle",110000]
[null,"Politik och hållbar utveckling","HÅLPOL0",100,"Hållbart samhälle",110000]
[null,"Ergonomi","HALERG0",100,"Hälsa",110000]
[null,"Hälsopedagogik","HALHAL0",100,"Hälsa",110000]
[null,"Hälsopedagogik","HALHAL0 ",100,"Hälsa",110000]
[null,"Kost och hälsa","HALKOC0",100,"Hälsa",110000]
[null,"Mental träning","HALMEN0",100,"Hälsa",110000]
[null,"Hälso- och sjukvård 1","HAOHAL01",100,"Hälso- och sjukvård",110000]
[null,"Hälso- och sjukvård 2","HAOHAL02",100,"Hälso- och sjukvård",110000]
[null,"Räddningsmedicin","HAORAD0",100,"Hälso- och sjukvård",110000]
[null,"Barnhälsovård","HAABAR0",100,"Hälsovård",110000]
[null,"Friskvård och hälsa","HAAFRI0",100,"Hälsovård",110000]
[null,"Komplementärmedicin","HAAKOM0",100,"Hälsovård",110000]
[null,"Kost, måltid och munhälsa","HAAKOS0",100,"Hälsovård",110000]
[null,"Den unga hästens utveckling 1a","HÄTDEN01a",100,"Hästkunskap",110000]
[null,"Den unga hästens utveckling 1b","HÄTDEN01b",100,"Hästkunskap",110000]
[null,"Den unga hästens utveckling 2","HÄTDEN02",100,"Hästkunskap",110000]
[null,"Hästkunskap 1","HÄTHÄS01",100,"Hästkunskap",110000]
[null,"Hästkunskap 2","HÄTHÄS02",100,"Hästkunskap",110000]
[null,"Hästkunskap 3","HÄTHÄS03",100,"Hästkunskap",110000]
[null,"Industriautomation","INRIND0",100,"Industriautomation",110000]
[null,"Robotteknik","INRROB0",100,"Industriautomation",110000]
[null,"VVS TIG-svetsning rör","INVVVI0",100,"Industrirör svets VVS",110000]
[null,"VVS MMA-svetsning rör","INVVVS0",100,"Industrirör svets VVS",110000]
[null,"VVS svets industrirör","INVVVV0",200,"Industrirör svets VVS",110000]
[null,"Industrirörteknik 1","INDIND01",100,"Industrirörteknik",110000]
[null,"Industrirörteknik 2","INDIND02",100,"Industrirörteknik",110000]
[null,"Industrirörteknik 3","INDIND03",200,"Industrirörteknik",110000]
[null,"Industriteknisk fördjupning 1","PRFPRF01",50,"Industriteknisk fördjupning",110000]
[null,"Industriteknisk fördjupning 2","PRFPRF02",50,"Industriteknisk fördjupning",110000]
[null,"Industritekniska processer 1","INUINU01",100,"Industritekniska processer",110000]
[null,"Industritekniska processer 2","INUINU02",100,"Industritekniska processer",110000]
[null,"Industritekniska processer 3","INUINU03",100,"Industritekniska processer",110000]
[null,"Industritekniska processer 4","INUINU04",100,"Industritekniska processer",110000]
[null,"Laboratorieteknik","INULAB0",200,"Industritekniska processer",110000]
[null,"Intern och extern kommunikation","INFINE0",100,"Information och kommunikation",110000]
[null,"Information och kommunikation 1","INFINF01",100,"Information och kommunikation",110000]
[null,"Information och kommunikation 2","INFINF02",100,"Information och kommunikation",110000]
[null,"Programhantering","INFPRG0",100,"Information och kommunikation",110000]
[null,"Inköp 1","INKINK01",100,"Inköp och logistik",110000]
[null,"Inköp 2","INKINK02",100,"Inköp och logistik",110000]
[null,"Logistik 1","INKLOG01",100,"Inköp och logistik",110000]
[null,"Logistik 2","INKLOG02",100,"Inköp och logistik",110000]
[null,"Transport och spedition","INKTRP0",100,"Inköp och logistik",110000]
[null,"Belysningsteknik","INSBES0",100,"Installationsteknik",110000]
[null,"Elinstallationer","INSELI0",200,"Installationsteknik",110000]
[null,"Elmotorstyrning","INSELS0",100,"Installationsteknik",110000]
[null,"Kommunikationsnät 1","INSKOM01",100,"Installationsteknik",110000]
[null,"Kommunikationsnät 2","INSKOM02",100,"Installationsteknik",110000]
[null,"Kommunikationsnät 3","INSKOM03",100,"Installationsteknik",110000]
[null,"Sanitet och tappvatten","INTSAN0",50,"Installationsteknik VVS",110000]
[null,"Ventilation och komfortkyla","INTVET0",150,"Installationsteknik VVS",110000]
[null,"Värme- och kylsystem","INTVÄR0",200,"Installationsteknik VVS",110000]
[null,"It i vård och omsorg","ITIITI0",100,"It i vård och omsorg",110000]
[null,"Privatjuridik","JURPRI0",100,"Juridik",110000]
[null,"Rätten och samhället","JURRÄT0",100,"Juridik",110000]
[null,"Affärsjuridik","JURAFF0",100,"Juridik",110000]
[null,"Järnvägsbyggnad 1","JÄRJÄR01",100,"Järnvägsbyggnad",110000]
[null,"Järnvägsbyggnad 2","JÄRJÄR02",200,"Järnvägsbyggnad",110000]
[null,"Järnvägsbyggnad 3","JÄRJÄR03",200,"Järnvägsbyggnad",110000]
[null,"Allmän järnvägsteknik","JÄNALM0",100,"Järnvägsteknik",110000]
[null,"Elteknik","JÄNELN0",300,"Järnvägsteknik",110000]
[null,"Signalteknik","JÄNSIG0",300,"Järnvägsteknik",110000]
[null,"Karosserikonstruktioner och inredning","KARKAR0",200,"Karosseriteknik",110000]
[null,"Riktbänkssystem","KARRIK0",200,"Karosseriteknik",110000]
[null,"Riktningsteknik – introduktion","KARRIT0",200,"Karosseriteknik",110000]
[null,"Skadebesiktning och produktionsflöde","KARSKA0",100,"Karosseriteknik",110000]
[null,"Skarvnings- och sammanfogningsteknik","KARSKR0",300,"Karosseriteknik",110000]
[null,"Småreparationer – karosseri","KARSMA0",100,"Karosseriteknik",110000]
[null,"Kolvmotorer","KOLKOL0",200,"Kolvmotorer – flyg",110000]
[null,"Evenemang","KONEVE0",100,"Konferens och evenemang",110000]
[null,"Konferens och evenemang","KONKOF0",100,"Konferens och evenemang",110000]
[null,"Konferens 1","KONKOF01",100,"Konferens och evenemang",110000]
[null,"Konferens 2","KONKON02",100,"Konferens och evenemang",110000]
[null,"Konferens 3","KONKON03",100,"Konferens och evenemang",110000]
[null,"Rums- och konferensbokning","KONRUM0",100,"Konferens och evenemang",110000]
[null,"Konsthantverk 1","KOHHAN01",100,"Konsthantverk",110000]
[null,"Konsthantverk 2","KOHHAN02",100,"Konsthantverk",110000]
[null,"Konsthantverk 3","KOHHAN03",100,"Konsthantverk",110000]
[null,"Konsthantverk 4","KOHHAN04",100,"Konsthantverk",110000]
[null,"Konsthantverk 5","KOHHAN05",100,"Konsthantverk",110000]
[null,"Konstruktion 1","KOTKOS01",100,"Konstruktion",110000]
[null,"Konstruktion 2","KOTKOS02",100,"Konstruktion",110000]
[null,"Konstruktion 3","KOTKOS03",100,"Konstruktion",110000]
[null,"Kraft- och värmeteknik 1","KRAKRA01",200,"Kraft- och värmeteknik",110000]
[null,"Kraft- och värmeteknik 2","KRAKRA02",200,"Kraft- och värmeteknik",110000]
[null,"Reservkraft","KRARER0",100,"Kraft- och värmeteknik",110000]
[null,"Kyl- och värmepumpsteknik – installation","KYLKYC0",200,"Kyl- och värmepumpsteknik",110000]
[null,"Kyl- och värmepumpsteknik – miljö och säkerhet","KYLKYH0",100,"Kyl- och värmepumpsteknik",110000]
[null,"Kyl- och värmepumpsteknik – energieffektivisering","KYLKYL0",100,"Kyl- och värmepumpsteknik",110000]
[null,"Kyl- och värmepumpsteknik – grund","KYLKYO0",100,"Kyl- och värmepumpsteknik",110000]
[null,"Kyl- och värmepumpsteknik – service","KYLKYV0",200,"Kyl- och värmepumpsteknik",110000]
[null,"Baskurs i lackering","LACBAK0",300,"Lackeringsteknik",110000]
[null,"Färg och dekorationslackering","LACFÄR0",100,"Lackeringsteknik",110000]
[null,"Industriell lackering","LACINS0",200,"Lackeringsteknik",110000]
[null,"Lackeringssystem","LACLAC0",200,"Lackeringsteknik",110000]
[null,"Lackeringsteknik – introduktion","LACLAE0",200,"Lackeringsteknik",110000]
[null,"Lackeringsteknik – applicering","LACLAK0",100,"Lackeringsteknik",110000]
[null,"Lackeringsteknik för tunga fordon","LACLAR0",200,"Lackeringsteknik",110000]
[null,"Produktionsflöden","LACPRD0",100,"Lackeringsteknik",110000]
[null,"Småreparationer – lackering","LACSMA0",100,"Lackeringsteknik",110000]
[null,"Lageradministration och terminallogistik","LAGLAG0",200,"Lager och terminal",110000]
[null,"Lagerprocesser","LAGLAP0",200,"Lager och terminal",110000]
[null,"Plocklagerhantering","LAGPLO0",100,"Lager och terminal",110000]
[null,"Lantbruksdjur – specialisering","LANLAN00S",100,"Lantbruksdjur",110000]
[null,"Lantbruksdjur 1","LANLAN01",100,"Lantbruksdjur",110000]
[null,"Lantbruksdjur 2","LANLAN02",100,"Lantbruksdjur",110000]
[null,"Lantbruksmaskiner 1","LAULAT01",100,"Lantbruksmaskiner",110000]
[null,"Lantbruksmaskiner 2","LAULAT02",100,"Lantbruksmaskiner",110000]
[null,"Lantbruksmaskinsteknik","LAKLAN0",100,"Lantbruksmaskinsteknik",110000]
[null,"Brandlarmssystem","LARBRN0",100,"Larm och säkerhetsteknik",110000]
[null,"CCTV-system","LARCCT0",100,"Larm och säkerhetsteknik",110000]
[null,"Inbrottslarmssystem","LARINB0",100,"Larm och säkerhetsteknik",110000]
[null,"Larm-, övervaknings- och säkerhetssystem","LARLAM0",100,"Larm och säkerhetsteknik",110000]
[null,"Passersystem","LARPAS0",100,"Larm och säkerhetsteknik",110000]
[null,"Lastbilar och mobila maskiner – förbränningsmotorer","LAILAT0",200,"Lastbilar – reparations- och systemteknik",110000]
[null,"Lastbilar – chassi och bromsar","LAPLAC0",100,"Lastbilar – reparations- och systemteknik",110000]
[null,"Lastbilar – kraftöverföring","LAPLAS0",100,"Lastbilar – reparations- och systemteknik",110000]
[null,"Lastbilar – system och diagnosteknik 1","LAPLAS01",100,"Lastbilar – reparations- och systemteknik",110000]
[null,"Lastbilar – system och diagnosteknik 2","LAPLAS02",100,"Lastbilar – reparations- och systemteknik",110000]
[null,"Lastbilar och mobila maskiner – verkstad och elteknik","LAALAS0","100","Lastbilar och mobila maskiner – service och underhållsteknik",110000]
[null,"Lastbilar och mobila maskiner – service och underhåll 1","LAALAS01","100","Lastbilar och mobila maskiner – service och underhållsteknik",110000]
[null,"Lastbilar och mobila maskiner – service och underhåll 2","LAALAS02","100","Lastbilar och mobila maskiner – service och underhållsteknik",110000]
[null,"Lastbilar och mobila maskiner – basteknik","LAALAT0","100","Lastbilar och mobila maskiner – service och underhållsteknik",110000]
[null,"Lastbilspåbyggnad – specialisering","LALLAS00S",100,"Lastbilspåbyggnadsteknik",110000]
[null,"Lastmaskiner och truckar","LASLAA0",100,"Lastmaskiner och truckar inom naturbruk",110000]
[null,"Ledarskap och organisation","LEDLED0",100,"Ledarskap och organisation",110000]
[null,"Livsmedels- och näringskunskap 1","LIVLIV01",100,"Livsmedels- och näringskunskap",110000]
[null,"Livsmedels- och näringskunskap 2","LIVLIV02",100,"Livsmedels- och näringskunskap",110000]
[null,"Film- och interaktiv ljudproduktion","LJUFIL0",100,"Ljudproduktion",110000]
[null,"Ljudproduktion 1","LJULJU01",100,"Ljudproduktion",110000]
[null,"Ljudproduktion 2","LJULJU02",100,"Ljudproduktion",110000]
[null,"Radioproduktion","LJURAD0",100,"Ljudproduktion",110000]
[null,"Låsinstallation","LAOLAS0",200,"Lås- och passerteknik",110000]
[null,"Låsteknik","LAOLAT0",200,"Lås- och passerteknik",110000]
[null,"Mönsterkonstruktion 1","MNUMON01",100,"Manuell mönsterkonstruktion",110000]
[null,"Mönsterkonstruktion 2","MNUMON02",100,"Manuell mönsterkonstruktion",110000]
[null,"Båtel 1","MAIBAT01",100,"Marin el och elektronik",110000]
[null,"Båtel 2","MAIBAT02",100,"Marin el och elektronik",110000]
[null,"Marinelektronik 1","MAIMAR01",100,"Marin el och elektronik",110000]
[null,"Marinelektronik 2","MAIMAR02",100,"Marin el och elektronik",110000]
[null,"Marinelektronik 3","MAIMAR03",100,"Marin el och elektronik",110000]
[null,"Motorelektronik 1","MAIMOT01",100,"Marin el och elektronik",110000]
[null,"Motorelektronik 2","MAIMOT02",100,"Marin el och elektronik",110000]
[null,"Marina elektroniksystem","MAYMAR0",100,"Marina elektroniksystem",110000]
[null,"Diagnos och reparation","MANDIA0",100,"Marinmotorteknik",110000]
[null,"Intervallservice","MANINT0",100,"Marinmotorteknik",110000]
[null,"Marinmotor – introduktion","MANMAR0",100,"Marinmotorteknik",110000]
[null,"Nyinstallation","MANNYI0",100,"Marinmotorteknik",110000]
[null,"Anpassning och montering av utrustning","MASANP0",200,"Maskin- och lastbilsteknik",110000]
[null,"Arbete från servicebil","MASARB0",100,"Maskin- och lastbilsteknik",110000]
[null,"Komfortsystem","MASKOM0",100,"Maskin- och lastbilsteknik",110000]
[null,"Lastbilsmonterad hydraulik och pneumatik","MASLAI0",100,"Maskin- och lastbilsteknik",110000]
[null,"Lastbilar och utrustning","MASLAT0",300,"Maskin- och lastbilsteknik",110000]
[null,"Maskin- och lastbilsteknik – introduktion","MASMAI0",200,"Maskin- och lastbilsteknik",110000]
[null,"Mobila maskiner och utrustning","MASMOB0",300,"Maskin- och lastbilsteknik",110000]
[null,"Mobil hydraulik 1","MASMOB01",100,"Maskin- och lastbilsteknik",110000]
[null,"Mobil hydraulik 2","MASMOB02",100,"Maskin- och lastbilsteknik",110000]
[null,"Reparation av lastbilar och mobila maskiner","MASREP0",300,"Maskin- och lastbilsteknik",110000]
[null,"Styr- och övervakningssystem","MASSTY0",100,"Maskin- och lastbilsteknik",110000]
[null,"Maskinbefäl","MAKMAS0",100,"Maskintjänst",110000]
[null,"Maskintjänst 1","MAKMAS01",300,"Maskintjänst",110000]
[null,"Maskintjänst 2","MAKMAS02",300,"Maskintjänst",110000]
[null,"Massage 1","MAAMAA01",100,"Massage",110000]
[null,"Massage 2","MAAMAA02",100,"Massage",110000]
[null,"Mat och butik – specialisering","MAOMAT00S",100,"Mat och butik",110000]
[null,"Mat och butik 1","MAOMAT01",100,"Mat och butik",110000]
[null,"Mat och butik 2","MAOMAT02",100,"Mat och butik",110000]
[null,"Mat och dryck i kombination","MACMAT0",100,"Mat och dryck i kombination",110000]
[null,"Materialkunskap 1","MAEMAT01",100,"Materialkunskap",110000]
[null,"Materialkunskap 2","MAEMAT02",100,"Materialkunskap",110000]
[null,"Matlagning – specialisering","MALMAL00S",100,"Matlagningskunskap",110000]
[null,"Matlagning 1","MALMAL01",100,"Matlagningskunskap",110000]
[null,"Matlagning 2","MALMAL02",200,"Matlagningskunskap",110000]
[null,"Matlagning 3","MALMAL03",200,"Matlagningskunskap",110000]
[null,"Matlagning 4","MALMAL04",200,"Matlagningskunskap",110000]
[null,"Specialkoster","MALSPE0",100,"Matlagningskunskap",110000]
[null,"Medicin 1","MEDMED01",150,"Medicin",110000]
[null,"Medicin 2","MEDMED02",100,"Medicin",110000]
[null,"Elektromedicinsk teknik","MEIELE0",100,"Medicinsk teknik",110000]
[null,"Gas- och vätsketeknik","MEIGAS0",100,"Medicinsk teknik",110000]
[null,"Radiologiska utrustningar","MEIRAD0",100,"Medicinsk teknik",110000]
[null,"Journalistik, reklam och information 1","MEEJOU01",100,"Mediekommunikation",110000]
[null,"Journalistik, reklam och information 2","MEEJOU02",100,"Mediekommunikation",110000]
[null,"Textkommunikation","MEETET0",100,"Mediekommunikation",110000]
[null,"Medieproduktion 1","MEPMEI01",100,"Medieproduktion",110000]
[null,"Medieproduktion 2","MEPMEI02",100,"Medieproduktion",110000]
[null,"Medier, samhälle och kommunikation 1","MERMEE01",100,"Medier, samhälle och kommunikation",110000]
[null,"Medier, samhälle och kommunikation 2","MERMEE02",100,"Medier, samhälle och kommunikation",110000]
[null,"Mekatronik 1","MEKMEK01",100,"Mekatronik",110000]
[null,"Mekatronik 2","MEKMEK02",100,"Mekatronik",110000]
[null,"Bandschaktare","MOBBAN0",100,"Mobila arbetsmaskiner",110000]
[null,"Grävmaskiner","MOBGRV0",200,"Mobila arbetsmaskiner",110000]
[null,"Hjullastare","MOBHJU0",200,"Mobila arbetsmaskiner",110000]
[null,"Teleskoplastare","MOBTEL0",100,"Mobila arbetsmaskiner",110000]
[null,"Väghyvel","MOBVAG0",200,"Mobila arbetsmaskiner",110000]
[null,"Mobila maskiner – kraftöverföring","MOLMOB0","100","Mobila maskiner – reparations- och systemteknik",110000]
[null,"Mobila maskiner – system- och diagnosteknik 1","MOLMOB01","100","Mobila maskiner – reparations- och systemteknik",110000]
[null,"Mobila maskiner – system- och diagnosteknik 2","MOLMOB02","100","Mobila maskiner – reparations- och systemteknik",110000]
[null,"Mobila maskiner – hydraulsystem","MOLMOI0","200","Mobila maskiner – reparations- och systemteknik",110000]
[null,"Motor- och röjmotorsåg 1","MOTMOT01",100,"Motor- och röjmotorsåg",110000]
[null,"Motor- och röjmotorsåg 2","MOTMOT02",100,"Motor- och röjmotorsåg",110000]
[null,"Mur- och putsverk 1 – grundmurar","MURMUR01",100,"Mur- och putsverk",110000]
[null,"Mur- och putsverk 2 – murverk","MURMUR02",100,"Mur- och putsverk",110000]
[null,"Mur- och putsverk 3 – puts","MURMUR03",100,"Mur- och putsverk",110000]
[null,"Måleri – dekorationstekniker","MARMAE0",100,"Måleri",110000]
[null,"Måleriprocessen","MARMAL0",200,"Måleri",110000]
[null,"Måleri 1","MARMAL01",200,"Måleri",110000]
[null,"Måleri 2","MARMAL02",200,"Måleri",110000]
[null,"Måleri 3","MARMAL03",200,"Måleri",110000]
[null,"Måleri 4","MARMAL04",200,"Måleri",110000]
[null,"Måleri 5","MARMAL05",200,"Måleri",110000]
[null,"Måleri – äldre måleritekniker","MARMAR0",100,"Måleri",110000]
[null,"Branschkunskap inom restaurang och livsmedel","MÅTBRC0",100,"Måltids- och branschkunskap",110000]
[null,"Etik och människans livsvillkor","MÄNETI0",100,"Människan",110000]
[null,"Internationellt arbete ","MÄNINA0",100,"Människan",110000]
[null,"Människan i industrin 1","MÄIMÄN01",100,"Människan i industrin",110000]
[null,"Människan i industrin 2","MÄIMÄN02",100,"Människan i industrin",110000]
[null,"Människans säkerhet","MÄSMÄN0",100,"Människans säkerhet",110000]
[null,"Distribuerade styrsystem","MÄTDIS0",100,"Mät-, styr- och reglerteknik",110000]
[null,"Mät- och styrteknik","MÄTMÄO0",100,"Mät-, styr- och reglerteknik",110000]
[null,"Mät- och reglerteknik","MÄTMÄT0",100,"Mät-, styr- och reglerteknik",110000]
[null,"Programmerbara styrsystem","MÄTPRR0",100,"Mät-, styr- och reglerteknik",110000]
[null,"Datoriserad mönsterhantering 1","MÖNDAT01",100,"Mönsterkonstruktion",110000]
[null,"Datoriserad mönsterhantering 2","MÖNDAT02",100,"Mönsterkonstruktion",110000]
[null,"Mönsterkonstruktion 1","MÖNMÖN01",100,"Mönsterkonstruktion",110000]
[null,"Mönsterkonstruktion 2","MÖNMÖN02",100,"Mönsterkonstruktion",110000]
[null,"Natur- och landskapsvård","NATNAT0",100,"Natur- och landskapsvård",110000]
[null,"Naturbruk","NAUNAU0",200,"Naturbruk",110000]
[null,"Hästsportanläggningars skötsel och drift 1","NARHAS01",100,"Naturbrukets byggnader",110000]
[null,"Hästsportanläggningars skötsel och drift 2","NARHAS02",100,"Naturbrukets byggnader",110000]
[null,"Byggnadsunderhåll","NARBYA0",100,"Naturbrukets byggnader",110000]
[null,"Avverkningsmaskiner","NABAVV0",100,"Naturbruksteknik",110000]
[null,"Fordon och redskap","NABFOR0",100,"Naturbruksteknik",110000]
[null,"Lastmaskiner och truckar","NABLAA0",100,"Naturbruksteknik",110000]
[null,"Lantbruksmaskiner 1","NABLAT01",100,"Naturbruksteknik",110000]
[null,"Lantbruksmaskiner 2","NABLAT02",100,"Naturbruksteknik",110000]
[null,"Skogsmaskiner – specialisering","NABSKO00S",200,"Naturbruksteknik",110000]
[null,"Småskalig skogsteknik","NABSMÅ0",100,"Naturbruksteknik",110000]
[null,"Terrängtransporter","NABTER0",100,"Naturbruksteknik",110000]
[null,"Trädgårdsmaskiner","NABTRG0",100,"Naturbruksteknik",110000]
[null,"Virkestransport med skotare","NABVIE0",100,"Naturbruksteknik",110000]
[null,"Guidning i naturbruksmiljöer","NAGGUD0",100,"Naturguidning",110000]
[null,"Naturguidning 1","NAGNAT01",100,"Naturguidning",110000]
[null,"Naturguidning 2","NAGNAT02",200,"Naturguidning",110000]
[null,"Naturturism 1","NAMNAT01",100,"Naturturism",110000]
[null,"Naturturism 2","NAMNAT02",100,"Naturturism",110000]
[null,"Naturturism 3","NAMNAT03",100,"Naturturism",110000]
[null,"Näthandel 1","NÄTNÄT01",100,"Näthandel",110000]
[null,"Näthandel 2","NÄTNÄT02",100,"Näthandel",110000]
[null,"Administration av nätverks- och serverutrustning","NAIADM0",100,"Nätverksteknik",110000]
[null,"Nätverkssäkerhet","NAINAE0",100,"Nätverksteknik",110000]
[null,"Nätverksteknologier","NAINAK0",100,"Nätverksteknik",110000]
[null,"Nätverksteknik","NAINAR0",100,"Nätverksteknik",110000]
[null,"Nätverksadministration","NAINAV0",100,"Nätverksteknik",110000]
[null,"Administration av nätverks- och serverutrustning","NÄVADM0",100,"Nätverksteknik",110000]
[null,"Nätverkssäkerhet","NÄVNÄE0",100,"Nätverksteknik",110000]
[null,"Nätverksteknologier","NÄVNÄK0",100,"Nätverksteknik",110000]
[null,"Nätverksteknik","NÄVNÄR0",100,"Nätverksteknik",110000]
[null,"Nätverksadministration","NÄVNÄV0",100,"Nätverksteknik",110000]
[null,"Odling av djurfoder","ODLODL0",100,"Odling",110000]
[null,"Odling – specialisering","ODLODL00S",100,"Odling",110000]
[null,"Trädgårdsodling – grönsaker, frukt och bär","ODLTRR0",100,"Odling",110000]
[null,"Trädgårdsodling – plantskoleväxter","ODLTRS0",100,"Odling",110000]
[null,"Trädgårdsodling","ODLTRÅ0",100,"Odling",110000]
[null,"Växtodling 1","ODLVÄT01",100,"Odling",110000]
[null,"Växtodling 2","ODLVÄT02",100,"Odling",110000]
[null,"Odling i växthus – specialisering","ODIODI00S",100,"Odling i växthus",110000]
[null,"Odling i växthus 1","ODIODL01",100,"Odling i växthus",110000]
[null,"Odling i växthus 2","ODIODL02",100,"Odling i växthus",110000]
[null,"Omvårdnad 1","OMVOMV01",100,"Omvårdnad",110000]
[null,"Omvårdnad 2","OMVOMV02",100,"Omvårdnad",110000]
[null,"Aktivitetsledarskap","PEDAKI00S",100,"Pedagogik",110000]
[null,"Barns lärande och växande","PEDBAS0",100,"Pedagogik",110000]
[null,"Kommunikation","PEDKOU0",100,"Pedagogik",110000]
[null,"Lärande och utveckling","PEDLÄR0",100,"Pedagogik",110000]
[null,"Människors miljöer","PEDMÄI0",100,"Pedagogik",110000]
[null,"Pedagogiska teorier och praktiker","PEDPED0",100,"Pedagogik",110000]
[null,"Pedagogiskt ledarskap","PEDPEG0",100,"Pedagogik",110000]
[null,"Socialpedagogik","PEASOC0",100,"Pedagogik i vård och omsorg",110000]
[null,"Vårdpedagogik och handledning","PEAVÅD0",100,"Pedagogik i vård och omsorg",110000]
[null,"Dramapedagogik","PEGDRA0",100,"Pedagogiskt arbete",110000]
[null,"Pedagogiskt arbete","PEGPEA0",200,"Pedagogiskt arbete",110000]
[null,"Skapande verksamhet","PEGSKP0",100,"Pedagogiskt arbete",110000]
[null,"Personbilar - chassi och bromsar","REPPEO0",100,"Personbilar – reparations- och systemteknik",110000]
[null,"Personbilar – förbränningsmotorer","REPPER0",100,"Personbilar – reparations- och systemteknik",110000]
[null,"Personbilar – system och diagnosteknik 1","REPPER01",200,"Personbilar – reparations- och systemteknik",110000]
[null,"Personbilar – system och diagnosteknik 2","REPPER02",100,"Personbilar – reparations- och systemteknik",110000]
[null,"Personbilar – kraftöverföring","REPPES0",100,"Personbilar – reparations- och systemteknik",110000]
[null,"Personbilar – basteknik ","SEOPEB0",100,"Personbilar – service och underhållsteknik",110000]
[null,"Personbilar – verkstad och elteknik","SEOPER0",100,"Personbilar – service och underhållsteknik",110000]
[null,"Personbilar – service och underhåll 1","SEOPER01",100,"Personbilar – service och underhållsteknik",110000]
[null,"Personbilar – service och underhåll 2","SEOPER02",100,"Personbilar – service och underhållsteknik",110000]
[null,"Bromsar, kaross och chassi","PERBRO0",200,"Personbilsteknik",110000]
[null,"Komfort- och säkerhetssystem 1a","PERKOM01a",200,"Personbilsteknik",110000]
[null,"Komfort- och säkerhetssystem 1b","PERKOM01b",200,"Personbilsteknik",110000]
[null,"Motor och kraftöverföring","PERMOT0",300,"Personbilsteknik",110000]
[null,"Personbilsteknik – introduktion","PERPES0",200,"Personbilsteknik",110000]
[null,"Reparation av personbilar och lätta transportfordon","PERREA0",300,"Personbilsteknik",110000]
[null,"Persontransporter – specialisering","PESPER00S",100,"Persontransporter",110000]
[null,"Persontrafik 1a","PESPER01a",200,"Persontransporter",110000]
[null,"Persontrafik 1b","PESPER01b",200,"Persontransporter",110000]
[null,"Persontrafik – vux","PESPER1",200,"Persontransporter",110000]
[null,"Taxitrafik","PESTAX0",100,"Persontransporter",110000]
[null,"Plåtslageriprocessen","PLÅPLS0",200,"Plåtslageri",110000]
[null,"Plåtslageri – grunder","PLÅPLÅ0",100,"Plåtslageri",110000]
[null,"Byggnadsplåtslageri 1","PLTBYG01",200,"Plåtslageriteknik",110000]
[null,"Byggnadsplåtslageri 2","PLTBYG02",200,"Plåtslageriteknik",110000]
[null,"Byggnadsplåtslageri 3","PLTBYG03",200,"Plåtslageriteknik",110000]
[null,"Byggnadsplåtslageri 4","PLTBYG04",200,"Plåtslageriteknik",110000]
[null,"Kulturplåtslageri","PLTKUU0",100,"Plåtslageriteknik",110000]
[null,"Lättbyggnadsteknik","PLTLÄT0",200,"Plåtslageriteknik",110000]
[null,"Plåtslageri – svetstekniker","PLTPLT0",100,"Plåtslageriteknik",110000]
[null,"Processmätteknik 1","PROPRC01",100,"Processautomation",110000]
[null,"Processmätteknik 2","PROPRC02",100,"Processautomation",110000]
[null,"Processreglering","PROPRE0",100,"Processautomation",110000]
[null,"Processdatorsystem","PROPRO0",100,"Processautomation",110000]
[null,"Produktionskunskap 1","PRDPRO01",100,"Produktionskunskap",110000]
[null,"Produktionskunskap 2","PRDPRO02",100,"Produktionskunskap",110000]
[null,"Industriell mätteknik – grund","PRUIND0",50,"Produktionsutrustning",110000]
[null,"Interna transporter","PRUINE00S",50,"Produktionsutrustning",110000]
[null,"Industriell mätteknik – fördjupning","PRUINU0",50,"Produktionsutrustning",110000]
[null,"Produktionsutrustning 1","PRUPRD01S",100,"Produktionsutrustning",110000]
[null,"Produktionsutrustning 2","PRUPRD02S",100,"Produktionsutrustning",110000]
[null,"Produktionsutrustning 3","PRUPRD03S",100,"Produktionsutrustning",110000]
[null,"Produktionsutrustning 4","PRUPRD04",100,"Produktionsutrustning",110000]
[null,"Verktygskunskap","PRUVEY0",100,"Produktionsutrustning",110000]
[null,"Produktutveckling 1","PRKPRK01",100,"Produktutveckling",110000]
[null,"Produktutveckling 2","PRKPRK02",100,"Produktutveckling",110000]
[null,"Programmering 1","PRRPRR01",100,"Programmering",110000]
[null,"Programmering 2","PRRPRR02",100,"Programmering",110000]
[null,"Psykiatri 2","PSYPSK02",100,"Psykiatri",110000]
[null,"Psykiatri 1","PSYPSY01",100,"Psykiatri",110000]
[null,"Psykiatri 2","PSYPSY02",200,"Psykiatri",110000]
[null,"Rättspsykiatri","PSYRÄS0",100,"Psykiatri",110000]
[null,"Samhällsbaserad psykiatri","PSYSAM0",100,"Psykiatri",110000]
[null,"Psykologi 1","PSKPSY01",50,"Psykologi",110000]
[null,"Psykologi 2a","PSKPSY02a",50,"Psykologi",110000]
[null,"Psykologi 2b","PSKPSY02b",50,"Psykologi",110000]
[null,"Logi","RECLOG0",100,"Reception",110000]
[null,"Reception 1","RECREC01",100,"Reception",110000]
[null,"Reception 2","RECREC02",100,"Reception",110000]
[null,"Reception 3","RECREC03",100,"Reception",110000]
[null,"Städservice","REGSTA0",100,"Rengöringsservice",110000]
[null,"Renen och dess naturmiljö 1","RENREN01",100,"Rennäring",110000]
[null,"Renen och dess naturmiljö 2","RENREN02",100,"Rennäring",110000]
[null,"Renen och rennäringen 1","RENREE01",100,"Rennäring",110000]
[null,"Renen och rennäringen 2","RENREE02",100,"Rennäring",110000]
[null,"Hållbar turism","RESHAL0",100,"Reseproduktion och marknadsföring",110000]
[null,"Marknadsföring och försäljning","RESMAS0",100,"Reseproduktion och marknadsföring",110000]
[null,"Resmål och resvägar","RESREM0",100,"Reseproduktion och marknadsföring",110000]
[null,"Reseproduktion och försäljning","RESRES0",100,"Reseproduktion och marknadsföring",110000]
[null,"Körning 1","RIDKÖR01",100,"Rid- och körkunskap",110000]
[null,"Körning 2","RIDKÖR02",100,"Rid- och körkunskap",110000]
[null,"Ridning och körning","RIDRID0",200,"Rid- och körkunskap",110000]
[null,"Ridning 1","RIDRID01",100,"Rid- och körkunskap",110000]
[null,"Ridning 2","RIDRID02",100,"Rid- och körkunskap",110000]
[null,"Trav 1","RIDTRA01",100,"Rid- och körkunskap",110000]
[null,"Trav 2","RIDTRA02",100,"Rid- och körkunskap",110000]
[null,"Ridning för ridlärare","RINRIN0",100,"Ridning och körning",110000]
[null,"Körning 1","RINKOR01",100,"Ridning och körning",110000]
[null,"Körning 2","RINKOR02",100,"Ridning och körning",110000]
[null,"Ridning och körning","RINRID0",200,"Ridning och körning",110000]
[null,"Ridning 1","RINRID01",100,"Ridning och körning",110000]
[null,"Ridning 2","RINRID02",100,"Ridning och körning",110000]
[null,"Rättspsykiatri ","RATRAT0",100,"Rättpsykiatri",110000]
[null,"Byggnadsverk","SAHBYV0",100,"Samhällsbyggande",110000]
[null,"Samisk mat och matkultur","SASSAM0",100,"Samisk mat och matkultur",110000]
[null,"Samisk hantverkskultur","SAISAM0",50,"Samiskt hantverk",110000]
[null,"Samiskt hantverk 1","SAISAM01S",100,"Samiskt hantverk",110000]
[null,"Samiskt hantverk 2","SAISAM02S",100,"Samiskt hantverk",110000]
[null,"Samiskt hantverk 3","SAISAM03S",100,"Samiskt hantverk",110000]
[null,"Samiskt hantverk 4","SAISAM04",100,"Samiskt hantverk",110000]
[null,"Samiskt hantverk 5","SAISAM05",100,"Samiskt hantverk",110000]
[null,"Kälsvets 1","SAAKÄL01S",100,"Sammanfogningsteknik",110000]
[null,"Kälsvets 2","SAAKÄL02S",100,"Sammanfogningsteknik",110000]
[null,"Rörsvets 1","SAARÖR01S",100,"Sammanfogningsteknik",110000]
[null,"Rörsvets 2","SAARÖR02S",100,"Sammanfogningsteknik",110000]
[null,"Sammanfogning","SAASAA0",100,"Sammanfogningsteknik",110000]
[null,"Stumsvets 1","SAASTU01S",100,"Sammanfogningsteknik",110000]
[null,"Stumsvets 2","SAASTU02S",100,"Sammanfogningsteknik",110000]
[null,"Svets grund","SAASVT0",100,"Sammanfogningsteknik",110000]
[null,"Arrangemang","SERARR0",100,"Serveringskunskap",110000]
[null,"Frukost och bufféservering","SERFRU0",100,"Serveringskunskap",110000]
[null,"Matsalshantverk","SERMAF0",100,"Serveringskunskap",110000]
[null,"Servering – specialisering","SERSER00S",100,"Serveringskunskap",110000]
[null,"Servering 1","SERSER01",100,"Serveringskunskap",110000]
[null,"Servering 2","SERSER02",200,"Serveringskunskap",110000]
[null,"Service och bemötande 1","SEVSEV01",100,"Service och bemötande",110000]
[null,"Service och bemötande 2","SEVSEV02",100,"Service och bemötande",110000]
[null,"Serviceteknik – naturbruk 1","SEISEI01",100,"Serviceteknik – naturbruk",110000]
[null,"Serviceteknik – naturbruk 2","SEISEI02",100,"Serviceteknik – naturbruk",110000]
[null,"Serviceteknik – naturbruk – specialisering","SEISER00S",100,"Serviceteknik – naturbruk",110000]
[null,"Akutsjukvård","SJUAKU0",200,"Sjukvård",110000]
[null,"Barn- och ungdomssjukvård","SJUBAR0",200,"Sjukvård",110000]
[null,"Hemsjukvård","SJUHEM0",100,"Sjukvård",110000]
[null,"Palliativ vård","SJULIN0",100,"Sjukvård",110000]
[null,"Räddningsmedicin","SJURÄD0",100,"Sjukvård",110000]
[null,"Grundläggande säkerhet","SJOGRN0",100,"Sjöfartssäkerhet",110000]
[null,"Säkerhet och miljö","SJOSAE0",200,"Sjöfartssäkerhet",110000]
[null,"Fiske och vattenvård 1","SKOFIS01",100,"Skog, mark och vatten",110000]
[null,"Fiske och vattenvård 2","SKOFIS02",200,"Skog, mark och vatten",110000]
[null,"Jakt och viltvård – specialisering","SKOJAK00S",100,"Skog, mark och vatten",110000]
[null,"Jakt och viltvård 1","SKOJAK01",100,"Skog, mark och vatten",110000]
[null,"Jakt och viltvård 2","SKOJAK02",200,"Skog, mark och vatten",110000]
[null,"Mångbruk av skog","SKOMÅN0",100,"Skog, mark och vatten",110000]
[null,"Skogsbruksmaskinsteknik","SKBSKO0","100","Skogsbruksmaskinsteknik",110000]
[null,"Avverkningsmaskiner","SKMAVV0",100,"Skogsmaskiner",110000]
[null,"Skogsmaskiner – specialisering","SKMSKO00S",200,"Skogsmaskiner",110000]
[null,"Småskalig skogsteknik","SKMSMA0",100,"Skogsmaskiner",110000]
[null,"Terrängtransporter","SKMTER0",100,"Skogsmaskiner",110000]
[null,"Virkestransport med skotare","SKMVIE0",100,"Skogsmaskiner",110000]
[null,"Skogsskötsel – specialisering","SKGSKG00S",100,"Skogsproduktion",110000]
[null,"Skogsskötsel 1","SKGSKO01",100,"Skogsproduktion",110000]
[null,"Skogsskötsel 2","SKGSKO02",100,"Skogsproduktion",110000]
[null,"Virkesmätning","SKGVIK0",100,"Skogsproduktion",110000]
[null,"Virkeslära","SKGVIR0",100,"Skogsproduktion",110000]
[null,"Beskärning och trädvård","SKÖBEK0",100,"Skötsel av utemiljöer",110000]
[null,"Skötsel av utemiljöer","SKÖSKÖ0",100,"Skötsel av utemiljöer",110000]
[null,"Skötsel av utemiljöer – specialisering","SKÖSKÖ00S",100,"Skötsel av utemiljöer",110000]
[null,"Pistmaskiner och utrustning","SNOPIM0",200,"Snöfordonsteknik",110000]
[null,"Pistmaskinkörning","SNOPIS0",100,"Snöfordonsteknik",110000]
[null,"Reparation av snöskoter","SNOREE0",100,"Snöfordonsteknik",110000]
[null,"Reparation av snöfordon","SNOREP0",300,"Snöfordonsteknik",110000]
[null,"Snöfordon – introduktion","SNOSNO0",200,"Snöfordonsteknik",110000]
[null,"Socialpedagogik","SOASOC0",100,"Social omsorg",110000]
[null,"Social omsorg 1","SOASOC01",100,"Social omsorg",110000]
[null,"Social omsorg 2","SOASOC02",100,"Social omsorg",110000]
[null,"Socialt arbete 1","SOCSOC01",100,"Socialt arbete",110000]
[null,"Socialt arbete","SOCSOC01",200,"Socialt arbete",110000]
[null,"Socialt arbete 2","SOCSOC02",100,"Socialt arbete",110000]
[null,"Etnicitet och kulturmöten","SOIETN0",100,"Sociologi",110000]
[null,"Sociologi","SOISOO0",100,"Sociologi",110000]
[null,"Ungdomskulturer","SOIUNG0",100,"Sociologi",110000]
[null,"Specialpedagogik 1 ","SPCSPE01",100,"Specialpedagogik",110000]
[null,"Specialpedagogik 2 ","SPCSPE02",100,"Specialpedagogik",110000]
[null,"Sprinklerteknik 1","SPNSPR01",100,"Sprinklerteknik",110000]
[null,"Sprinklerteknik 2","SPNSPR02",100,"Sprinklerteknik",110000]
[null,"Spårfordon – grund","SPOSPA0",150,"Spårfordon",110000]
[null,"Digitalteknik och programmering","SPFDIG0",100,"Spårfordonsteknik",110000]
[null,"Drivsystem och bromsar","SPFDRI0",200,"Spårfordonsteknik",110000]
[null,"Felsökning och diagnos 1","SPFFEL01",100,"Spårfordonsteknik",110000]
[null,"Felsökning och diagnos 2","SPFFEL02",100,"Spårfordonsteknik",110000]
[null,"Inredning och komfort 1","SPFINR01",200,"Spårfordonsteknik",110000]
[null,"Inredning och komfort 2","SPFINR02",100,"Spårfordonsteknik",110000]
[null,"Kommunikationssystem","SPFKOM0",100,"Spårfordonsteknik",110000]
[null,"Korg och boggi","SPFKOR0",200,"Spårfordonsteknik",110000]
[null,"Spårbundna fordon – introduktion","SPFSPA0",200,"Spårfordonsteknik",110000]
[null,"Styr- och säkerhetssystem","SPFSTY0",100,"Spårfordonsteknik",110000]
[null,"Charkuteri – specialisering","STYCHA00S",100,"Stycknings- och charkuterikunskap",110000]
[null,"Charkuteri 1","STYCHA01",100,"Stycknings- och charkuterikunskap",110000]
[null,"Charkuteri 2","STYCHA02",100,"Stycknings- och charkuterikunskap",110000]
[null,"Charkuteri 3","STYCHA03",200,"Stycknings- och charkuterikunskap",110000]
[null,"Charkuteri 4","STYCHA04",100,"Stycknings- och charkuterikunskap",110000]
[null,"Finstyckning","STYFIN0",100,"Stycknings- och charkuterikunskap",110000]
[null,"Styckning – specialisering","STYSTY00S",100,"Stycknings- och charkuterikunskap",110000]
[null,"Styckning 1","STYSTY01",100,"Stycknings- och charkuterikunskap",110000]
[null,"Styckning 2","STYSTY02",100,"Stycknings- och charkuterikunskap",110000]
[null,"Styckning 3","STYSTY03",200,"Stycknings- och charkuterikunskap",110000]
[null,"Styckning 4","STYSTY04",100,"Stycknings- och charkuterikunskap",110000]
[null,"Finstyckning","STCFIN0",100,"Styckningskunskap",110000]
[null,"Styckning – specialisering","STCSTY00S",100,"Styckningskunskap",110000]
[null,"Styckning 1","STCSTY01",100,"Styckningskunskap",110000]
[null,"Styckning 2","STCSTY02",100,"Styckningskunskap",110000]
[null,"Styckning 3","STCSTY03",200,"Styckningskunskap",110000]
[null,"Styckning 4","STCSTY04",100,"Styckningskunskap",110000]
[null,"Kundmottagning och reservdelshantering","SUPKUN0",100,"Support och servicearbete",110000]
[null,"Service och reparationsarbete","SUPSER0",100,"Support och servicearbete",110000]
[null,"Support och hemservice","SUPSUP0",100,"Support och servicearbete",110000]
[null,"Injusteringsteknik","SYSINJ0",100,"Systemkunskap",110000]
[null,"Systemuppbyggnad","SYSSYT0",100,"Systemkunskap",110000]
[null,"Värmelära","SYSVÄM0",100,"Systemkunskap",110000]
[null,"Systemteknik – spårfordon","SYTSYS0",150,"Systemteknik – spårfordon",110000]
[null,"Teknik i vård och omsorg","TENTEK0",100,"Teknik i vård och omsorg",110000]
[null,"Brand- och ljudisolering","TEIBRA0",200,"Teknisk isolering",110000]
[null,"Industriisolering","TEIINT0",200,"Teknisk isolering",110000]
[null,"Kondensisolering","TEIKOD0",100,"Teknisk isolering",110000]
[null,"VVS-isolering","TEIVVS0",100,"Teknisk isolering",110000]
[null,"Ytbeklädnad – grund","TEIYTB0",200,"Teknisk isolering",110000]
[null,"Tillverkningsunderlag 1","TILTIL01",100,"Tillverkningsunderlag",110000]
[null,"Tillverkningsunderlag 2","TILTIL02",100,"Tillverkningsunderlag",110000]
[null,"Tillämpad programmering","TIATIL00S",100,"Tillämpad programmering",110000]
[null,"Tillämpad programmering","TIPTIL0",100,"Tillämpad programmering",110000]
[null,"Trafikövervakning och signalsystem – spårfordon","TRFTRA0",100,"Trafikövervakning och signalsystem – spårfordon",110000]
[null,"Fordonskombinationer – persontransporter","TRAFOD0",100,"Transportteknik",110000]
[null,"Fordonskombinationer – godstransporter","TRAFOR0",200,"Transportteknik",110000]
[null,"Yrkestrafik 1a","TRAYRK01a",200,"Transportteknik",110000]
[null,"Yrkestrafik 1b","TRAYRK01b",300,"Transportteknik",110000]
[null,"Yrkestrafik – vux","TRAYRK1",300,"Transportteknik",110000]
[null,"Trav 1","TRVTRA01",100,"Travkunskap",110000]
[null,"Trav 2","TRVTRA02",100,"Travkunskap",110000]
[null,"Truckteknik","TRCTRU0",200,"Truckteknik",110000]
[null,"Bygga i trä","TRÄBYG0",100,"Trä",110000]
[null,"Timring","TRÄTIM0",100,"Trä",110000]
[null,"Trä 1 – stommar","TRÄTRK01",100,"Trä",110000]
[null,"Trä 2 – beklädnad","TRÄTRK02",100,"Trä",110000]
[null,"Trä 3 – montage","TRÄTRK03",100,"Trä",110000]
[null,"Trädgårdsanläggning – specialisering","TRDTRÄ00S",100,"Trädgårdsanläggning",110000]
[null,"Trädgårdsanläggning 1","TRDTRÄ01",100,"Trädgårdsanläggning",110000]
[null,"Trädgårdsanläggning 2","TRDTRÄ02",100,"Trädgårdsanläggning",110000]
[null,"Trädgårdsmaskiner","TRSTRG0",100,"Trädgårdsmaskiner",110000]
[null,"Trädgårdsodling","TRRTRA0",100,"Trädgårdsodling",110000]
[null,"Trädgårdsodling – specialisering","TRRTRA00S",100,"Trädgårdsodling",110000]
[null,"Trädgårdsodling – grönsaker, frukt och bär","TRRTRD0",100,"Trädgårdsodling",110000]
[null,"Trädgårdsodling – plantskoleväxter","TRRTRG0",100,"Trädgårdsodling",110000]
[null,"Träningslära 1","TRNTRN01",100,"Träningslära",110000]
[null,"Träningslära 2","TRNTRN02",100,"Träningslära",110000]
[null,"Aktiviteter och upplevelser","TURAKT0",100,"Turism",110000]
[null,"Besöksnäringen","TURBEÖ0",100,"Turism",110000]
[null,"Guide och reseledare","TURGUI0",100,"Turism",110000]
[null,"Hållbar turism","TURHÅL0",100,"Turism",110000]
[null,"Marknadsföring och försäljning","TURMAS0",100,"Turism",110000]
[null,"Resmål och resvägar","TURREM0",100,"Turism",110000]
[null,"Reseproduktion och försäljning","TURRES0",100,"Turism",110000]
[null,"Turistbyråservice","TURTUR0",100,"Turism",110000]
[null,"Värdskap på resmålet","TURVÄR0",100,"Turism",110000]
[null,"Tätskikt våtrum","TÄTTÄT0",100,"Tätskikt våtrum",110000]
[null,"Flygunderhåll","UNDFLY0",200,"Underhållsteknik – flyg",110000]
[null,"Materiallära – flyg","UNDMAT0",100,"Underhållsteknik – flyg",110000]
[null,"Utställningsdesign 1","UTSUTS01",100,"Utställningsdesign",110000]
[null,"Utställningsdesign 2","UTSUTS02",100,"Utställningsdesign",110000]
[null,"Utställningsdesign 3","UTSUTS03S",100,"Utställningsdesign",110000]
[null,"Dricksvatten","VATDRI0",100,"Vatten- och miljöteknik",110000]
[null,"Rening av förorenat vatten","VATREN0",100,"Vatten- och miljöteknik",110000]
[null,"Vattenreningens mikrobiologi","VATVAR0",100,"Vatten- och miljöteknik",110000]
[null,"Vatten- och miljöteknik","VATVAT0",200,"Vatten- och miljöteknik",110000]
[null,"Fiskodling 1","VANFIS01",200,"Vattenbruk",110000]
[null,"Fiskodling 2","VANFIS02",200,"Vattenbruk",110000]
[null,"Vattenbruk – specialisering","VANVAE00S",100,"Vattenbruk",110000]
[null,"Vattenbruk – grunder","VANVAT0",100,"Vattenbruk",110000]
[null,"Drift, underhåll, säkerhet och miljö","VAEDRT0",200,"Vattenkraftteknik",110000]
[null,"Generatorer och transformatorer","VAEGEN0",100,"Vattenkraftteknik",110000]
[null,"Hydraulik, kraftstationshydraulik och turbiner","VAEHYD0",100,"Vattenkraftteknik",110000]
[null,"Kontrollanläggningar","VAEKOR0",200,"Vattenkraftteknik",110000]
[null,"Vattenkraftstationer","VAEVAN0",100,"Vattenkraftteknik",110000]
[null,"Ventilationsisolering","VEIVEN0",100,"Ventilation – installation",110000]
[null,"Ventilationsmontering 1","VEIVEN01",100,"Ventilation – installation",110000]
[null,"Ventilationsmontering 2","VEIVEN02",200,"Ventilation – installation",110000]
[null,"Ventilationsservice","VEIVET0",100,"Ventilation – installation",110000]
[null,"Ventilationsplåtslageri 1","VELVEN01",100,"Ventilation – plåtslageri",110000]
[null,"Ventilationsplåtslageri 2","VELVET02",200,"Ventilation – plåtslageri",110000]
[null,"Ventilationsservice","VENVEI0",100,"Ventilationsplåtslageri",110000]
[null,"Ventilationsmontering 1","VENVEN01",100,"Ventilationsplåtslageri",110000]
[null,"Ventilationsmontering 2","VENVEN02",200,"Ventilationsplåtslageri",110000]
[null,"Ventilationsisolering","VENVET0",200,"Ventilationsplåtslageri",110000]
[null,"Ventilationsplåtslageri 1","VENVET01",100,"Ventilationsplåtslageri",110000]
[null,"Ventilationsplåtslageri 2","VENVET02",200,"Ventilationsplåtslageri",110000]
[null,"Luftbehandlingssystem","VETLUB0",200,"Ventilationsteknik",110000]
[null,"Luftbehandlingssystem","VETLUE0",100,"Ventilationsteknik",110000]
[null,"Luftbehandling","VETLUF0",100,"Ventilationsteknik",110000]
[null,"Luftströmning","VETLUS0",200,"Ventilationsteknik",110000]
[null,"Luftbehandlingsanläggningar","VETLUT0",200,"Ventilationsteknik",110000]
[null,"Ventilationsteknik – injustering","VETVEL0",100,"Ventilationsteknik",110000]
[null,"Verkstad – spårfordon","VEAVER0",100,"Verkstad – spårfordon",110000]
[null,"Verktygs- och materialhantering","VEKVEK0",100,"Verktygs- och materialhantering",110000]
[null,"Visuell kommunikation","VISVIS0",100,"Visuell kommunikation",110000]
[null,"Entreprenadteknik","VVIENT0",100,"VVS – installation",110000]
[null,"Sanitetsteknik 1","VVISAN01",100,"VVS – installation",110000]
[null,"Sanitetsteknik 2","VVISAN02",100,"VVS – installation",110000]
[null,"Värmeteknik 1","VVIVAR01",100,"VVS – installation",110000]
[null,"Värmeteknik 2","VVIVAR02",100,"VVS – installation",110000]
[null,"VVS gassvetsning rör","VVIVVG0",100,"VVS – installation",110000]
[null,"VVS svets och lödning rör","VVIVVS0",100,"VVS – installation",110000]
[null,"VVS-teknik","VVIVVT0",200,"VVS – installation",110000]
[null,"Entreprenadteknik","VVSENT0",100,"VVS-teknik",110000]
[null,"Sanitetsteknik 1","VVSSAN01",100,"VVS-teknik",110000]
[null,"Sanitetsteknik 2","VVSSAN02",100,"VVS-teknik",110000]
[null,"VVS gassvetsning rör","VVSVVG0",100,"VVS-teknik",110000]
[null,"VVS TIG-svetsning rör","VVSVVI0",100,"VVS-teknik",110000]
[null,"VVS svets och lödning rör","VVSVVS0",100,"VVS-teknik",110000]
[null,"VVS-teknik","VVSVVT0",200,"VVS-teknik",110000]
[null,"VVS svets industrirör","VVSVVV0",200,"VVS-teknik",110000]
[null,"Värmeteknik 1","VVSVÄR01",100,"VVS-teknik",110000]
[null,"Värmeteknik 2","VVSVÄR02",100,"VVS-teknik",110000]
[null,"Våningsservice 1","VAIVAI01",100,"Våningsservice",110000]
[null,"Våningsservice 2","VAIVAI02",100,"Våningsservice",110000]
[null,"Våningsservice 3","VAIVAI03",100,"Våningsservice",110000]
[null,"Vård- och omsorgsarbete 1","VÅRVÅR01",200,"Vård och omsorg",110000]
[null,"Vård- och omsorgsarbete 2","VÅRVÅR02",150,"Vård och omsorg",110000]
[null,"Vård och omsorg specialisering","VADVAD00S",100,"Vård och omsorg specialisering",110000]
[null,"Vård och omsorg – specialisering","VADVAR00S",50,"Vård och omsorg specialisering",110000]
[null,"Växtkunskap – fastighetsskötsel","VÄXVÄK0",100,"Växtkunskap",110000]
[null,"Växtkunskap 1","VÄXVÄX01",100,"Växtkunskap",110000]
[null,"Växtkunskap 2","VÄXVÄX02",100,"Växtkunskap",110000]
[null,"Odling av djurfoder","VAOODL0",100,"Växtodling",110000]
[null,"Växtodling – specialisering","VAOVAT00S",100,"Växtodling",110000]
[null,"Växtodling 1","VAOVAT01",100,"Växtodling",110000]
[null,"Växtodling 2","VAOVAT02",100,"Växtodling",110000]
[null,"Webbserverprogrammering 1","WESWEB01",100,"Webbserverprogrammering",110000]
[null,"Webbserverprogrammering 2","WESWEB02",100,"Webbserverprogrammering",110000]
[null,"Webbserverprogrammering 1","WEBWEB01",100,"Webbteknik",110000]
[null,"Webbserverprogrammering 2","WEBWEB02",100,"Webbteknik",110000]
[null,"Webbutveckling 1","WEBWEU01",100,"Webbteknik",110000]
[null,"Webbutveckling 2","WEBWEU02",100,"Webbteknik",110000]
[null,"Webbutveckling 1","WEUWEB01",100,"Webbutveckling",110000]
[null,"Webbutveckling 2","WEUWEB02",100,"Webbutveckling",110000]
[null,"Mänskliga faktorer","YRKMAN0",50,"Yrkesteknik – flyg",110000]
[null,"Aerodynamik","YRKAER0",100,"Yrkesteknik – flyg",110000]
[null,"Flyglagstiftning","YRKFLY0",50,"Yrkesteknik – flyg",110000]
[null,"Yttre miljö – maskiner och verktyg","YTTYTR0",100,"Yttre miljö",110000]
[null,"Yttre miljö – anläggningar","YTTYTT0",100,"Yttre miljö",110000]
[null,"Kurser i vissa ämnen och orienteringskurser\nOmfattning regleras av 21 och 22 §§ i förordning (2016:937) om statsbidrag för regional yrkesinriktad vuxenutbildning"]
[null,"Kursnamn","Kurskod","Poäng","Ämne","Statsbidrag per årsstudieplats"]
[null,"Svenska","SVESVE01",100,"Svenska",30000]
[null,"Svenska","SVESVE02",100,"Svenska",30000]
[null,"Svenska","SVESVE03",100,"Svenska",30000]
[null,"Svenska som andraspråk","SVASVA01",100,"Svenska som andraspråk",30000]
[null,"Svenska som andraspråk","SVASVA02",100,"Svenska som andraspråk",30000]
[null,"Svenska som andraspråk","SVASVA03",100,"Svenska som andraspråk",30000]
[null,"Engelska","ENGENG05",100,"Engelska",30000]
[null,"Engelska","ENGENG06",100,"Engelska",30000]
[null,"Engelska","ENGENG07",100,"Engelska",30000]
[null,"Matematik","MATMAT01",100,"Matematik ",30000]
[null,"Matematik","MATMAT02",100,"Matematik ",30000]
[null,"Matematik","MATMAT03",100,"Matematik ",30000]
[null,"Samhällskunskap","SAMSAM01",100,"Samhällskunskap",30000]
[null,"Samhällskunskap","SAMSAM02",100,"Samhällskunskap",30000]
[null,"Samhällskunskap","SAMSAM03",100,"Samhällskunskap",30000]
[null,"Orienteringskurser","KGYORI11A",null,"Studie- eller yrkesval",30000]
[null,"Orienteringskurser","KGYORI11B",null,"Studieteknik",30000]
[null,"Orienteringskurser","KGYORI11C",null,"Introduktion till kurser",30000]
[null,"Orienteringskurser","KGYORI11D",null,"Validering",30000]
[null,"Orienteringskurser","KGYORI11E",null,"Stöd/studiehandledning modersmål",30000]
[null,"Orienteringskurser","KGYORI11F",null,"Yrkessvenska",30000]
[null,"Orienteringskurser","KGYORI11G",null,"Digital kompetens",30000]
[null,"Orienteringskurser","KGYORI11H",null,"Kunskaper om arbetsliv/arbetsmarknad",30000]

{"sheet":"Dubblettkontroll","index":11,"n_rows":9,"n_cols":11,"rows_kept":9,"cut":false,"hidden":true,"merged":[]}
["Kommun (valfri)","Personnummer","Kurskod","Lästa verksamhetspoäng","Merged.Väljåtgärd"]
[null,null,null,null,null,null,"1.","Sökväg kompletteringssvar",null,null,"Summa avdrag poäng för dubbletter"]
[]
[]
[null,null,null,null,null,null,"2."]
[]
[]
[]
[null,null,null,null,null,null,"3."]

{"sheet":"Kontrollog","index":12,"n_rows":8,"n_cols":3,"rows_kept":8,"cut":false,"hidden":true,"merged":[]}
["Kontroller","Arbetsblad","Utfall"]
["Intygande kombinationsutbildningar","5. Övriga uppgifter"]
["EU-rapportering","7. EU-medel"]
["Uppdatering / redovisat belopp","6. Sammanställning redovisning"]
["Inte angivit antal elever med sekretess","0. Sekretesselever"]
["Inte angivit antal elever med särskild utbildning","4. Särskild utbildning"]
["Felaktiga personnmr eller kurskoder","2. Kontroll personnr kurskod"]
["Begränsning kurser","3. Kontroll begränsning kurser"]

{"sheet":"Särskilda skäl","index":13,"n_rows":3,"n_cols":1,"rows_kept":3,"cut":false,"hidden":true,"merged":[]}
["Särskilda skäl"]
["JA"]
["NEJ"]

{"sheet":"kurslista låst","index":14,"n_rows":1022,"n_cols":8,"rows_kept":1022,"cut":false,"hidden":true,"merged":[]}
["Kursnamn","Kurskod","Poäng","Ämne","Statsbidrag ersättning årsstudieplats\nYrkesvux ","Statsbidrag_årsstudieplats_lärlingsvux","Statsbidrag_årsstudieplats_kombination","antal_tecken"]
["Administration – specialisering","ADMADM00S",100,"Administration",35000,50000,110000,6]
["Administration 1","ADMADM01",100,"Administration",35000,50000,110000,6]
["Administration 2","ADMADM02",100,"Administration",35000,50000,110000,6]
["Administration av nätverks- och serverutrustning","NAIADM0",100,"Nätverksteknik",75000,50000,110000,6]
["Administration av nätverks- och serverutrustning","NÄVADM0",100,"Nätverksteknik",75000,50000,110000,6]
["Aerodynamik","YRKAER0",100,"Yrkesteknik – flyg",75000,50000,110000,6]
["Aerodynamik","FLYAER0",100,"Flygyrkesteknik",75000,50000,110000,6]
["Affärsjuridik","JURAFF0",100,"Juridik",35000,50000,110000,6]
["Affärskommunikation","AFFAFÄ00S",100,"Affärskommunikation",35000,50000,110000,6]
["Affärsutveckling och ledarskap","HANAFR0",100,"Handel",35000,50000,110000,6]
["Aktiviteter och upplevelser","AKTAKT0",100,"Aktiviteter och värdskap",35000,50000,110000,6]
["Aktiviteter och upplevelser","TURAKT0",100,"Turism",35000,50000,110000,6]
["Aktivitetsledarskap","PEDAKI00S",100,"Pedagogik",35000,50000,110000,6]
["Akut omhändertagande","BEVAKU0",100,"Brand, bevakning och säkerhet",35000,50000,110000,6]
["Akutsjukvård","SJUAKU0",200,"Sjukvård",35000,50000,110000,6]
["Allmän automationsteknik","AUOALL0",100,"Automatiserade system",75000,50000,110000,6]
["Allmän automationsteknik","AUTALL0",100,"Automationsteknik",75000,50000,110000,6]
["Allmän järnvägsteknik","JÄNALM0",100,"Järnvägsteknik",75000,50000,110000,6]
["Anatom och fysiologi 2","ANOANA02",50,"Anatomi och fysiologi 2",35000,50000,110000,6]
["Anatomi och fysiologi 1","ANOANA01",50,"Anatomi och fysiologi 1",35000,50000,110000,6]
["Animation – specialisering","ANIANI00S",100,"Animation",75000,50000,110000,6]
["Animation 1","ANIANI01",100,"Animation",75000,50000,110000,6]
["Animation 2","ANIANI02",100,"Animation",75000,50000,110000,6]
["Anläggning – gröna ytor","ANLANL0",200,"Anläggning",75000,50000,110000,6]
["Anläggning – ledningsbyggnad","ANLANÄ0",200,"Anläggning",75000,50000,110000,6]
["Anläggning – stensättning","ANLANG0",100,"Anläggning",75000,50000,110000,6]
["Anläggning – vägbyggnad","ANLANN0",100,"Anläggning",75000,50000,110000,6]
["Anläggning 1","ANLANL01",100,"Anläggning",75000,50000,110000,6]
["Anläggning 2","ANLANL02",200,"Anläggning",75000,50000,110000,6]
["Anläggningsförare – process","ANAANL0",100,"Anläggningsförare",75000,50000,110000,6]
["Anläggningsförare 1","ANAANA01",200,"Anläggningsförare",75000,50000,110000,6]
["Anläggningsförare 2","ANAANA02",200,"Anläggningsförare",75000,50000,110000,6]
["Anläggningsförare 3","ANAANA03",200,"Anläggningsförare",75000,50000,110000,6]
["Anläggningsförare 4","ANAANA04",200,"Anläggningsförare",75000,50000,110000,6]
["Anläggningsprocessen","ANLANS0",200,"Anläggning",75000,50000,110000,6]
["Anpassning och montering av utrustning","MASANP0",200,"Maskin- och lastbilsteknik",75000,50000,110000,6]
["Antenn- och kabel-TV-teknik","ELRANT0",100,"Elektroteknik",75000,50000,110000,6]
["Arbete från servicebil","MASARB0",100,"Maskin- och lastbilsteknik",75000,50000,110000,6]
["Arkitektur – hus","ARKARK0",100,"Arkitektur",35000,50000,110000,6]
["Arkitektur – rum","ARKARI0",100,"Arkitektur",35000,50000,110000,6]
["Arrangemang","SERARR0",100,"Serveringskunskap",35000,50000,110000,6]
["ATV och motorcykel","ATOATV0",200,"ATV- och motorcykelteknik",75000,50000,110000,6]
["Avhjälpande och förebyggande underhåll","AUOAVH0",100,"Automatiserade system",75000,50000,110000,6]
["Avhjälpande och förebyggande underhåll","AUTAVH0",100,"Automationsteknik",75000,50000,110000,6]
["Avhjälpande underhåll 1","DRIAVH01",100,"Driftsäkerhet och underhåll",75000,50000,110000,6]
["Avhjälpande underhåll 2","DRIAVH02",100,"Driftsäkerhet och underhåll",75000,50000,110000,6]
["Avverkningsmaskiner","SKMAVV0",100,"Skogsmaskiner",75000,50000,110000,6]
["Avverkningsmaskiner","NABAVV0",100,"Naturbruksteknik",75000,50000,110000,6]
["Bad- och friskvårdsanläggningar","FRIBAD0",100,"Fritids- och friskvårdsverksamheter",35000,50000,110000,6]
["Bageri – specialisering","BAGBAG00S",100,"Bageri- och konditorikunskap",75000,50000,110000,6]
["Bageri 1","BAGBAG01",100,"Bageri- och konditorikunskap",75000,50000,110000,6]
["Bageri 2","BAGBAG02",200,"Bageri- och konditorikunskap",75000,50000,110000,6]
["Bageri 3","BAGBAG03",100,"Bageri- och konditorikunskap",75000,50000,110000,6]
["Bageri 4","BAGBAG04",100,"Bageri- och konditorikunskap",75000,50000,110000,6]
["Bandschaktare","MOBBAN0",100,"Mobila arbetsmaskiner",75000,50000,110000,6]
["Banskötsel för hästsport","BANBAN0",100,"Barnskötsel för hästsport",75000,50000,110000,6]
["Barberare 2*","HAVBAR02",200,"Hantverk",75000,50000,110000,6]
["Barberare 3 *","HAVBAR03",200,"Hantverk",75000,50000,110000,6]
["Barberare 4 *","HAVBAR04",200,"Hantverk",75000,50000,110000,6]
["Barberare 5 *","HAVBAR05",100,"Hantverk",75000,50000,110000,6]
["Barberare 6a *","HAVBAR06a",100,"Hantverk",75000,50000,110000,6]
["Barberare 6b *","HAVBAR06b",50,"Hantverk",75000,50000,110000,6]
["Barn- och ungdomshälsovård","BAOBAR0",100,"Barn- och ungdomshälsovård",35000,50000,110000,6]
["Barn- och ungdomssjukvård","SJUBAR0",200,"Sjukvård",35000,50000,110000,6]
["Barn- och ungdomssjukvård","BAOBAN0",200,"Barn- och ungdomssjukvård",35000,50000,110000,6]
["Barnhälsovård","HAABAR0",100,"Hälsovård",35000,50000,110000,6]
["Barns lärande och växande","PEDBAS0",100,"Pedagogik",35000,50000,110000,6]
["Barteknik","DRYBAT0",100,"Dryckeskunskap",75000,50000,110000,6]
["Baskurs i lackering","LACBAK0",300,"Lackeringsteknik",75000,50000,110000,6]
["Belysningsnät","ELDBEY0",100,"Eldistributionsteknik",75000,50000,110000,6]
["Belysningsteknik","INSBES0",100,"Installationsteknik",75000,50000,110000,6]
["Beläggning","BELBEL0",200,"Beläggning",75000,50000,110000,6]
["Beläggningsarbeten","BELBEÄ0",100,"Beläggning",75000,50000,110000,6]
["Beläggningsmaskiner","BELBEG0",100,"Beläggning",75000,50000,110000,6]
["Bergarbeten","BERBER0",200,"Berghantering",75000,50000,110000,6]
["Bergborrning","BERBEB0",200,"Berghantering",75000,50000,110000,6]
["Bergmaskiner","BERBEM0",100,"Berghantering",75000,50000,110000,6]
["Bergsprängning","BERBEP0",200,"Berghantering",75000,50000,110000,6]
["Beskärning och trädvård","SKÖBEK0",100,"Skötsel av utemiljöer",75000,50000,110000,6]
["Besöksnäringen","AKTBEO0",100,"Aktiviteter och värdskap",35000,50000,110000,6]
["Besöksnäringen","TURBEÖ0",100,"Turism",35000,50000,110000,6]
["Betong 1 – lågform och platta på mark","BETBET01",100,"Betong",75000,50000,110000,6]
["Betong 2 – väggar och pelare","BETBET02",100,"Betong",75000,50000,110000,6]
["Betong 3 – bärlag","BETBET03",100,"Betong",75000,50000,110000,6]
["Betong 4 – golv","BETBET04",100,"Betong",75000,50000,110000,6]
["Bevakning och säkerhet","BEVBEV0",300,"Brand, bevakning och säkerhet",35000,50000,110000,6]
["Bevarandebiologi","BIGBEA0",100,"Biologi – naturbruk",75000,50000,110000,6]
["Bild- och ljudanläggningar","ELOBID0",100,"Elektroniksystem – installation och underhåll",75000,50000,110000,6]
["Bild- och ljudanläggningar","ELTBID0",100,"Elektroniksystem",75000,50000,110000,6]
["Biodling","BINBIO0",100,"Biodling",75000,50000,110000,6]
["Biologi – naturbruk – specialisering","BIGBIG00S",100,"Biologi – naturbruk",75000,50000,110000,6]
["Biologi i vattenmiljöer 1","BIIVAT01",100,"Biologi i vattenmiljöer",75000,50000,110000,6]
["Biologi i vattenmiljöer 2","BIIVAT02",100,"Biologi i vattenmiljöer",75000,50000,110000,6]
["Biologi i vattenmiljöer 3","BIIVAT03",100,"Biologi i vattenmiljöer",75000,50000,110000,6]
["Brand- och ljudisolering","TEIBRA0",200,"Teknisk isolering",75000,50000,110000,6]
["Brand och räddning","BEVBRA0",200,"Brand, bevakning och säkerhet",35000,50000,110000,6]
["Brandlarmssystem","LARBRN0",100,"Larm och säkerhetsteknik",75000,50000,110000,6]
["Branschkunskap inom handel och administration","HANBRS0",100,"Handel",35000,50000,110000,6]
["Branschkunskap inom handel*","HANBRA0",100,"Handel",35000,50000,110000,6]
["Branschkunskap inom restaurang och livsmedel","MÅTBRC0",100,"Måltids- och branschkunskap",75000,50000,110000,6]
["Bromsar, kaross och chassi","PERBRO0",200,"Personbilsteknik",75000,50000,110000,6]
["Bussteknik","BUSBUS0",100,"Bussteknik",75000,50000,110000,6]
["Bygg och anläggning 1","BYGBYG01",200,"Bygg och anläggning",75000,50000,110000,6]
["Bygg och anläggning 2","BYGBYG02",200,"Bygg och anläggning",75000,50000,110000,6]
["Bygga i trä","TRÄBYG0",100,"Trä",75000,50000,110000,6]
["Byggnadsplåtslageri 1","PLTBYG01",200,"Plåtslageriteknik",75000,50000,110000,6]
["Byggnadsplåtslageri 2","PLTBYG02",200,"Plåtslageriteknik",75000,50000,110000,6]
["Byggnadsplåtslageri 3","PLTBYG03",200,"Plåtslageriteknik",75000,50000,110000,6]
["Byggnadsplåtslageri 4","PLTBYG04",200,"Plåtslageriteknik",75000,50000,110000,6]
["Byggnadsunderhåll","NARBYA0",100,"Naturbrukets byggnader",75000,50000,110000,6]
["Båtel 1","MAIBAT01",100,"Marin el och elektronik",75000,50000,110000,6]
["Båtel 2","MAIBAT02",100,"Marin el och elektronik",75000,50000,110000,6]
["Båthantering och underhåll","FRDBAT0",100,"Fritidsbåtteknik",75000,50000,110000,6]
["Båthantering och underhåll","FRDBAT0 ",100,"Fritidsbåtteknik",75000,50000,110000,6]
["Båtsystem","FRDBAS0",200,"Fritidsbåtteknik",75000,50000,110000,6]
["Båtsystem","FRDBAS0 ",200,"Fritidsbåtteknik",75000,50000,110000,6]
["Cad 1","CADCAD01",50,"Cad (computer aided design) ",75000,50000,110000,6]
["Cad 2","CADCAD02",50,"Cad (computer aided design) ",75000,50000,110000,6]
["Cad 3","CADCAD03",50,"Cad (computer aided design) ",75000,50000,110000,6]
["Cad/cam","DARCAD0",100,"Datorstyrd produktion",75000,50000,110000,6]
["CCTV-system","LARCCT0",100,"Larm och säkerhetsteknik",75000,50000,110000,6]
["Charkuteri – specialisering","CHACHA00S",100,"Charkuterikunskap",75000,50000,110000,6]
["Charkuteri – specialisering","STYCHA00S",100,"Stycknings- och charkuterikunskap",75000,50000,110000,6]
["Charkuteri 1","CHACHA01",100,"Charkuterikunskap",75000,50000,110000,6]
["Charkuteri 1","STYCHA01",100,"Stycknings- och charkuterikunskap",75000,50000,110000,6]
["Charkuteri 2","CHACHA02",100,"Charkuterikunskap",75000,50000,110000,6]
["Charkuteri 2","STYCHA02",100,"Stycknings- och charkuterikunskap",75000,50000,110000,6]
["Charkuteri 3","CHACHA03",200,"Charkuterikunskap",75000,50000,110000,6]
["Charkuteri 3","STYCHA03",200,"Stycknings- och charkuterikunskap",75000,50000,110000,6]
["Charkuteri 4","CHACHA04",100,"Charkuterikunskap",75000,50000,110000,6]
["Charkuteri 4","STYCHA04",100,"Stycknings- och charkuterikunskap",75000,50000,110000,6]
["Choklad och konfektyr","BAGCHO0",100,"Bageri- och konditorikunskap",75000,50000,110000,6]
["Data- och medianät","ELRDAA0",100,"Elektroteknik",75000,50000,110000,6]
["Dator- och nätverksteknik","DAODAC0",100,"Dator- och kommunikationsteknik",75000,50000,110000,6]
["Datoriserad mönsterhantering 1","DAIMON01",100,"Datoriserad mönsterhantering",75000,50000,110000,6]
["Datoriserad mönsterhantering 1","MÖNDAT01",100,"Mönsterkonstruktion",75000,50000,110000,6]
["Datoriserad mönsterhantering 2","DAIMON02",100,"Datoriserad mönsterhantering",75000,50000,110000,6]
["Datoriserad mönsterhantering 2","MÖNDAT02",100,"Mönsterkonstruktion",75000,50000,110000,6]
["Datorsamordning och support","DAODAT0",100,"Dator- och kommunikationsteknik",75000,50000,110000,6]
["Datorstyrd produktion 1","DARDAT01S",100,"Datorstyrd produktion",75000,50000,110000,6]
["Datorstyrd produktion 2","DARDAT02",100,"Datorstyrd produktion",75000,50000,110000,6]
["Datorstyrd produktion 3","DARDAT03",100,"Datorstyrd produktion",75000,50000,110000,6]
["Datorstyrd produktion 4","DARDAT04",100,"Datorstyrd produktion",75000,50000,110000,6]
["Datorstyrd produktion 5","DARDAT05",100,"Datorstyrd produktion",75000,50000,110000,6]
["Datorstyrd produktion 6","DARDAT06",100,"Datorstyrd produktion",75000,50000,110000,6]
["Datorteknik 1a","DAODAT01a",100,"Dator- och kommunikationsteknik",75000,50000,110000,6]
["Datorteknik 1b","DAODAT01b",100,"Dator- och kommunikationsteknik",75000,50000,110000,6]
["Den unga hästens utveckling 1a","HÄTDEN01a",100,"Hästkunskap",75000,50000,110000,6]
["Den unga hästens utveckling 1b","HÄTDEN01b",100,"Hästkunskap",75000,50000,110000,6]
["Den unga hästens utveckling 2","HÄTDEN02",100,"Hästkunskap",75000,50000,110000,6]
["Design 1","DESDES01",100,"Design",75000,50000,110000,6]
["Design 2","DESDES02",100,"Design",75000,50000,110000,6]
["Designmodeller","DESDES0",100,"Design",75000,50000,110000,6]
["Diagnos och reparation","MANDIA0",100,"Marinmotorteknik",75000,50000,110000,6]
["Digital kommunikationsteknik","DAODIG0",100,"Dator- och kommunikationsteknik",75000,50000,110000,6]
["Digitalt skapande 1","DIGDIG01",100,"Digitalt skapande",75000,50000,110000,6]
["Digitalt skapande 2","DIGDIG02",100,"Digitalt skapande",75000,50000,110000,6]
["Digitalteknik och flyginstrument","ELADIG0",100,"Ellära och digitalteknik – flyg",75000,50000,110000,6]
["Digitalteknik och flyginstrument","FLYDII0",100,"Flygyrkesteknik",75000,50000,110000,6]
["Digitalteknik och programmering","SPFDIG0",100,"Spårfordonsteknik",75000,50000,110000,6]
["Distribuerade styrsystem","MÄTDIS0",100,"Mät-, styr- och reglerteknik",75000,50000,110000,6]
["Djur – specialisering","DJUDJU00S",100,"Djur",75000,50000,110000,6]
["Djur för forskningsändamål","DJFDJU0",200,"Djur för forskningsändamål",75000,50000,110000,6]
["Djur i zoohandel","DJUDJI0",200,"Djur",75000,50000,110000,6]
["Djuren i naturbruket","DJUDJR0",100,"Djur",75000,50000,110000,6]
["Djurens biologi","BIGDJE0",100,"Biologi – naturbruk",75000,50000,110000,6]
["Djurhållning","DJUDJH0",100,"Djur",75000,50000,110000,6]
["Djurparksdjur 1","DJPDJU01",100,"Djurparksdjur",75000,50000,110000,6]
["Djurparksdjur 2","DJPDJU02",100,"Djurparksdjur",75000,50000,110000,6]
["Djurvård inom djurens hälso- och sjukvård 1","DJRDJU01",100,"Djurvård inom djurens hälso- och sjukvård",75000,50000,110000,6]
["Djurvård inom djurens hälso- och sjukvård 2","DJRDJU02",200,"Djurvård inom djurens hälso- och sjukvård",75000,50000,110000,6]
["Dramapedagogik","PEGDRA0",100,"Pedagogiskt arbete",35000,50000,110000,6]
["Dricksvatten","VATDRI0",100,"Vatten- och miljöteknik",75000,50000,110000,6]
["Drift och underhåll av fritidsanläggningar","FRIDRF0",100,"Fritids- och friskvårdsverksamheter",35000,50000,110000,6]
["Drift, underhåll, säkerhet och miljö","VAEDRT0",200,"Vattenkraftteknik",75000,50000,110000,6]
["Drivsystem och bromsar","SPFDRI0",200,"Spårfordonsteknik",75000,50000,110000,6]
["Drycker","DRYDRY0",100,"Dryckeskunskap",75000,50000,110000,6]
["Drycker – specialisering","DRYDRY00S",100,"Dryckeskunskap",75000,50000,110000,6]
["Drycker och ansvarsfull alkoholservering","DRYDRC0",100,"Dryckeskunskap",35000,50000,110000,6]
["Däckstjänst 1","DACDAC01",300,"Däckstjänst",75000,50000,110000,6]
["Däckstjänst 2","DACDAC02",300,"Däckstjänst",75000,50000,110000,6]
["El- och hybridfordon 1","ELCELO01",100,"El- och hybridfordonsteknik",75000,50000,110000,6]
["El- och hybridfordon 2","ELCELO02",100,"El- och hybridfordonsteknik",75000,50000,110000,6]
["El- och verkstadsteknik","VERVER0",100,"El- och verkstadsteknik",75000,50000,110000,6]
["Elektromedicinsk teknik","MEIELE0",100,"Medicinsk teknik",75000,50000,110000,6]
["Elektromekanik","ELRELK0",100,"Elektroteknik",75000,50000,110000,6]
["Elektronik – flyg","FLYELT0",100,"Flygyrkesteknik",75000,50000,110000,6]
["Elektronik – spårfordon","ELNELE0",100,"Elektronik – spårfordon",75000,50000,110000,6]
["Elektronik och mikrodatorteknik","ELEELR0",100,"Elektronik",75000,50000,110000,6]
["Elektronikproduktionsteknik","ELKELO0",100,"Elektronikproduktion",75000,50000,110000,6]
["Elementmontering","ELMELM0",100,"Elementmontering",75000,50000,110000,6]
["Elinstallationer","INSELI0",200,"Installationsteknik",75000,50000,110000,6]
["Elkraft och traktion – spårfordon","ELFELK0",150,"Elkraft och traktion – spårfordon",75000,50000,110000,6]
["Elkraftteknik","ELRELF0",100,"Elektroteknik",75000,50000,110000,6]
["Ellära – flyg","ELAELL0",100,"Ellära och digitalteknik – flyg",75000,50000,110000,6]
["Ellära – flyg","FLYELL0",100,"Flygyrkesteknik",75000,50000,110000,6]
["Ellära – spårfordon 1","LLAELL01",100,"Ellära – spårfordon",75000,50000,110000,6]
["Ellära – spårfordon 2","LLAELL02",100,"Ellära – spårfordon",75000,50000,110000,6]
["Ellära 1","ELLELL01",100,"Ellära",75000,50000,110000,6]
["Ellära 2","ELLELL02",100,"Ellära",75000,50000,110000,6]
["Elmotordrivsystem","ELIELD0",100,"Elmotordrivsystem",75000,50000,110000,6]
["Elmotordrivsystem","AUTELD0",100,"Automationsteknik",75000,50000,110000,6]
["Elmotorstyrning","INSELS0",100,"Installationsteknik",75000,50000,110000,6]
["Elmätteknik 1","ELÄELM01",100,"Elmätteknik",75000,50000,110000,6]
["Elmätteknik 2","ELÄELM02",100,"Elmätteknik",75000,50000,110000,6]
["Elteknik","JÄNELN0",300,"Järnvägsteknik",75000,50000,110000,6]
["Energiteknik 1","ENEENE01",100,"Energiteknik",75000,50000,110000,6]
["Energiteknik 2","ENEENE02",100,"Energiteknik",75000,50000,110000,6]
["Engelska","ENGENG05",100,"Engelska",30000,30000,30000,6]
["Engelska","ENGENG06",100,"Engelska",30000,30000,30000,6]
["Engelska","ENGENG07",100,"Engelska",30000,30000,30000,6]
["Entreprenadteknik","VVIENT0",100,"VVS – installation",75000,50000,110000,6]
["Entreprenadteknik","VVSENT0",100,"VVS-teknik",75000,50000,110000,6]
["Entreprenörskap","ENTENR0",100,"Entreprenörskap",35000,50000,110000,6]
["Entreprenörskap och företagande","FÖRENT0",100,"Företagsekonomi",35000,50000,110000,6]
["Ergonomi","HALERG0",100,"Hälsa",35000,50000,110000,6]
["Estetisk kommunikation 1","ESTEST01",100,"Estetisk kommunikation",35000,50000,110000,6]
["Estetisk kommunikation 2","ESTEST02",100,"Estetisk kommunikation",35000,50000,110000,6]
["Estetisk kommunikation 3","ESTEST03",100,"Estetisk kommunikation",35000,50000,110000,6]
["Etik och människans livsvillkor","MÄNETI0",100,"Människan",35000,50000,110000,6]
["Etnicitet och kulturmöten","SOIETN0",100,"Sociologi",35000,50000,110000,6]
["Evenemang","KONEVE0",100,"Konferens och evenemang",35000,50000,110000,6]
["Eventteknik","EVEEVN0",100,"Eventteknik",35000,50000,110000,6]
["Fackteckning och design","FOMFAC0",100,"Formgivning",75000,50000,110000,6]
["Fartygsbefäl","DACFAR0",100,"Däckstjänst",75000,50000,110000,6]
["Fastighetsautomation 1","FAIFAS01",100,"Fastighetsautomation",75000,50000,110000,6]
["Fastighetsautomation 1","AUTFAS01",100,"Automationsteknik",75000,50000,110000,6]
["Fastighetsautomation 2","FAIFAS02",100,"Fastighetsautomation",75000,50000,110000,6]
["Fastighetsautomation 2","AUTFAS02",100,"Automationsteknik",75000,50000,110000,6]
["Fastighetsförvaltning","FAFFAS0",100,"Fastighetsförvaltning",75000,50000,110000,6]
["Fastighetskommunikation","FAFFAT0",100,"Fastighetsförvaltning",75000,50000,110000,6]
["Fastighetsservice – byggnader","FASFAS0",100,"Fastighetsservice",75000,50000,110000,6]
["Fastighetsservice – elarbeten","FASFAH0",100,"Fastighetsservice",75000,50000,110000,6]
["Fastighetsservice – VVS","FASFAE0",100,"Fastighetsservice",75000,50000,110000,6]
["Fastighetsservice – ytor","FASFAV0",100,"Fastighetsservice",75000,50000,110000,6]
["Felsökning och diagnos 1","SPFFEL01",100,"Spårfordonsteknik",75000,50000,110000,6]
["Felsökning och diagnos 2","SPFFEL02",100,"Spårfordonsteknik",75000,50000,110000,6]
["Film- och interaktiv ljudproduktion","LJUFIL0",100,"Ljudproduktion",75000,50000,110000,6]
["Film- och tv-produktion 1","FILFIL01",100,"Film- och tv-produktion",35000,50000,110000,6]
["Film- och tv-produktion 2","FILFIL02",100,"Film- och tv-produktion",35000,50000,110000,6]
["Filmproduktion","FILFIL0",100,"Film- och tv-produktion",35000,50000,110000,6]
["Finsnickeri 1","HAVFIN01",200,"Hantverk",75000,50000,110000,6]
["Finsnickeri 2","HAVFIN02",200,"Hantverk",75000,50000,110000,6]
["Finsnickeri 3","HAVFIN03",200,"Hantverk",75000,50000,110000,6]
["Finsnickeri 4","HAVFIN04",200,"Hantverk",75000,50000,110000,6]
["Finsnickeri 4 – specialisering","HAVFIN04S",50,"Hantverk",75000,50000,110000,6]
["Finsnickeri 5","HAVFIN05",200,"Hantverk",75000,50000,110000,6]
["Finsnickeri 5 – specialisering","HAVFIN05S",50,"Hantverk",75000,50000,110000,6]
["Finsnickeri 6a","HAVFIN06a",100,"Hantverk",75000,50000,110000,6]
["Finsnickeri 6b","HAVFIN06b",50,"Hantverk",75000,50000,110000,6]
["Finstyckning","STCFIN0",100,"Styckningskunskap",75000,50000,110000,6]
["Finstyckning","STYFIN0",100,"Stycknings- och charkuterikunskap",75000,50000,110000,6]
["Fiske 1","FISFIS01",100,"Fiske ",75000,50000,110000,6]
["Fiske 2","FISFIS02",200,"Fiske ",75000,50000,110000,6]
["Fiske 3","FISFIS03",100,"Fiske ",75000,50000,110000,6]
["Fiske och vattenvård 1","SKOFIS01",100,"Skog, mark och vatten",75000,50000,110000,6]
["Fiske och vattenvård 2","SKOFIS02",200,"Skog, mark och vatten",75000,50000,110000,6]
["Fiskevård 1","FIKFIS01",100,"Fiskevård",75000,50000,110000,6]
["Fiskevård 2","FIKFIS02",200,"Fiskevård",75000,50000,110000,6]
["Fiskevård 3","FIKFIS03",100,"Fiskevård",75000,50000,110000,6]
["Fiskodling 1","VANFIS01",200,"Vattenbruk",75000,50000,110000,6]
["Fiskodling 2","VANFIS02",200,"Vattenbruk",75000,50000,110000,6]
["Flerbränslefordon","FLEFLR0",100,"Flerbränslefordonsteknik",75000,50000,110000,6]
["Florist 1","HAVFLO01",200,"Hantverk",75000,50000,110000,6]
["Florist 2","HAVFLO02",200,"Hantverk",75000,50000,110000,6]
["Florist 3","HAVFLO03",200,"Hantverk",75000,50000,110000,6]
["Florist 4","HAVFLO04",200,"Hantverk",75000,50000,110000,6]
["Florist 4 – specialisering","HAVFLO04S",50,"Hantverk",75000,50000,110000,6]
["Florist 5","HAVFLO05",200,"Hantverk",75000,50000,110000,6]
["Florist 5 – specialisering","HAVFLO05S",50,"Hantverk",75000,50000,110000,6]
["Florist 6a","HAVFLO06a",100,"Hantverk",75000,50000,110000,6]
["Florist 6b","HAVFLO06b",50,"Hantverk",75000,50000,110000,6]
["Flyglagstiftning","YRKFLY0",50,"Yrkesteknik – flyg",75000,50000,110000,6]
["Flyglagstiftning","FLYFLY0",50,"Flygyrkesteknik",75000,50000,110000,6]
["Flygplanslära","FLYFLG0",200,"Flygyrkesteknik",75000,50000,110000,6]
["Flygplansteknik","FLPFLY0",200,"Flygplansteknik",75000,50000,110000,6]
["Flygplatsen","FLGFLY0",200,"Flygplatsteknik",75000,50000,110000,6]
["Flygunderhåll","UNDFLY0",200,"Underhållsteknik – flyg",75000,50000,110000,6]
["Fordon och redskap","FOHFOR0",100,"Fordon och redskap inom naturbruk",75000,50000,110000,6]
["Fordon och redskap","NABFOR0",100,"Naturbruksteknik",75000,50000,110000,6]
["Fordons- och transportbranschens villkor och arbetsområden","FORFOD0",200,"Fordons- och transportbranschen",75000,50000,110000,6]
["Fordonskombinationer – godstransporter","TRAFOR0",200,"Transportteknik",75000,50000,110000,6]
["Fordonskombinationer – persontransporter","TRAFOD0",100,"Transportteknik",75000,50000,110000,6]
["Fordonsteknik – introduktion","FODFOO0",200,"Fordonsteknik",75000,50000,110000,6]
["Fordonstestteknik","FOOFOR0",200,"Fordonstestteknik",75000,50000,110000,6]
["Formgivning 1","FOMFOR01S",100,"Formgivning",75000,50000,110000,6]
["Formgivning 2","FOMFOR02S",100,"Formgivning",75000,50000,110000,6]
["Formgivning 3","FOMFOR03S",100,"Formgivning",75000,50000,110000,6]
["Friskvård och hälsa","HAAFRI0",100,"Hälsovård",35000,50000,110000,6]
["Frisör 1","HAVFRI01",200,"Hantverk",75000,50000,110000,6]
["Frisör 2","HAVFRI02",200,"Hantverk",75000,50000,110000,6]
["Frisör 3","HAVFRI03",200,"Hantverk",75000,50000,110000,6]
["Frisör 4","HAVFRI04",200,"Hantverk",75000,50000,110000,6]
["Frisör 4 – specialisering","HAVFRI04S",50,"Hantverk",75000,50000,110000,6]
["Frisör 5","HAVFRI05",200,"Hantverk",75000,50000,110000,6]
["Frisör 5 – specialisering","HAVFRI05S",50,"Hantverk",75000,50000,110000,6]
["Frisör 6a","HAVFRI06a",100,"Hantverk",75000,50000,110000,6]
["Frisör 6b","HAVFRI06b",50,"Hantverk",75000,50000,110000,6]
["Fritids- och friskvårdsverksamheter","FRIFRT0",200,"Fritids- och friskvårdsverksamheter",35000,50000,110000,6]
["Fritids- och idrottskunskap","FRTFRD0",100,"Fritids- och idrottskunskap",35000,50000,110000,6]
["Fritidsmiljöer och arenor","FRIFRS0",100,"Fritids- och friskvårdsverksamheter",35000,50000,110000,6]
["Frukost och bufféservering","SERFRU0",100,"Serveringskunskap",35000,50000,110000,6]
["Frukost och bufféservering","HOTFRU0",100,"Hotell",35000,50000,110000,6]
["Funktionsförmåga och funktionsnedsättning 1","FUTFUN01",100,"Funktionsförmåga och funktionsnedsättning 1",35000,50000,110000,6]
["Funktionsförmåga och funktionsnedsättning 2","FUTFUN02",100,"Funktionsförmåga och funktionsnedsättning 2",35000,50000,110000,6]
["Fälthållning","FLGFAL0",200,"Flygplatsteknik",75000,50000,110000,6]
["Färg och dekorationslackering","LACFÄR0",100,"Lackeringsteknik",75000,50000,110000,6]
["Företagsekonomi - specialisering","FÖRFÖR00S",100,"Företagsekonomi",35000,50000,110000,6]
["Företagsekonomi 1","FÖRFÖR01",100,"Företagsekonomi",35000,50000,110000,6]
["Företagsekonomi 2","FÖRFÖR02",100,"Företagsekonomi",35000,50000,110000,6]
["Förnybar energi","ENEFÖR0",100,"Energiteknik",75000,50000,110000,6]
["Gas- och vätsketeknik","MEIGAS0",100,"Medicinsk teknik",75000,50000,110000,6]
["Gasturbinmotorer","GASGAS0",200,"Gasturbinmotorer – flyg",75000,50000,110000,6]
["Gasturbinmotorer","FLYGAT0",200,"Flygyrkesteknik",75000,50000,110000,6]
["Generatorer och transformatorer","VAEGEN0",100,"Vattenkraftteknik",75000,50000,110000,6]
["Gerontologi och geriatrik","GERGER0",100,"Gerontologi och geriatrik",35000,50000,110000,6]
["Godshantering – vux","GODGOD1",100,"Godshantering",75000,50000,110000,6]
["Godstrafik","GOSGOD0",200,"Godstransporter",75000,50000,110000,6]
["Godstransporter – specialisering","GOSGOD00S",100,"Godstransporter",75000,50000,110000,6]
["Golvläggning 1","GOLGOL01",100,"Golvläggning",75000,50000,110000,6]
["Golvläggning 2 – våtrum","GOLGOL02",100,"Golvläggning",75000,50000,110000,6]
["Golvläggning 3 – trä och laminat","GOLGOL03",200,"Golvläggning",75000,50000,110000,6]
["Grafisk illustration","GRAGRI0",100,"Grafisk kommunikation",75000,50000,110000,6]
["Grafisk illustration i pixelgrafik","GRAGRP0",100,"Grafisk kommunikation",75000,50000,110000,6]
["Grafisk illustration i vektorgrafik","GRAGRV0",100,"Grafisk kommunikation",75000,50000,110000,6]
["Grafisk kommunikation 1","GRAGRA01",100,"Grafisk kommunikation",75000,50000,110000,6]
["Grafisk kommunikation 2","GRAGRA02",100,"Grafisk kommunikation",75000,50000,110000,6]
["Grafisk produktion 1","GRFGRF01",100,"Grafisk produktion",75000,50000,110000,6]
["Grafisk produktion 2","GRFGRF02",100,"Grafisk produktion",75000,50000,110000,6]
["Grafisk produktion 3","GRFGRF03",100,"Grafisk produktion",75000,50000,110000,6]
["Grafisk produktion 4","GRFGRF04",100,"Grafisk produktion",75000,50000,110000,6]
["Grafiska arbetsflöden och analysmodeller","GRAGRA0",100,"Grafisk kommunikation",75000,50000,110000,6]
["Grundläggande säkerhet","SJOGRN0",100,"Sjöfartssäkerhet",75000,50000,110000,6]
["Grundläggande vård och omsorg","GRUGRD0",100,"Grundläggande vård och omsorg",35000,50000,110000,6]
["Gränssnitt 3D","GRÄGRN0",100,"Gränssnittsdesign",75000,50000,110000,6]
["Gränssnittsdesign","GRÄGRÄ0",100,"Gränssnittsdesign",75000,50000,110000,6]
["Grävmaskiner","MOBGRV0",200,"Mobila arbetsmaskiner",75000,50000,110000,6]
["Grönyte- och småmaskinsteknik","GROGRO0",100,"Grönyte- och småmaskinsteknik",75000,50000,110000,6]
["Guide och reseledare","AKTGUI0",100,"Aktiviteter och värdskap",35000,50000,110000,6]
["Guide och reseledare","TURGUI0",100,"Turism",35000,50000,110000,6]
["Guidning i naturbruksmiljöer","NAGGUD0",100,"Naturguidning",75000,50000,110000,6]
["Handel – specialisering","HANHAN00S",100,"Handel",35000,50000,110000,6]
["Handel och hållbar utveckling","HANHAN0",100,"Handel",35000,50000,110000,6]
["Hantering av varor och gods","GODHAT0",200,"Godshantering",75000,50000,110000,6]
["Hantverk – introduktion","HAVHAV0",200,"Hantverk",75000,50000,110000,6]
["Hantverksteknik 1","HAVHNT01",200,"Hantverk",75000,50000,110000,6]
["Hantverksteknik 2","HAVHNT02",200,"Hantverk",75000,50000,110000,6]
["Hantverksteknik 3","HAVHNT03",200,"Hantverk",75000,50000,110000,6]
["Hantverksteknik 4","HAVHNT04",200,"Hantverk",75000,50000,110000,6]
["Hantverksteknik 4 – specialisering","HAVHNT04S",50,"Hantverk",75000,50000,110000,6]
["Hantverksteknik 5","HAVHNT05",200,"Hantverk",75000,50000,110000,6]
["Hantverksteknik 5 – specialisering","HAVHNT05S",50,"Hantverk",75000,50000,110000,6]
["Hantverksteknik 6a","HAVHNT06a",100,"Hantverk",75000,50000,110000,6]
["Hantverksteknik 6b","HAVHNT06b",50,"Hantverk",75000,50000,110000,6]
["Helikopterlära","FLYHEL0",200,"Flygyrkesteknik",75000,50000,110000,6]
["Helikopterteknik","HELHEL0",200,"Helikopterteknik",75000,50000,110000,6]
["Hemsjukvård","SJUHEM0",100,"Sjukvård",35000,50000,110000,6]
["Hjullastare","MOBHJU0",200,"Mobila arbetsmaskiner",75000,50000,110000,6]
["Hjulutrustning","HJUHJU0",200,"Hjulutrustningsteknik",75000,50000,110000,6]
["Hjulutrustning – specialisering","HJUHJT00S",100,"Hjulutrustningsteknik",75000,50000,110000,6]
["Hotelladministration","HOTHOT0",100,"Hotell",35000,50000,110000,6]
["Hundkunskap 1","HUNHUN01",100,"Hundkunskap",75000,50000,110000,6]
["Hundkunskap 2","HUNHUN02",100,"Hundkunskap",75000,50000,110000,6]
["Hundkunskap 3","HUNHUN03",100,"Hundkunskap",75000,50000,110000,6]
["Husbyggnad 1","HUSHUS01",100,"Husbyggnad",75000,50000,110000,6]
["Husbyggnad 2","HUSHUS02",200,"Husbyggnad",75000,50000,110000,6]
["Husbyggnad 3 – ombyggnad","HUSHUS03",200,"Husbyggnad",75000,50000,110000,6]
["Husbyggnadsprocessen","HUSHUB0",200,"Husbyggnad",75000,50000,110000,6]
["Husvagnar och husbilar","HUVHUS0",300,"Husvagns- och husbilsteknik",75000,50000,110000,6]
["Hydraulik, kraftstationshydraulik och turbiner","VAEHYD0",100,"Vattenkraftteknik",75000,50000,110000,6]
["Hygien","HYGHYG0",100,"Hygienkunskap",75000,50000,110000,6]
["Hållbar turism","RESHAL0",100,"Reseproduktion och marknadsföring",35000,50000,110000,6]
["Hållbar turism","TURHÅL0",100,"Turism",35000,50000,110000,6]
["Hållbart samhällsbyggande","HÅLHÅB0",100,"Hållbart samhälle",75000,50000,110000,6]
["Hår- och makeupstylist 2 *","HAVHAR02",200,"Hantverk",75000,50000,110000,6]
["Hår- och makeupstylist 3 *","HAVHAR03",200,"Hantverk",75000,50000,110000,6]
["Hår- och makeupstylist 4 *","HAVHAR04",200,"Hantverk",75000,50000,110000,6]
["Hår- och makeupstylist 5 *","HAVHAR05",200,"Hantverk",75000,50000,110000,6]
["Hälso- och sjukvård 1","HAOHAL01",100,"Hälso- och sjukvård",35000,50000,110000,6]
["Hälso- och sjukvård 2","HAOHAL02",100,"Hälso- och sjukvård",35000,50000,110000,6]
["Hälsopedagogik","HALHAL0 ",100,"Hälsa",35000,50000,110000,6]
["Hälsopedagogik","HALHAL0",100,"Hälsa",35000,50000,110000,6]
["Hästkunskap 1","HÄTHÄS01",100,"Hästkunskap",75000,50000,110000,6]
["Hästkunskap 2","HÄTHÄS02",100,"Hästkunskap",75000,50000,110000,6]
["Hästkunskap 3","HÄTHÄS03",100,"Hästkunskap",75000,50000,110000,6]
["Hästsportanläggningars skötsel och drift 1","NARHAS01",100,"Naturbrukets byggnader",75000,50000,110000,6]
["Hästsportanläggningars skötsel och drift 2","NARHAS02",100,"Naturbrukets byggnader",75000,50000,110000,6]
["Högspänningsnät","ELDHÖG0",100,"Eldistributionsteknik",75000,50000,110000,6]
["Inbrottslarmssystem","LARINB0",100,"Larm och säkerhetsteknik",75000,50000,110000,6]
["Industriautomation","INRIND0",100,"Industriautomation",75000,50000,110000,6]
["Industriautomation","AUTIND0",100,"Automationsteknik",75000,50000,110000,6]
["Industriell informationsteknik","DAOINU0",100,"Dator- och kommunikationsteknik",75000,50000,110000,6]
["Industriell lackering","LACINS0",200,"Lackeringsteknik",75000,50000,110000,6]
["Industriell mätteknik – fördjupning","PRUINU0",50,"Produktionsutrustning",75000,50000,110000,6]
["Industriell mätteknik – grund","PRUIND0",50,"Produktionsutrustning",75000,50000,110000,6]
["Industriisolering","TEIINT0",200,"Teknisk isolering",75000,50000,110000,6]
["Industrirörteknik 1","INDIND01",100,"Industrirörteknik",75000,50000,110000,6]
["Industrirörteknik 2","INDIND02",100,"Industrirörteknik",75000,50000,110000,6]
["Industrirörteknik 3","INDIND03",200,"Industrirörteknik",75000,50000,110000,6]
["Industriteknisk fördjupning 1","PRFPRF01",50,"Industriteknisk fördjupning",75000,50000,110000,6]
["Industriteknisk fördjupning 2","PRFPRF02",50,"Industriteknisk fördjupning",75000,50000,110000,6]
["Industritekniska processer 1","INUINU01",100,"Industritekniska processer",75000,50000,110000,6]
["Industritekniska processer 2","INUINU02",100,"Industritekniska processer",75000,50000,110000,6]
["Industritekniska processer 3","INUINU03",100,"Industritekniska processer",75000,50000,110000,6]
["Industritekniska processer 4","INUINU04",100,"Industritekniska processer",75000,50000,110000,6]
["Information och kommunikation 1","INFINF01",100,"Information och kommunikation",35000,50000,110000,6]
["Information och kommunikation 2","INFINF02",100,"Information och kommunikation",35000,50000,110000,6]
["Informationsteknik i fastighetsförvaltning","FAFINF0",100,"Fastighetsförvaltning",75000,50000,110000,6]
["Injusteringsteknik","SYSINJ0",100,"Systemkunskap",75000,50000,110000,6]
["Inköp 1","INKINK01",100,"Inköp och logistik",35000,50000,110000,6]
["Inköp 2","INKINK02",100,"Inköp och logistik",35000,50000,110000,6]
["Inredning och komfort 1","SPFINR01",200,"Spårfordonsteknik",75000,50000,110000,6]
["Inredning och komfort 2","SPFINR02",100,"Spårfordonsteknik",75000,50000,110000,6]
["Installationer","ELPINS0",100,"Elprojektering",75000,50000,110000,6]
["Intern och extern kommunikation","INFINE0",100,"Information och kommunikation",35000,50000,110000,6]
["Interna transporter","PRUINE00S",50,"Produktionsutrustning",75000,50000,110000,6]
["Internationellt arbete ","MÄNINA0",100,"Människan",35000,50000,110000,6]
["Intervallservice","MANINT0",100,"Marinmotorteknik",75000,50000,110000,6]
["It i vård och omsorg","ITIITI0",100,"It i vård och omsorg",35000,50000,110000,6]
["Jakt och viltvård – specialisering","SKOJAK00S",100,"Skog, mark och vatten",75000,50000,110000,6]
["Jakt och viltvård 1","SKOJAK01",100,"Skog, mark och vatten",75000,50000,110000,6]
["Jakt och viltvård 2","SKOJAK02",200,"Skog, mark och vatten",75000,50000,110000,6]
["Journalistik, reklam och information 1","MEEJOU01",100,"Mediekommunikation",35000,50000,110000,6]
["Journalistik, reklam och information 2","MEEJOU02",100,"Mediekommunikation",35000,50000,110000,6]
["Järnvägsbyggnad 1","JÄRJÄR01",100,"Järnvägsbyggnad",75000,50000,110000,6]
["Järnvägsbyggnad 2","JÄRJÄR02",200,"Järnvägsbyggnad",75000,50000,110000,6]
["Järnvägsbyggnad 3","JÄRJÄR03",200,"Järnvägsbyggnad",75000,50000,110000,6]
["Karosserikonstruktioner och inredning","KARKAR0",200,"Karosseriteknik",75000,50000,110000,6]
["Kolvmotor","FLYKOL0",200,"Flygyrkesteknik",75000,50000,110000,6]
["Kolvmotorer","KOLKOL0",200,"Kolvmotorer – flyg",75000,50000,110000,6]
["Komfort- och säkerhetssystem 1a","PERKOM01a",200,"Personbilsteknik",75000,50000,110000,6]
["Komfort- och säkerhetssystem 1b","PERKOM01b",200,"Personbilsteknik",75000,50000,110000,6]
["Komfortsystem","MASKOM0",100,"Maskin- och lastbilsteknik",75000,50000,110000,6]
["Kommunikation","PEDKOU0",100,"Pedagogik",35000,50000,110000,6]
["Kommunikationsnät 1","INSKOM01",100,"Installationsteknik",75000,50000,110000,6]
["Kommunikationsnät 2","INSKOM02",100,"Installationsteknik",75000,50000,110000,6]
["Kommunikationsnät 3","INSKOM03",100,"Installationsteknik",75000,50000,110000,6]
["Kommunikationssystem","SPFKOM0",100,"Spårfordonsteknik",75000,50000,110000,6]
["Komplementärmedicin","HAAKOM0",100,"Hälsovård",35000,50000,110000,6]
["Kondensisolering","TEIKOD0",100,"Teknisk isolering",75000,50000,110000,6]
["Konditori – specialisering","BAGKON00S",100,"Bageri- och konditorikunskap",75000,50000,110000,6]
["Konditori 1","BAGKON01",100,"Bageri- och konditorikunskap",75000,50000,110000,6]
["Konditori 2","BAGKON02",200,"Bageri- och konditorikunskap",75000,50000,110000,6]
["Konditori 3","BAGKON03",100,"Bageri- och konditorikunskap",75000,50000,110000,6]
["Konditori 4","BAGKON04",100,"Bageri- och konditorikunskap",75000,50000,110000,6]
["Konferens 1","KONKOF01",100,"Konferens och evenemang",35000,50000,110000,6]
["Konferens 2","KONKON02",100,"Konferens och evenemang",35000,50000,110000,6]
["Konferens 3","KONKON03",100,"Konferens och evenemang",35000,50000,110000,6]
["Konferens och evenemang","KONKOF0",100,"Konferens och evenemang",35000,50000,110000,6]
["Konsthantverk 1","KOHHAN01",100,"Konsthantverk",75000,50000,110000,6]
["Konsthantverk 2","KOHHAN02",100,"Konsthantverk",75000,50000,110000,6]
["Konsthantverk 3","KOHHAN03",100,"Konsthantverk",75000,50000,110000,6]
["Konsthantverk 4","KOHHAN04",100,"Konsthantverk",75000,50000,110000,6]
["Konsthantverk 5","KOHHAN05",100,"Konsthantverk",75000,50000,110000,6]
["Konstruktion 1","KOTKOS01",100,"Konstruktion",75000,50000,110000,6]
["Konstruktion 2","KOTKOS02",100,"Konstruktion",75000,50000,110000,6]
["Konstruktion 3","KOTKOS03",100,"Konstruktion",75000,50000,110000,6]
["Konstruktion och reparation 1","FRDKON01",200,"Fritidsbåtteknik",75000,50000,110000,6]
["Konstruktion och reparation 2","FRDKON02",200,"Fritidsbåtteknik",75000,50000,110000,6]
["Kontorstekniksystem","ELOKOT0",100,"Elektroniksystem – installation och underhåll",75000,50000,110000,6]
["Kontorstekniksystem","ELTKOT0",100,"Elektroniksystem",75000,50000,110000,6]
["Kontrollanläggningar","VAEKOR0",200,"Vattenkraftteknik",75000,50000,110000,6]
["Korg och boggi","SPFKOR0",200,"Spårfordonsteknik",75000,50000,110000,6]
["Kost och hälsa","HALKOC0",100,"Hälsa",35000,50000,110000,6]
["Kost, måltid och munhälsa","HAAKOS0",100,"Hälsovård",35000,50000,110000,6]
["Kraft- och värmeteknik 1","KRAKRA01",200,"Kraft- och värmeteknik",75000,50000,110000,6]
["Kraft- och värmeteknik 2","KRAKRA02",200,"Kraft- och värmeteknik",75000,50000,110000,6]
["Kulturplåtslageri","PLTKUU0",100,"Plåtslageriteknik",75000,50000,110000,6]
["Kundmottagning och reservdelshantering","SUPKUN0",100,"Support och servicearbete",75000,50000,110000,6]
["Kustnavigation och säkerhet","BATKUS0",100,"Båtkunskap",75000,50000,110000,6]
["Kyl- och värmepumpsteknik – energieffektivisering","KYLKYL0",100,"Kyl- och värmepumpsteknik",75000,50000,110000,6]
["Kyl- och värmepumpsteknik – grund","KYLKYO0",100,"Kyl- och värmepumpsteknik",75000,50000,110000,6]
["Kyl- och värmepumpsteknik – installation","KYLKYC0",200,"Kyl- och värmepumpsteknik",75000,50000,110000,6]
["Kyl- och värmepumpsteknik – miljö och säkerhet","KYLKYH0",100,"Kyl- och värmepumpsteknik",75000,50000,110000,6]
["Kyl- och värmepumpsteknik – service","KYLKYV0",200,"Kyl- och värmepumpsteknik",75000,50000,110000,6]
["Kälsvets 1","SAAKÄL01S",100,"Sammanfogningsteknik",75000,50000,110000,6]
["Kälsvets 2","SAAKÄL02S",100,"Sammanfogningsteknik",75000,50000,110000,6]
["Körning 1","RINKOR01",100,"Ridning och körning",75000,50000,110000,6]
["Körning 1","RIDKÖR01",100,"Rid- och körkunskap",75000,50000,110000,6]
["Körning 2","RINKOR02",100,"Ridning och körning",75000,50000,110000,6]
["Körning 2","RIDKÖR02",100,"Rid- och körkunskap",75000,50000,110000,6]
["Laboratorieteknik","INULAB0",200,"Industritekniska processer",75000,50000,110000,6]
["Lackeringssystem","LACLAC0",200,"Lackeringsteknik",75000,50000,110000,6]
["Lackeringsteknik – applicering","LACLAK0",100,"Lackeringsteknik",75000,50000,110000,6]
["Lackeringsteknik – introduktion","LACLAE0",200,"Lackeringsteknik",75000,50000,110000,6]
["Lackeringsteknik för tunga fordon","LACLAR0",200,"Lackeringsteknik",75000,50000,110000,6]
["Lageradministration och terminallogistik","LAGLAG0",200,"Lager och terminal",75000,50000,110000,6]
["Lagerprocesser","LAGLAP0",200,"Lager och terminal",75000,50000,110000,6]
["Lantbruksdjur – specialisering","LANLAN00S",100,"Lantbruksdjur",75000,50000,110000,6]
["Lantbruksdjur 1","LANLAN01",100,"Lantbruksdjur",75000,50000,110000,6]
["Lantbruksdjur 2","LANLAN02",100,"Lantbruksdjur",75000,50000,110000,6]
["Lantbruksmaskiner 1","LAULAT01",100,"Lantbruksmaskiner",75000,50000,110000,6]
["Lantbruksmaskiner 1","NABLAT01",100,"Naturbruksteknik",75000,50000,110000,6]
["Lantbruksmaskiner 2","LAULAT02",100,"Lantbruksmaskiner",75000,50000,110000,6]
["Lantbruksmaskiner 2","NABLAT02",100,"Naturbruksteknik",75000,50000,110000,6]
["Lantbruksmaskinsteknik","LAKLAN0",100,"Lantbruksmaskinsteknik",75000,50000,110000,6]
["Larm-, övervaknings- och säkerhetssystem","LARLAM0",100,"Larm och säkerhetsteknik",75000,50000,110000,6]
["Lastbilar – chassi och bromsar","LAPLAC0",100,"Lastbilar – reparations- och systemteknik",75000,50000,110000,6]
["Lastbilar – kraftöverföring","LAPLAS0",100,"Lastbilar – reparations- och systemteknik",75000,50000,110000,6]
["Lastbilar – system och diagnosteknik 1","LAPLAS01",100,"Lastbilar – reparations- och systemteknik",75000,50000,110000,6]
["Lastbilar – system och diagnosteknik 2","LAPLAS02",100,"Lastbilar – reparations- och systemteknik",75000,50000,110000,6]
["Lastbilar och mobila maskiner – basteknik","LAALAT0",100,"Lastbilar och mobila maskiner – service och underhållsteknik",75000,50000,110000,6]
["Lastbilar och mobila maskiner – förbränningsmotorer","LAILAT0",200,"Lastbilar – reparations- och systemteknik",75000,50000,110000,6]
["Lastbilar och mobila maskiner – service och underhåll 1","LAALAS01",100,"Lastbilar och mobila maskiner – service och underhållsteknik",75000,50000,110000,6]
["Lastbilar och mobila maskiner – service och underhåll 2","LAALAS02",100,"Lastbilar och mobila maskiner – service och underhållsteknik",75000,50000,110000,6]
["Lastbilar och mobila maskiner – verkstad och elteknik","LAALAS0",100,"Lastbilar och mobila maskiner – service och underhållsteknik",75000,50000,110000,6]
["Lastbilar och utrustning","MASLAT0",300,"Maskin- och lastbilsteknik",75000,50000,110000,6]
["Lastbilsmonterad hydraulik och pneumatik","MASLAI0",100,"Maskin- och lastbilsteknik",75000,50000,110000,6]
["Lastbilsmonterad kran","GOSLAL0",100,"Godstransporter",75000,50000,110000,6]
["Lastbilspåbyggnad – specialisering","LALLAS00S",100,"Lastbilspåbyggnadsteknik",75000,50000,110000,6]
["Lastbärare","GODLAS0",200,"Godshantering",75000,50000,110000,6]
["Lasthantering och passagerarsäkerhet","FARLAS0",100,"Fartygsteknik",75000,50000,110000,6]
["Lastmaskiner och truckar","LASLAA0",100,"Lastmaskiner och truckar inom naturbruk",75000,50000,110000,6]
["Lastmaskiner och truckar","NABLAA0",100,"Naturbruksteknik",75000,50000,110000,6]
["Ledarskap och organisation","LEDLED0",100,"Ledarskap och organisation",35000,50000,110000,6]
["Livsmedels- och näringskunskap 1","LIVLIV01",100,"Livsmedels- och näringskunskap",75000,50000,110000,6]
["Livsmedels- och näringskunskap 2","LIVLIV02",100,"Livsmedels- och näringskunskap",75000,50000,110000,6]
["Ljudproduktion 1","LJULJU01",100,"Ljudproduktion",75000,50000,110000,6]
["Ljudproduktion 2","LJULJU02",100,"Ljudproduktion",75000,50000,110000,6]
["Ljudproduktionsteknik","EVELJD0",100,"Eventteknik",75000,50000,110000,6]
["Ljus- och bildproduktionsteknik","EVELJS0",100,"Eventteknik",75000,50000,110000,6]
["Logi","RECLOG0",100,"Reception",35000,50000,110000,6]
["Logi","HOTLOG0",100,"Hotell",35000,50000,110000,6]
["Logistik 1","INKLOG01",100,"Inköp och logistik",35000,50000,110000,6]
["Logistik 2","INKLOG02",100,"Inköp och logistik",35000,50000,110000,6]
["Luftbehandling","VETLUF0",100,"Ventilationsteknik",75000,50000,110000,6]
["Luftbehandlingsanläggningar","VETLUT0",200,"Ventilationsteknik",75000,50000,110000,6]
["Luftbehandlingssystem","VETLUB0",200,"Ventilationsteknik",75000,50000,110000,6]
["Luftbehandlingssystem","VETLUE0",100,"Ventilationsteknik",75000,50000,110000,6]
["Luftströmning","VETLUS0",200,"Ventilationsteknik",75000,50000,110000,6]
["Låg- och högfrekvenskretsar","ELELÅG0",100,"Elektronik",75000,50000,110000,6]
["Lågspänningsnät","ELDLÅS0",100,"Eldistributionsteknik",75000,50000,110000,6]
["Låsinstallation","LAOLAS0",200,"Lås- och passerteknik",75000,50000,110000,6]
["Låsteknik","LAOLAT0",200,"Lås- och passerteknik",75000,50000,110000,6]
["Lärande och utveckling","PEDLÄR0",100,"Pedagogik",35000,50000,110000,6]
["Lättbyggnadsteknik","PLTLÄT0",200,"Plåtslageriteknik",75000,50000,110000,6]
["Manus för film och tv","FILMAN0",100,"Film- och tv-produktion",35000,50000,110000,6]
["Marina elektroniksystem","MAYMAR0",100,"Marina elektroniksystem",75000,50000,110000,6]
["Marina elektroniksystem","ELTMAR0",100,"Elektroniksystem",75000,50000,110000,6]
["Marinelektronik 1","MAIMAR01",100,"Marin el och elektronik",75000,50000,110000,6]
["Marinelektronik 2","MAIMAR02",100,"Marin el och elektronik",75000,50000,110000,6]
["Marinelektronik 3","MAIMAR03",100,"Marin el och elektronik",75000,50000,110000,6]
["Marinmotor – introduktion","MANMAR0",100,"Marinmotorteknik",75000,50000,110000,6]
["Marken och växternas biologi","BIGMAN0",100,"Biologi – naturbruk",75000,50000,110000,6]
["Marknadsföring","FÖRMAD0",100,"Företagsekonomi",35000,50000,110000,6]
["Marknadsföring och försäljning","RESMAS0",100,"Reseproduktion och marknadsföring",35000,50000,110000,6]
["Marknadsföring och försäljning","TURMAS0",100,"Turism",35000,50000,110000,6]
["Maskin- och lastbilsteknik – introduktion","MASMAI0",200,"Maskin- och lastbilsteknik",75000,50000,110000,6]
["Maskinbefäl","MAKMAS0",100,"Maskintjänst",75000,50000,110000,6]
["Maskinell godshantering","GODMAL0",200,"Godshantering",75000,50000,110000,6]
["Maskintjänst 1","MAKMAS01",300,"Maskintjänst",75000,50000,110000,6]
["Maskintjänst 2","MAKMAS02",300,"Maskintjänst",75000,50000,110000,6]
["Massage 1","MAAMAA01",100,"Massage",35000,50000,110000,6]
["Massage 2","MAAMAA02",100,"Massage",35000,50000,110000,6]
["Mat och butik – specialisering","MAOMAT00S",100,"Mat och butik",35000,50000,110000,6]
["Mat och butik 1","MAOMAT01",100,"Mat och butik",35000,50000,110000,6]
["Mat och butik 2","MAOMAT02",100,"Mat och butik",35000,50000,110000,6]
["Mat och dryck i kombination","MACMAT0",100,"Mat och dryck i kombination",75000,50000,110000,6]
["Matematik","MATMAT01",100,"Matematik ",30000,30000,30000,6]
["Matematik","MATMAT02",100,"Matematik ",30000,30000,30000,6]
["Matematik","MATMAT03",100,"Matematik ",30000,30000,30000,6]
["Material","HVKMAT0",50,"Hantverkskunskap",75000,50000,110000,6]
["Material och miljö","HVKMAE0",100,"Hantverkskunskap",75000,50000,110000,6]
["Materialkunskap 1","MAEMAT01",100,"Materialkunskap",75000,50000,110000,6]
["Materialkunskap 2","MAEMAT02",100,"Materialkunskap",75000,50000,110000,6]
["Materiallära – flyg","UNDMAT0",100,"Underhållsteknik – flyg",75000,50000,110000,6]
["Materiallära – flyg","FLYMAA0",100,"Flygyrkesteknik",75000,50000,110000,6]
["Matlagning – specialisering","MALMAL00S",100,"Matlagningskunskap",75000,50000,110000,6]
["Matlagning 1","MALMAL01",100,"Matlagningskunskap",75000,50000,110000,6]
["Matlagning 2","MALMAL02",200,"Matlagningskunskap",75000,50000,110000,6]
["Matlagning 3","MALMAL03",200,"Matlagningskunskap",75000,50000,110000,6]
["Matlagning 4","MALMAL04",200,"Matlagningskunskap",75000,50000,110000,6]
["Matsalshantverk","SERMAF0",100,"Serveringskunskap",75000,50000,110000,6]
["Medicin 1","MEDMED01",150,"Medicin",35000,50000,110000,6]
["Medicin 2","MEDMED02",100,"Medicin",35000,50000,110000,6]
["Medier, samhälle och kommunikation 1","MERMEE01",100,"Medier, samhälle och kommunikation",35000,50000,110000,6]
["Medier, samhälle och kommunikation 2","MERMEE02",100,"Medier, samhälle och kommunikation",35000,50000,110000,6]
["Mekatronik 1","MEKMEK01",100,"Mekatronik",75000,50000,110000,6]
["Mekatronik 2","MEKMEK02",100,"Mekatronik",75000,50000,110000,6]
["Mental träning","HALMEN0",100,"Hälsa",35000,50000,110000,6]
["Mikrodatortillämpningar","ELEMIK0",100,"Elektronik",75000,50000,110000,6]
["Miljö","HVKMIL0",50,"Hantverkskunskap",75000,50000,110000,6]
["Miljö- och energikunskap","HÅLMIJ0",100,"Hållbart samhälle",35000,50000,110000,6]
["Miljöer och utrustning för fordonstest","FOOMIL0",200,"Fordonstestteknik",75000,50000,110000,6]
["Mobil hydraulik 1","MASMOB01",100,"Maskin- och lastbilsteknik",75000,50000,110000,6]
["Mobil hydraulik 2","MASMOB02",100,"Maskin- och lastbilsteknik",75000,50000,110000,6]
["Mobila maskiner – hydraulsystem","MOLMOI0",200,"Mobila maskiner – reparations- och systemteknik",75000,50000,110000,6]
["Mobila maskiner – kraftöverföring","MOLMOB0",100,"Mobila maskiner – reparations- och systemteknik",75000,50000,110000,6]
["Mobila maskiner – system- och diagnosteknik 1","MOLMOB01",100,"Mobila maskiner – reparations- och systemteknik",75000,50000,110000,6]
["Mobila maskiner – system- och diagnosteknik 2","MOLMOB02",100,"Mobila maskiner – reparations- och systemteknik",75000,50000,110000,6]
["Mobila maskiner och utrustning","MASMOB0",300,"Maskin- och lastbilsteknik",75000,50000,110000,6]
["Motor och kraftöverföring","PERMOT0",300,"Personbilsteknik",75000,50000,110000,6]
["Motor- och röjmotorsåg 1","MOTMOT01",100,"Motor- och röjmotorsåg",75000,50000,110000,6]
["Motor- och röjmotorsåg 2","MOTMOT02",100,"Motor- och röjmotorsåg",75000,50000,110000,6]
["Motorelektronik 1","MAIMOT01",100,"Marin el och elektronik",75000,50000,110000,6]
["Motorelektronik 2","MAIMOT02",100,"Marin el och elektronik",75000,50000,110000,6]
["Multimediasystem","DAOMUL0",100,"Dator- och kommunikationsteknik",75000,50000,110000,6]
["Mur- och putsverk 1 – grundmurar","MURMUR01",100,"Mur- och putsverk",75000,50000,110000,6]
["Mur- och putsverk 2 – murverk","MURMUR02",100,"Mur- och putsverk",75000,50000,110000,6]
["Mur- och putsverk 3 – puts","MURMUR03",100,"Mur- och putsverk",75000,50000,110000,6]
["Måleri – dekorationstekniker","MARMAE0",100,"Måleri",75000,50000,110000,6]
["Måleri – äldre måleritekniker","MARMAR0",100,"Måleri",75000,50000,110000,6]
["Måleri 1","MARMAL01",200,"Måleri",75000,50000,110000,6]
["Måleri 2","MARMAL02",200,"Måleri",75000,50000,110000,6]
["Måleri 3","MARMAL03",200,"Måleri",75000,50000,110000,6]
["Måleri 4","MARMAL04",200,"Måleri",75000,50000,110000,6]
["Måleri 5","MARMAL05",200,"Måleri",75000,50000,110000,6]
["Måleriprocessen","MARMAL0",200,"Måleri",75000,50000,110000,6]
["Mångbruk av skog","SKOMÅN0",100,"Skog, mark och vatten",75000,50000,110000,6]
["Människan i industrin 1","MÄIMÄN01",100,"Människan i industrin",75000,50000,110000,6]
["Människan i industrin 2","MÄIMÄN02",100,"Människan i industrin",75000,50000,110000,6]
["Människans säkerhet","MÄSMÄN0",100,"Människans säkerhet",35000,50000,110000,6]
["Människors miljöer","PEDMÄI0",100,"Pedagogik",35000,50000,110000,6]
["Mänskliga faktorer","YRKMAN0",50,"Yrkesteknik – flyg",75000,50000,110000,6]
["Mänskliga faktorer","FLYMAS0",100,"Flygyrkesteknik",75000,50000,110000,6]
["Mät- och reglerteknik","MÄTMÄT0",100,"Mät-, styr- och reglerteknik",75000,50000,110000,6]
["Mät- och styrteknik","MÄTMÄO0",100,"Mät-, styr- och reglerteknik",75000,50000,110000,6]
["Mönsterkonstruktion 1","MNUMON01",100,"Manuell mönsterkonstruktion",75000,50000,110000,6]
["Mönsterkonstruktion 1","MÖNMÖN01",100,"Mönsterkonstruktion",75000,50000,110000,6]
["Mönsterkonstruktion 2","MNUMON02",100,"Manuell mönsterkonstruktion",75000,50000,110000,6]
["Mönsterkonstruktion 2","MÖNMÖN02",100,"Mönsterkonstruktion",75000,50000,110000,6]
["Natur- och landskapsvård","NATNAT0",100,"Natur- och landskapsvård",75000,50000,110000,6]
["Naturbruk","NAUNAU0",200,"Naturbruk",75000,50000,110000,6]
["Naturguidning 1","NAGNAT01",100,"Naturguidning",35000,50000,110000,6]
["Naturguidning 2","NAGNAT02",200,"Naturguidning",35000,50000,110000,6]
["Naturturism 1","NAMNAT01",100,"Naturturism",75000,50000,110000,6]
["Naturturism 2","NAMNAT02",100,"Naturturism",75000,50000,110000,6]
["Naturturism 3","NAMNAT03",100,"Naturturism",75000,50000,110000,6]
["Nyinstallation","MANNYI0",100,"Marinmotorteknik",75000,50000,110000,6]
["Nät- och transformatorstationer","ELDNÄT0",100,"Eldistributionsteknik",75000,50000,110000,6]
["Näthandel 1","NÄTNÄT01",100,"Näthandel",35000,50000,110000,6]
["Näthandel 2","NÄTNÄT02",100,"Näthandel",35000,50000,110000,6]
["Nätunderhållsarbete i stadsnät","ELDNÄU0",100,"Eldistributionsteknik",75000,50000,110000,6]
["Nätunderhållsarbete i vindkraftnät","ELDNÄN0",100,"Eldistributionsteknik",75000,50000,110000,6]
["Nätunderhållsarbete på luftledningsnät 0,4–24kV","ELDNÄD0",100,"Eldistributionsteknik",75000,50000,110000,6]
["Nätverksadministration","NAINAV0",100,"Nätverksteknik",75000,50000,110000,6]
["Nätverksadministration","NÄVNÄV0",100,"Nätverksteknik",75000,50000,110000,6]
["Nätverkssäkerhet","NAINAE0",100,"Nätverksteknik",75000,50000,110000,6]
["Nätverkssäkerhet","NÄVNÄE0",100,"Nätverksteknik",75000,50000,110000,6]
["Nätverksteknik","NAINAR0",100,"Nätverksteknik",75000,50000,110000,6]
["Nätverksteknik","NÄVNÄR0",100,"Nätverksteknik",75000,50000,110000,6]
["Nätverksteknologier","NAINAK0",100,"Nätverksteknik",75000,50000,110000,6]
["Nätverksteknologier","NÄVNÄK0",100,"Nätverksteknik",75000,50000,110000,6]
["Odling – specialisering","ODLODL00S",100,"Odling",75000,50000,110000,6]
["Odling av djurfoder","VAOODL0",100,"Växtodling",75000,50000,110000,6]
["Odling av djurfoder","ODLODL0",100,"Odling",75000,50000,110000,6]
["Odling i växthus – specialisering","ODIODI00S",100,"Odling i växthus",75000,50000,110000,6]
["Odling i växthus 1","ODIODL01",100,"Odling i växthus",75000,50000,110000,6]
["Odling i växthus 2","ODIODL02",100,"Odling i växthus",75000,50000,110000,6]
["Omvårdnad 1","OMVOMV01",100,"Omvårdnad",35000,50000,110000,6]
["Omvårdnad 2","OMVOMV02",100,"Omvårdnad",35000,50000,110000,6]
["Orienteringskurser","KGYORI11A",null,"Studie- eller yrkesval",30000,30000,30000,9]
["Orienteringskurser","KGYORI11B",null,"Studieteknik",30000,30000,30000,9]
["Orienteringskurser","KGYORI11C",null,"Introduktion till kurser",30000,30000,30000,9]
["Orienteringskurser","KGYORI11D",null,"Validering",30000,30000,30000,9]
["Orienteringskurser","KGYORI11E",null,"Stöd/studiehandledning modersmål",30000,30000,30000,9]
["Orienteringskurser","KGYORI11F",null,"Yrkessvenska",30000,30000,30000,9]
["Orienteringskurser","KGYORI11G",null,"Digital kompetens",30000,30000,30000,9]
["Orienteringskurser","KGYORI11H",null,"Kunskaper om arbetsliv/arbetsmarknad",30000,30000,30000,9]
["Original, reproduktion och prepress","GRAGRR0",100,"Grafisk kommunikation",75000,50000,110000,6]
["Palliativ vård","SJULIN0",100,"Sjukvård",35000,50000,110000,6]
["Passersystem","LARPAS0",100,"Larm och säkerhetsteknik",75000,50000,110000,6]
["Pedagogiska teorier och praktiker","PEDPED0",100,"Pedagogik",35000,50000,110000,6]
["Pedagogiskt arbete","PEGPEA0",200,"Pedagogiskt arbete",35000,50000,110000,6]
["Pedagogiskt ledarskap","PEDPEG0",100,"Pedagogik",35000,50000,110000,6]
["Personaladministration","ADMPER0",100,"Administration",35000,50000,110000,6]
["Personbilar – basteknik ","SEOPEB0",100,"Personbilar – service och underhållsteknik",75000,50000,110000,6]
["Personbilar - chassi och bromsar","REPPEO0",100,"Personbilar – reparations- och systemteknik",75000,50000,110000,6]
["Personbilar – förbränningsmotorer","REPPER0",100,"Personbilar – reparations- och systemteknik",75000,50000,110000,6]
["Personbilar – kraftöverföring","REPPES0",100,"Personbilar – reparations- och systemteknik",75000,50000,110000,6]
["Personbilar – service och underhåll 1","SEOPER01",100,"Personbilar – service och underhållsteknik",75000,50000,110000,6]
["Personbilar – service och underhåll 2","SEOPER02",100,"Personbilar – service och underhållsteknik",75000,50000,110000,6]
["Personbilar – system och diagnosteknik 1","REPPER01",200,"Personbilar – reparations- och systemteknik",75000,50000,110000,6]
["Personbilar – system och diagnosteknik 2","REPPER02",100,"Personbilar – reparations- och systemteknik",75000,50000,110000,6]
["Personbilar – verkstad och elteknik","SEOPER0",100,"Personbilar – service och underhållsteknik",75000,50000,110000,6]
["Personbilsteknik – introduktion","PERPES0",200,"Personbilsteknik",75000,50000,110000,6]
["Personlig försäljning 1","FÖSPER01",100,"Försäljning och kundservice",35000,50000,110000,6]
["Personlig försäljning 2","FÖSPER02",100,"Försäljning och kundservice",35000,50000,110000,6]
["Personlig försäljning 3","FÖSPER03",100,"Försäljning och kundservice",35000,50000,110000,6]
["Persontrafik – vux","PESPER1",200,"Persontransporter",75000,50000,110000,6]
["Persontrafik 1a","PESPER01a",200,"Persontransporter",75000,50000,110000,6]
["Persontrafik 1b","PESPER01b",200,"Persontransporter",75000,50000,110000,6]
["Persontransporter – specialisering","PESPER00S",100,"Persontransporter",75000,50000,110000,6]
["Pistmaskiner och utrustning","SNOPIM0",200,"Snöfordonsteknik",75000,50000,110000,6]
["Pistmaskinkörning","SNOPIS0",100,"Snöfordonsteknik",75000,50000,110000,6]
["Plast- och lamineringsteknik","FRDPLA0",100,"Fritidsbåtteknik",75000,50000,110000,6]
["Plocklagerhantering","LAGPLO0",100,"Lager och terminal",75000,50000,110000,6]
["Plåtslageri – grunder","PLÅPLÅ0",100,"Plåtslageri",75000,50000,110000,6]
["Plåtslageri – svetstekniker","PLTPLT0",100,"Plåtslageriteknik",75000,50000,110000,6]
["Plåtslageriprocessen","PLÅPLS0",200,"Plåtslageri",75000,50000,110000,6]
["Politik och hållbar utveckling","HÅLPOL0",100,"Hållbart samhälle",35000,50000,110000,6]
["Praktisk ellära","ELLPRA0",100,"Ellära",75000,50000,110000,6]
["Praktisk marknadsföring 1","HANPRA01",100,"Handel",35000,50000,110000,6]
["Praktisk marknadsföring 2","HANPRA02",100,"Handel",35000,50000,110000,6]
["Praktisk marknadsföring 3","HANPRA03",100,"Handel",35000,50000,110000,6]
["Processdatorsystem","PROPRO0",100,"Processautomation",75000,50000,110000,6]
["Processmätteknik 1","PROPRC01",100,"Processautomation",75000,50000,110000,6]
["Processmätteknik 2","PROPRC02",100,"Processautomation",75000,50000,110000,6]
["Processreglering","PROPRE0",100,"Processautomation",75000,50000,110000,6]
["Produktionsflöden","LACPRD0",100,"Lackeringsteknik",75000,50000,110000,6]
["Produktionskunskap 1","PRDPRO01",100,"Produktionskunskap",75000,50000,110000,6]
["Produktionskunskap 2","PRDPRO02",100,"Produktionskunskap",75000,50000,110000,6]
["Produktionsutrustning 1","PRUPRD01S",100,"Produktionsutrustning",75000,50000,110000,6]
["Produktionsutrustning 2","PRUPRD02S",100,"Produktionsutrustning",75000,50000,110000,6]
["Produktionsutrustning 3","PRUPRD03S",100,"Produktionsutrustning",75000,50000,110000,6]
["Produktionsutrustning 4","PRUPRD04",100,"Produktionsutrustning",75000,50000,110000,6]
["Produktutveckling 1","PRKPRK01",100,"Produktutveckling",75000,50000,110000,6]
["Produktutveckling 2","PRKPRK02",100,"Produktutveckling",75000,50000,110000,6]
["Programhantering","INFPRG0",100,"Information och kommunikation",35000,50000,110000,6]
["Programmerbara datorsystem – spårfordon","DAYPRO0",200,"Datorsystem – spårfordon",75000,50000,110000,6]
["Programmerbara styrsystem","MÄTPRR0",100,"Mät-, styr- och reglerteknik",75000,50000,110000,6]
["Programmering 1","PRRPRR01",100,"Programmering",75000,50000,110000,6]
["Programmering 2","PRRPRR02",100,"Programmering",75000,50000,110000,6]
["Projektering","ELPPRO0",200,"Elprojektering",75000,50000,110000,6]
["Provning och kontrollarbete","ELKPRV0",100,"Elektronikproduktion",75000,50000,110000,6]
["Psykiatri 1","PSYPSY01",100,"Psykiatri",35000,50000,110000,6]
["Psykiatri 2","PSYPSK02",100,"Psykiatri",35000,50000,110000,6]
["Psykiatri 2","PSYPSY02",200,"Psykiatri",35000,50000,110000,6]
["Psykologi 1","PSKPSY01",50,"Psykologi",35000,50000,110000,6]
["Psykologi 2a","PSKPSY02a",50,"Psykologi",35000,50000,110000,6]
["Psykologi 2b","PSKPSY02b",50,"Psykologi",35000,50000,110000,6]
["Radiokommunikation till sjöss","DACRAD0",50,"Däckstjänst",75000,50000,110000,6]
["Radiologiska utrustningar","MEIRAD0",100,"Medicinsk teknik",75000,50000,110000,6]
["Radioproduktion","LJURAD0",100,"Ljudproduktion",75000,50000,110000,6]
["Reception 1","RECREC01",100,"Reception",35000,50000,110000,6]
["Reception 1","HOTREC01",100,"Hotell",35000,50000,110000,6]
["Reception 2","RECREC02",100,"Reception",35000,50000,110000,6]
["Reception 2","HOTREC02",100,"Hotell",35000,50000,110000,6]
["Reception 3","RECREC03",100,"Reception",35000,50000,110000,6]
["Reception 3","HOTREC03",100,"Hotell",35000,50000,110000,6]
["Receptions- och konferensservice","ADMREC0",100,"Administration",35000,50000,110000,6]
["Redovisning 1","FÖRRED01",100,"Företagsekonomi",35000,50000,110000,6]
["Redovisning 2","FÖRRED02",100,"Företagsekonomi",35000,50000,110000,6]
["Renen och dess naturmiljö 1","RENREN01",100,"Rennäring",75000,50000,110000,6]
["Renen och dess naturmiljö 2","RENREN02",100,"Rennäring",75000,50000,110000,6]
["Renen och rennäringen 1","RENREE01",100,"Rennäring",75000,50000,110000,6]
["Renen och rennäringen 2","RENREE02",100,"Rennäring",75000,50000,110000,6]
["Rening av förorenat vatten","VATREN0",100,"Vatten- och miljöteknik",75000,50000,110000,6]
["Reparation av lastbilar och mobila maskiner","MASREP0",300,"Maskin- och lastbilsteknik",75000,50000,110000,6]
["Reparation av motorcyklar och ATV","ATVREP0",200,"ATV- och MC-teknik",75000,50000,110000,6]
["Reparation av personbilar och lätta transportfordon","PERREA0",300,"Personbilsteknik",75000,50000,110000,6]
["Reparation av snöfordon","SNOREP0",300,"Snöfordonsteknik",75000,50000,110000,6]
["Reparation av snöskoter","SNOREE0",100,"Snöfordonsteknik",75000,50000,110000,6]
["Reseproduktion och försäljning","RESRES0",100,"Reseproduktion och marknadsföring",35000,50000,110000,6]
["Reseproduktion och försäljning","TURRES0",100,"Turism",35000,50000,110000,6]
["Reservkraft","KRARER0",100,"Kraft- och värmeteknik",75000,50000,110000,6]
["Resmål och resvägar","RESREM0",100,"Reseproduktion och marknadsföring",35000,50000,110000,6]
["Resmål och resvägar","TURREM0",100,"Turism",35000,50000,110000,6]
["Ridning 1","RINRID01",100,"Ridning och körning",75000,50000,110000,6]
["Ridning 1","RIDRID01",100,"Rid- och körkunskap",75000,50000,110000,6]
["Ridning 2","RINRID02",100,"Ridning och körning",75000,50000,110000,6]
["Ridning 2","RIDRID02",100,"Rid- och körkunskap",75000,50000,110000,6]
["Ridning för ridlärare","RINRIN0",100,"Ridning och körning",75000,50000,110000,6]
["Ridning och körning","RINRID0",200,"Ridning och körning",75000,50000,110000,6]
["Ridning och körning","RIDRID0",200,"Rid- och körkunskap",75000,50000,110000,6]
["Riktbänkssystem","KARRIK0",200,"Karosseriteknik",75000,50000,110000,6]
["Riktningsteknik – introduktion","KARRIT0",200,"Karosseriteknik",75000,50000,110000,6]
["Robotteknik","INRROB0",100,"Industriautomation",75000,50000,110000,6]
["Robotteknik","AUTROB0",100,"Automationsteknik",75000,50000,110000,6]
["Rums- och konferensbokning","KONRUM0",100,"Konferens och evenemang",35000,50000,110000,6]
["Räddningsmedicin","HAORAD0",100,"Hälso- och sjukvård",35000,50000,110000,6]
["Räddningsmedicin","SJURÄD0",100,"Sjukvård",35000,50000,110000,6]
["Rättspsykiatri","PSYRÄS0",100,"Psykiatri",35000,50000,110000,6]
["Rättspsykiatri ","RATRAT0",100,"Rättpsykiatri",35000,50000,110000,6]
["Rörsvets 1","SAARÖR01S",100,"Sammanfogningsteknik",75000,50000,110000,6]
["Rörsvets 2","SAARÖR02S",100,"Sammanfogningsteknik",75000,50000,110000,6]
["Samhällsbaserad psykiatri","PSYSAM0",100,"Psykiatri",35000,50000,110000,6]
["Samhällskunskap","SAMSAM01",100,"Samhällskunskap",30000,30000,30000,6]
["Samhällskunskap","SAMSAM02",100,"Samhällskunskap",30000,30000,30000,6]
["Samhällskunskap","SAMSAM03",100,"Samhällskunskap",30000,30000,30000,6]
["Samisk hantverkskultur","SAISAM0",50,"Samiskt hantverk",75000,50000,110000,6]
["Samisk mat och matkultur","SASSAM0",100,"Samisk mat och matkultur",75000,50000,110000,6]
["Samiskt hantverk 1","SAISAM01S",100,"Samiskt hantverk",75000,50000,110000,6]
["Samiskt hantverk 2","SAISAM02S",100,"Samiskt hantverk",75000,50000,110000,6]
["Samiskt hantverk 3","SAISAM03S",100,"Samiskt hantverk",75000,50000,110000,6]
["Samiskt hantverk 4","SAISAM04",100,"Samiskt hantverk",75000,50000,110000,6]
["Samiskt hantverk 5","SAISAM05",100,"Samiskt hantverk",75000,50000,110000,6]
["Sammanfogning","SAASAA0",100,"Sammanfogningsteknik",75000,50000,110000,6]
["Sanitet och tappvatten","INTSAN0",50,"Installationsteknik VVS",75000,50000,110000,6]
["Sanitetsteknik 1","VVISAN01",100,"VVS – installation",75000,50000,110000,6]
["Sanitetsteknik 1","VVSSAN01",100,"VVS-teknik",75000,50000,110000,6]
["Sanitetsteknik 2","VVISAN02",100,"VVS – installation",75000,50000,110000,6]
["Sanitetsteknik 2","VVSSAN02",100,"VVS-teknik",75000,50000,110000,6]
["Servering – specialisering","SERSER00S",100,"Serveringskunskap",75000,50000,110000,6]
["Servering 1","SERSER01",100,"Serveringskunskap",75000,50000,110000,6]
["Servering 2","SERSER02",200,"Serveringskunskap",75000,50000,110000,6]
["Service och bemötande 1","SEVSEV01",100,"Service och bemötande",75000,50000,110000,6]
["Service och bemötande 2","SEVSEV02",100,"Service och bemötande",75000,50000,110000,6]
["Service och reparationsarbete","SUPSER0",100,"Support och servicearbete",75000,50000,110000,6]
["Servicekunskap","FÖSSEV0",100,"Försäljning och kundservice",35000,50000,110000,6]
["Servicekunskap 1*","FÖSSEV01",100,"Försäljning och kundservice",35000,50000,110000,6]
["Servicekunskap 2*","FÖSSER02",100,"Försäljning och kundservice",35000,50000,110000,6]
["Serviceteknik – naturbruk – specialisering","SEISER00S",100,"Serviceteknik – naturbruk",75000,50000,110000,6]
["Serviceteknik – naturbruk 1","SEISEI01",100,"Serviceteknik – naturbruk",75000,50000,110000,6]
["Serviceteknik – naturbruk 2","SEISEI02",100,"Serviceteknik – naturbruk",75000,50000,110000,6]
["Signalteknik","JÄNSIG0",300,"Järnvägsteknik",75000,50000,110000,6]
["Skadebesiktning och produktionsflöde","KARSKA0",100,"Karosseriteknik",75000,50000,110000,6]
["Skapande verksamhet","PEGSKP0",100,"Pedagogiskt arbete",35000,50000,110000,6]
["Skarvnings- och sammanfogningsteknik","KARSKR0",300,"Karosseriteknik",75000,50000,110000,6]
["Skeppsteknik","FARSKE0",50,"Fartygsteknik",75000,50000,110000,6]
["Skogsbruksmaskinsteknik","SKBSKO0",100,"Skogsbruksmaskinsteknik",75000,50000,110000,6]
["Skogsmaskiner – specialisering","SKMSKO00S",200,"Skogsmaskiner",75000,50000,110000,6]
["Skogsmaskiner – specialisering","NABSKO00S",200,"Naturbruksteknik",75000,50000,110000,6]
["Skogsskötsel – specialisering","SKGSKG00S",100,"Skogsproduktion",75000,50000,110000,6]
["Skogsskötsel 1","SKGSKO01",100,"Skogsproduktion",75000,50000,110000,6]
["Skogsskötsel 2","SKGSKO02",100,"Skogsproduktion",75000,50000,110000,6]
["Skärgårdsnavigation","BATSKA0",100,"Båtkunskap",75000,50000,110000,6]
["Skötsel av utemiljöer","SKÖSKÖ0",100,"Skötsel av utemiljöer",75000,50000,110000,6]
["Skötsel av utemiljöer – specialisering","SKÖSKÖ00S",100,"Skötsel av utemiljöer",75000,50000,110000,6]
["Småreparationer – karosseri","KARSMA0",100,"Karosseriteknik",75000,50000,110000,6]
["Småreparationer – lackering","LACSMA0",100,"Lackeringsteknik",75000,50000,110000,6]
["Småskalig skogsteknik","SKMSMA0",100,"Skogsmaskiner",75000,50000,110000,6]
["Småskalig skogsteknik","NABSMÅ0",100,"Naturbruksteknik",75000,50000,110000,6]
["Snöfordon – introduktion","SNOSNO0",200,"Snöfordonsteknik",75000,50000,110000,6]
["Social omsorg 1","SOASOC01",100,"Social omsorg",35000,50000,110000,6]
["Social omsorg 2","SOASOC02",100,"Social omsorg",35000,50000,110000,6]
["Socialpedagogik","SOASOC0",100,"Social omsorg",35000,50000,110000,6]
["Socialpedagogik","PEASOC0",100,"Pedagogik i vård och omsorg",35000,50000,110000,6]
["Socialt arbete","SOCSOC01",200,"Socialt arbete",35000,50000,110000,6]
["Socialt arbete 2","SOCSOC02",100,"Socialt arbete",35000,50000,110000,6]
["Sociologi","SOISOO0",100,"Sociologi",35000,50000,110000,6]
["Specialkoster","MALSPE0",100,"Matlagningskunskap",75000,50000,110000,6]
["Specialpedagogik 1 ","SPCSPE01",100,"Specialpedagogik",35000,50000,110000,6]
["Specialpedagogik 2 ","SPCSPE02",100,"Specialpedagogik",35000,50000,110000,6]
["Specialyrken 1","HUBSPC01S",100,"Husbyggnad – specialyrken",75000,50000,110000,6]
["Specialyrken 2","HUBSPC02S",200,"Husbyggnad – specialyrken",75000,50000,110000,6]
["Specialyrken 3","HUBSPC03S",200,"Husbyggnad – specialyrken",75000,50000,110000,6]
["Sprinklerteknik 1","SPNSPR01",100,"Sprinklerteknik",75000,50000,110000,6]
["Sprinklerteknik 2","SPNSPR02",100,"Sprinklerteknik",75000,50000,110000,6]
["Spårbundna fordon – introduktion","SPFSPA0",200,"Spårfordonsteknik",75000,50000,110000,6]
["Spårfordon – grund","SPOSPA0",150,"Spårfordon",75000,50000,110000,6]
["Stumsvets 1","SAASTU01S",100,"Sammanfogningsteknik",75000,50000,110000,6]
["Stumsvets 2","SAASTU02S",100,"Sammanfogningsteknik",75000,50000,110000,6]
["Styckning – specialisering","STCSTY00S",100,"Styckningskunskap",75000,50000,110000,6]
["Styckning – specialisering","STYSTY00S",100,"Stycknings- och charkuterikunskap",75000,50000,110000,6]
["Styckning 1","STCSTY01",100,"Styckningskunskap",75000,50000,110000,6]
["Styckning 1","STYSTY01",100,"Stycknings- och charkuterikunskap",75000,50000,110000,6]
["Styckning 2","STCSTY02",100,"Styckningskunskap",75000,50000,110000,6]
["Styckning 2","STYSTY02",100,"Stycknings- och charkuterikunskap",75000,50000,110000,6]
["Styckning 3","STCSTY03",200,"Styckningskunskap",75000,50000,110000,6]
["Styckning 3","STYSTY03",200,"Stycknings- och charkuterikunskap",75000,50000,110000,6]
["Styckning 4","STCSTY04",100,"Styckningskunskap",75000,50000,110000,6]
["Styckning 4","STYSTY04",100,"Stycknings- och charkuterikunskap",75000,50000,110000,6]
["Styr- och säkerhetssystem","SPFSTY0",100,"Spårfordonsteknik",75000,50000,110000,6]
["Styr- och övervakningssystem","MASSTY0",100,"Maskin- och lastbilsteknik",75000,50000,110000,6]
["Städservice","REGSTA0",100,"Rengöringsservice",75000,50000,110000,6]
["Support och hemservice","SUPSUP0",100,"Support och servicearbete",75000,50000,110000,6]
["Svenska","SVESVE01",100,"Svenska",30000,30000,30000,6]
["Svenska","SVESVE02",100,"Svenska",30000,30000,30000,6]
["Svenska","SVESVE03",100,"Svenska",30000,30000,30000,6]
["Svenska som andraspråk","SVASVA01",100,"Svenska som andraspråk",30000,30000,30000,6]
["Svenska som andraspråk","SVASVA02",100,"Svenska som andraspråk",30000,30000,30000,6]
["Svenska som andraspråk","SVASVA03",100,"Svenska som andraspråk",30000,30000,30000,6]
["Svets grund","SAASVT0",100,"Sammanfogningsteknik",75000,50000,110000,6]
["Systemteknik – spårfordon","SYTSYS0",150,"Systemteknik – spårfordon",75000,50000,110000,6]
["Systemuppbyggnad","SYSSYT0",100,"Systemkunskap",75000,50000,110000,6]
["Säkerhet och miljö","SJOSAE0",200,"Sjöfartssäkerhet",75000,50000,110000,6]
["Sällskapsdjur 1","DJUSÄL01",100,"Djur",75000,50000,110000,6]
["Sällskapsdjur 2","DJUSÄL02",100,"Djur",75000,50000,110000,6]
["Taxitrafik","PESTAX0",100,"Persontransporter",75000,50000,110000,6]
["Teknik i vård och omsorg","TENTEK0",100,"Teknik i vård och omsorg",35000,50000,110000,6]
["Telefon- och internetservice","FÖSTEL0",100,"Försäljning och kundservice",35000,50000,110000,6]
["Teleskoplastare","MOBTEL0",100,"Mobila arbetsmaskiner",75000,50000,110000,6]
["Terrängtransporter","SKMTER0",100,"Skogsmaskiner",75000,50000,110000,6]
["Terrängtransporter","NABTER0",100,"Naturbruksteknik",75000,50000,110000,6]
["Textil design 1","HAVTEX01",200,"Hantverk",75000,50000,110000,6]
["Textil design 2","HAVTEX02",200,"Hantverk",75000,50000,110000,6]
["Textil design 3","HAVTEX03",200,"Hantverk",75000,50000,110000,6]
["Textil design 4","HAVTEX04",200,"Hantverk",75000,50000,110000,6]
["Textil design 4 – specialisering","HAVTEX04S",50,"Hantverk",75000,50000,110000,6]
["Textil design 5","HAVTEX05",200,"Hantverk",75000,50000,110000,6]
["Textil design 5 – specialisering","HAVTEX05S",50,"Hantverk",75000,50000,110000,6]
["Textil design 6a","HAVTEX06a",100,"Hantverk",75000,50000,110000,6]
["Textil design 6b","HAVTEX06b",50,"Hantverk",75000,50000,110000,6]
["Textil färg och form","FOMTEX0",100,"Formgivning",75000,50000,110000,6]
["Textkommunikation","MEETET0",100,"Mediekommunikation",35000,50000,110000,6]
["Tillverkningsunderlag 1","TILTIL01",100,"Tillverkningsunderlag",75000,50000,110000,6]
["Tillverkningsunderlag 2","TILTIL02",100,"Tillverkningsunderlag",75000,50000,110000,6]
["Tillämpad programmering","TIPTIL0",100,"Tillämpad programmering",75000,50000,110000,6]
["Tillämpad programmering","TIATIL00S",100,"Tillämpad programmering",75000,50000,110000,6]
["Timring","TRÄTIM0",100,"Trä",75000,50000,110000,6]
["Tradition och utveckling","HVKTRA0",100,"Hantverkskunskap",75000,50000,110000,6]
["Trafikövervakning och signalsystem – spårfordon","TRFTRA0",100,"Trafikövervakning och signalsystem – spårfordon",75000,50000,110000,6]
["Transport och spedition","INKTRP0",100,"Inköp och logistik",35000,50000,110000,6]
["Trav 1","TRVTRA01",100,"Travkunskap",75000,50000,110000,6]
["Trav 1","RIDTRA01",100,"Rid- och körkunskap",75000,50000,110000,6]
["Trav 2","TRVTRA02",100,"Travkunskap",75000,50000,110000,6]
["Trav 2","RIDTRA02",100,"Rid- och körkunskap",75000,50000,110000,6]
["Truckteknik","TRCTRU0",200,"Truckteknik",75000,50000,110000,6]
["Trådlösa radiosystem","ELOTRL0",100,"Elektroniksystem – installation och underhåll",75000,50000,110000,6]
["Trådlösa radiosystem","ELTTRL0",100,"Elektroniksystem",75000,50000,110000,6]
["Trä 1 – stommar","TRÄTRK01",100,"Trä",75000,50000,110000,6]
["Trä 2 – beklädnad","TRÄTRK02",100,"Trä",75000,50000,110000,6]
["Trä 3 – montage","TRÄTRK03",100,"Trä",75000,50000,110000,6]
["Trädgårdsanläggning – specialisering","TRDTRÄ00S",100,"Trädgårdsanläggning",75000,50000,110000,6]
["Trädgårdsanläggning 1","TRDTRÄ01",100,"Trädgårdsanläggning",75000,50000,110000,6]
["Trädgårdsanläggning 2","TRDTRÄ02",100,"Trädgårdsanläggning",75000,50000,110000,6]
["Trädgårdsmaskiner","TRSTRG0",100,"Trädgårdsmaskiner",75000,50000,110000,6]
["Trädgårdsmaskiner","NABTRG0",100,"Naturbruksteknik",75000,50000,110000,6]
["Trädgårdsodling","TRRTRA0",100,"Trädgårdsodling",75000,50000,110000,6]
["Trädgårdsodling","ODLTRÅ0",100,"Odling",75000,50000,110000,6]
["Trädgårdsodling – grönsaker, frukt och bär","TRRTRD0",100,"Trädgårdsodling",75000,50000,110000,6]
["Trädgårdsodling – grönsaker, frukt och bär","ODLTRR0",100,"Odling",75000,50000,110000,6]
["Trädgårdsodling – plantskoleväxter","TRRTRG0",100,"Trädgårdsodling",75000,50000,110000,6]
["Trädgårdsodling – plantskoleväxter","ODLTRS0",100,"Odling",75000,50000,110000,6]
["Trädgårdsodling – specialisering","TRRTRA00S",100,"Trädgårdsodling",75000,50000,110000,6]
["Träning av hund","HUNTRN0",100,"Hundkunskap",75000,50000,110000,6]
["Träningslära 1","TRNTRN01",100,"Träningslära",35000,50000,110000,6]
["Träningslära 2","TRNTRN02",100,"Träningslära",35000,50000,110000,6]
["Tunga arbetsmaskiner","GODTUN0",200,"Godshantering",75000,50000,110000,6]
["Turistbyråservice","AKTTUR0",100,"Aktiviteter och värdskap",35000,50000,110000,6]
["Turistbyråservice","TURTUR0",100,"Turism",35000,50000,110000,6]
["Tv-produktion","FILTVP0",100,"Film- och tv-produktion",35000,50000,110000,6]
["Tätskikt våtrum","TÄTTÄT0",100,"Tätskikt våtrum",75000,50000,110000,6]
["Underhåll – driftsäkerhet","DRIUND0",100,"Driftsäkerhet och underhåll",75000,50000,110000,6]
["Underhåll – elteknik","DRIUNE0",100,"Driftsäkerhet och underhåll",75000,50000,110000,6]
["Underhåll – hydraulik","DRIUNR0",100,"Driftsäkerhet och underhåll",75000,50000,110000,6]
["Underhåll – hydraulik och pneumatik","DRIUNH0",100,"Driftsäkerhet och underhåll",75000,50000,110000,6]
["Underhåll – lager och smörjteknik","DRIUNÅ0",100,"Driftsäkerhet och underhåll",75000,50000,110000,6]
["Underhåll – mekatronik","DRIUNL0",100,"Driftsäkerhet och underhåll",75000,50000,110000,6]
["Underhåll – pneumatik","DRIUNP0",100,"Driftsäkerhet och underhåll",75000,50000,110000,6]
["Underhåll – produktionsmekanik","DRIUNO0",100,"Driftsäkerhet och underhåll",75000,50000,110000,6]
["Underhåll – pumpteknik","DRIUNU0",100,"Driftsäkerhet och underhåll",75000,50000,110000,6]
["Underhåll – transmissioner och uppriktning","DRIUNT0",100,"Driftsäkerhet och underhåll",75000,50000,110000,6]
["Underhåll – vibrationsteknik","DRIUNV0",100,"Driftsäkerhet och underhåll",75000,50000,110000,6]
["Underhållsteknik – flyg","FLYUNS0",200,"Flygyrkesteknik",75000,50000,110000,6]
["Ungdomskulturer","SOIUNG0",100,"Sociologi",35000,50000,110000,6]
["Utställningsdesign 1","UTSUTS01",100,"Utställningsdesign",35000,50000,110000,6]
["Utställningsdesign 2","UTSUTS02",100,"Utställningsdesign",35000,50000,110000,6]
["Utställningsdesign 3","UTSUTS03S",100,"Utställningsdesign",35000,50000,110000,6]
["Vardagsolyckor","BEVVAR0",100,"Brand, bevakning och säkerhet",35000,50000,110000,6]
["Vatten- och miljöteknik","VATVAT0",200,"Vatten- och miljöteknik",75000,50000,110000,6]
["Vatten- och processkemi","ENEVAE0",100,"Energiteknik",75000,50000,110000,6]
["Vattenbruk – grunder","VANVAT0",100,"Vattenbruk",75000,50000,110000,6]
["Vattenbruk – specialisering","VANVAE00S",100,"Vattenbruk",75000,50000,110000,6]
["Vattenkraftstationer","VAEVAN0",100,"Vattenkraftteknik",75000,50000,110000,6]
["Vattenreningens mikrobiologi","VATVAR0",100,"Vatten- och miljöteknik",75000,50000,110000,6]
["Ventilation och komfortkyla","INTVET0",150,"Installationsteknik VVS",75000,50000,110000,6]
["Ventilationsisolering","VENVET0",200,"Ventilationsplåtslageri",75000,50000,110000,6]
["Ventilationsisolering","VEIVEN0",100,"Ventilation – installation",75000,50000,110000,6]
["Ventilationsmontering 1","VENVEN01",100,"Ventilationsplåtslageri",75000,50000,110000,6]
["Ventilationsmontering 1","VEIVEN01",100,"Ventilation – installation",75000,50000,110000,6]
["Ventilationsmontering 2","VENVEN02",200,"Ventilationsplåtslageri",75000,50000,110000,6]
["Ventilationsmontering 2","VEIVEN02",200,"Ventilation – installation",75000,50000,110000,6]
["Ventilationsplåtslageri 1","VENVET01",100,"Ventilationsplåtslageri",75000,50000,110000,6]
["Ventilationsplåtslageri 1","VELVEN01",100,"Ventilation – plåtslageri",75000,50000,110000,6]
["Ventilationsplåtslageri 2","VENVET02",200,"Ventilationsplåtslageri",75000,50000,110000,6]
["Ventilationsplåtslageri 2","VELVET02",200,"Ventilation – plåtslageri",75000,50000,110000,6]
["Ventilationsservice","VENVEI0",100,"Ventilationsplåtslageri",75000,50000,110000,6]
["Ventilationsservice","VEIVET0",100,"Ventilation – installation",75000,50000,110000,6]
["Ventilationsteknik – injustering","VETVEL0",100,"Ventilationsteknik",75000,50000,110000,6]
["Verkstad – spårfordon","VEAVER0",100,"Verkstad – spårfordon",75000,50000,110000,6]
["Verktygs- och materialhantering","VEKVEK0",100,"Verktygs- och materialhantering",75000,50000,110000,6]
["Verktygskunskap","PRUVEY0",100,"Produktionsutrustning",75000,50000,110000,6]
["Virkeslära","SKGVIR0",100,"Skogsproduktion",75000,50000,110000,6]
["Virkesmätning","SKGVIK0",100,"Skogsproduktion",75000,50000,110000,6]
["Virkestransport med skotare","SKMVIE0",100,"Skogsmaskiner",75000,50000,110000,6]
["Virkestransport med skotare","NABVIE0",100,"Naturbruksteknik",75000,50000,110000,6]
["Visuell kommunikation","VISVIS0",100,"Visuell kommunikation",75000,50000,110000,6]
["VVS gassvetsning rör","VVIVVG0",100,"VVS – installation",75000,50000,110000,6]
["VVS gassvetsning rör","VVSVVG0",100,"VVS-teknik",75000,50000,110000,6]
["VVS MMA-svetsning rör","INVVVS0",100,"Industrirör svets VVS",75000,50000,110000,6]
["VVS svets industrirör","INVVVV0",200,"Industrirör svets VVS",75000,50000,110000,6]
["VVS svets industrirör","VVSVVV0",200,"VVS-teknik",75000,50000,110000,6]
["VVS svets och lödning rör","VVIVVS0",100,"VVS – installation",75000,50000,110000,6]
["VVS svets och lödning rör","VVSVVS0",100,"VVS-teknik",75000,50000,110000,6]
["VVS TIG-svetsning rör","INVVVI0",100,"Industrirör svets VVS",75000,50000,110000,6]
["VVS TIG-svetsning rör","VVSVVI0",100,"VVS-teknik",75000,50000,110000,6]
["VVS-isolering","TEIVVS0",100,"Teknisk isolering",75000,50000,110000,6]
["VVS-teknik","VVIVVT0",200,"VVS – installation",75000,50000,110000,6]
["VVS-teknik","VVSVVT0",200,"VVS-teknik",75000,50000,110000,6]
["Våningsservice 1","VAIVAI01",100,"Våningsservice",35000,50000,110000,6]
["Våningsservice 1","HOTVÅN01",100,"Hotell",35000,50000,110000,6]
["Våningsservice 2","VAIVAI02",100,"Våningsservice",35000,50000,110000,6]
["Våningsservice 2","HOTVÅN02",100,"Hotell",35000,50000,110000,6]
["Våningsservice 3","VAIVAI03",100,"Våningsservice",35000,50000,110000,6]
["Våningsservice 3","HOTVÅN03",100,"Hotell",35000,50000,110000,6]
["Vård och omsorg – specialisering","VADVAR00S",50,"Vård och omsorg specialisering",35000,50000,110000,6]
["Vård och omsorg specialisering","VADVAD00S",100,"Vård och omsorg specialisering",35000,50000,110000,6]
["Vård- och omsorgsarbete 1","VÅRVÅR01",200,"Vård och omsorg",35000,50000,110000,6]
["Vård- och omsorgsarbete 2","VÅRVÅR02",150,"Vård och omsorg",35000,50000,110000,6]
["Vårdpedagogik och handledning","PEAVÅD0",100,"Pedagogik i vård och omsorg",35000,50000,110000,6]
["Väghyvel","MOBVAG0",200,"Mobila arbetsmaskiner",75000,50000,110000,6]
["Värdskap på resmålet","AKTVAR0",100,"Aktiviteter och värdskap",35000,50000,110000,6]
["Värdskap på resmålet","TURVÄR0",100,"Turism",35000,50000,110000,6]
["Värme- och kylsystem","INTVÄR0",200,"Installationsteknik VVS",75000,50000,110000,6]
["Värmelära","SYSVÄM0",100,"Systemkunskap",75000,50000,110000,6]
["Värmeteknik 1","VVIVAR01",100,"VVS – installation",75000,50000,110000,6]
["Värmeteknik 1","VVSVÄR01",100,"VVS-teknik",75000,50000,110000,6]
["Värmeteknik 2","VVIVAR02",100,"VVS – installation",75000,50000,110000,6]
["Värmeteknik 2","VVSVÄR02",100,"VVS-teknik",75000,50000,110000,6]
["Växtkunskap – fastighetsskötsel","VÄXVÄK0",100,"Växtkunskap",75000,50000,110000,6]
["Växtkunskap 1","VÄXVÄX01",100,"Växtkunskap",75000,50000,110000,6]
["Växtkunskap 2","VÄXVÄX02",100,"Växtkunskap",75000,50000,110000,6]
["Växtodling – specialisering","VAOVAT00S",100,"Växtodling",75000,50000,110000,6]
["Växtodling 1","VAOVAT01",100,"Växtodling",75000,50000,110000,6]
["Växtodling 1","ODLVÄT01",100,"Odling",75000,50000,110000,6]
["Växtodling 2","VAOVAT02",100,"Växtodling",75000,50000,110000,6]
["Växtodling 2","ODLVÄT02",100,"Odling",75000,50000,110000,6]
["Webbserverprogrammering 1","WESWEB01",100,"Webbserverprogrammering",75000,50000,110000,6]
["Webbserverprogrammering 1","WEBWEB01",100,"Webbteknik",75000,50000,110000,6]
["Webbserverprogrammering 2","WESWEB02",100,"Webbserverprogrammering",75000,50000,110000,6]
["Webbserverprogrammering 2","WEBWEB02",100,"Webbteknik",75000,50000,110000,6]
["Webbutveckling 1","WEUWEB01",100,"Webbutveckling",75000,50000,110000,6]
["Webbutveckling 1","WEBWEU01",100,"Webbteknik",75000,50000,110000,6]
["Webbutveckling 2","WEUWEB02",100,"Webbutveckling",75000,50000,110000,6]
["Webbutveckling 2","WEBWEU02",100,"Webbteknik",75000,50000,110000,6]
["Yrkestrafik – vux","TRAYRK1",300,"Transportteknik",75000,50000,110000,6]
["Yrkestrafik 1a","TRAYRK01a",200,"Transportteknik",75000,50000,110000,6]
["Yrkestrafik 1b","TRAYRK01b",300,"Transportteknik",75000,50000,110000,6]
["Ytbeklädnad – grund","TEIYTB0",200,"Teknisk isolering",75000,50000,110000,6]
["Yttre miljö – anläggningar","YTTYTT0",100,"Yttre miljö",35000,50000,110000,6]
["Yttre miljö – maskiner och verktyg","YTTYTR0",100,"Yttre miljö",35000,50000,110000,6]
["Hippologi – etologi","HIOHIL0",100,"Hippologi",75000,50000,110000,6]
["Hippologi – anatomi och fysiologi","HIOHIP0",100,"Hippologi",75000,50000,110000,6]
["Hippologi – avel och hästens hälsa","HIOHIO0",100,"Hippologi",75000,50000,110000,6]
["Privatjuridik","JURPRI0",100,"Juridik",35000,50000,110000,6]
["Rätten och samhället","JURRÄT0",100,"Juridik",35000,50000,110000,6]
["Medieproduktion 1","MEPMEI01",100,"Medieproduktion",35000,50000,110000,6]
["Medieproduktion 2","MEPMEI02",100,"Medieproduktion",35000,50000,110000,6]
["Byggnadsverk","SAHBYV0",100,"Samhällsbyggande",75000,50000,110000,6]

{"sheet":"parametrar","index":15,"n_rows":7,"n_cols":3,"rows_kept":7,"cut":false,"hidden":true,"merged":[]}
["Parametrar"]
["parameter","Bidrag_per_plats","värde"]
["statsbidrag_30000",30000,{"$f":"Tabell19[[#This Row],[Bidrag_per_plats]]/800","v":37.5}]
["statsbidrag_35000",35000,{"$f":"Tabell19[[#This Row],[Bidrag_per_plats]]/800","v":43.75}]
["statsbidrag_50000",50000,{"$f":"Tabell19[[#This Row],[Bidrag_per_plats]]/800","v":62.5}]
["statsbidrag_75000",75000,{"$f":"Tabell19[[#This Row],[Bidrag_per_plats]]/800","v":93.75}]
["statsbidrag_110000",110000,{"$f":"Tabell19[[#This Row],[Bidrag_per_plats]]/800","v":137.5}]